{"text_format":"1","workbook":"xlsx","n_sheets":28,"sheets":["Intro & Checklist","1-Production Info","2-Electricity","3-Nat Gas & Heating Oil","4-Fuel","5-Hotels-Housing","6-Commercial Air Travel","7-Charter and Heli Flights","EAR Metrics","EAR","Summary","Megan tasks","Settings","Results","Sheet1","Lookups","ElectricityEFs","FuelEFs","CBECs","Cost","MPG","AirTravel","HotelFactors","Equivalents","Sheet2","Change Log","Sheet3","Version"],"not_rendered":{"charts":17,"images":20,"macros":1,"external_links":0,"defined_names":173,"comments":5,"pivot_tables":0},"unopened":[],"bounds":{"document_bytes":16777216,"sheet_cells":100000,"rows_first":2000,"rows_last":500,"rows_between":2000,"halvings":0,"cell_chars":16384,"cell_head_chars":4096},"cells_cut":0,"cells_raw":0,"read":"whole","date_system":"1900"}

{"sheet":"Intro & Checklist","index":0,"n_rows":22,"n_cols":5,"rows_kept":22,"cut":false,"hidden":false,"merged":[[2,1,2,3],[3,1,3,3],[1,1,1,3],[13,2,18,2],[19,2,20,2]]}
[null,null,null,"Version 3.3.0M"]
[null,"Environmental Accounting Report Calculator General Info & Checklist"]
[null,"This calculator measures the carbon emissions generated and resources used and saved by your production based on information you enter on emission sources such as utility electricity and heating, fuel, flight and hotel use.  Information for each emission source is collected on a separate worksheet tab.  Information is not required for every tab, and should only be entered for the emission sources associated with your production. \nThe table below provides a general description of the information collected and data collection status for each emission source data collection worksheet."]
[null,"Please contact XXXX at XXXXXX with any questions."]
[null,"Click on a tab name to link to the sheet"]
[null,"Status","Calculator Tab","Description","Potential Sources of Data"]
[null,{"$f":"'1-Production Info'!J14","v":"Data Not Entered"},"1-Production Information","Calculator contact information & general production information including production name, headquarters location & schedule.\nProduction location information (e.g., production offices, warehouses, stages) used for utility electricity, natural gas & heating oil tracking"]
[null,{"$f":"'2-Electricity'!N10","v":"Data Not Entered"},"2-Electricity","Total electricity used for all locations entered in Production Info","utility heating bills\nlocation lease or real estate information\nprocurement (natural gas or heating oil cost)"]
[null,{"$f":"'3-Nat Gas & Heating Oil'!P8","v":"Data Not Entered"},"3-Natural Gas & Heating","Total natural gas and/or heating oil used for all locations entered in Production Info, if appropriate","electricity bills\nlocation lease or real estate information\nprocurement (electricity cost)"]
[null,{"$f":"'4-Fuel'!O9","v":"Data Not Entered"},"4-Fuel","Fuel used for equipment (e.g., generators) and vehicles "]
[null,{"$f":"'5-Hotels-Housing'!L6","v":"Data Not Entered"},"5-Hotels & Housing","Number of days and location of hotels, houses and condos rented during the production"]
[null,{"$f":"'6-Commercial Air Travel'!N8","v":"Data Not Entered"},"6-Commercial Air Travel","Passenger miles and routes (if applicable) traveled on commercial airlines"]
[null,{"$f":"'7-Charter and Heli Flights'!L6","v":"Data Not Entered"},"7-Charter & Helicopter Flights","Fuel, hours or distance traveled on charter jets and helicopters"]
[null,{"$f":"'EAR Metrics'!S15","v":"No Data Entered"},"Environmental Accounting Report Metrics","Waste: Landfill, Compost and Recycling"]
[null,{"$f":"'EAR Metrics'!S55","v":"No data Entered"},null,"Drinking Water (water/refillable bottles)"]
[null,{"$f":"'EAR Metrics'!P63","v":"No Data Entered"},null,"Fuel Savings (e.g. biodiesel/hybrid rentals)"]
[null,{"$f":"'EAR Metrics'!O83","v":"No Data Entered"},null,"Donations (food and wrap)"]
[null,{"$f":"'EAR Metrics'!P94","v":"No Data Entered"},null,"Paper, Recycled Content"]
[null,{"$f":"'EAR Metrics'!P132","v":"No Data Entered"},null,"Lauan/Meranti Plywood"]
[null,{"$f":"IF(Results!E10=\"Data Error\", \"Data Input Error\", IF(Results!E10>0, \"Data Entered Correctly\", \"Data Not Entered\"))","v":"Data Not Entered"},"Environmental Accounting Report","Carbon Footprint Summary: presents emissions results based on the information added in tabs 1 through 7 "]
[null,{"$f":"'EAR Metrics'!T5","v":"Data not entered"},null,"Other Environmental Activities: Presents results for up to four Environmental Activities selected on the EAR Metrics page"]
[null,null,null,"Updated January 2014"]

{"sheet":"1-Production Info","index":1,"n_rows":100,"n_cols":12,"rows_kept":100,"cut":false,"hidden":false,"merged":[[2,13,3,20],[9,14,9,20],[22,15,24,20],[25,15,27,20],[4,14,5,20],[6,14,7,20],[13,14,18,20],[7,1,7,6],[17,1,17,6],[3,5,3,6],[3,1,3,3],[15,8,15,10],[17,8,17,10],[16,1,16,6]]}
[]
[null,"Click for Checklist",null,"Required field",null,"Input not required","Go to EAR"]
[]
[null,"Production Calculator Contact",null,null,null,"Production Coordinator Sign Off"]
[null,"Name","Phone Number","Date",null,"Name","Date"]
[]
[]
[null,{"$f":"C10&\" Production Information\"","v":" Production Information"}]
[null,"Production Type:"]
[null,"Production Name:",null,"Start Date:",null,"End Date:"]
["Film","Category of Film by Budget:",null,"Total Number of Shoot Days:",null,"Region:"]
["TV","Type of TV Production:",null,"Number Episodes:",null,"Region:"]
[null,"Main Production Office Location:",null,"Number of Days for Prep:",null,"Number of Days for Wrap:"]
["Film","Total Number of 1st Unit Shoot Days:",null,"Total Number of 2nd Unit Shoot Days:",null,"Other/Additional Photography Shoot Days: ",null,null,"Status:",{"$f":"IF(ISERROR(SUM(K:K)),\"Data Input Error\",IF((L19>0),\"Data Entered Correctly\",\"Data Not Entered\"))","v":"Data Not Entered"}]
[null,"Headquarter State/Province:",null,"Number of On Location Days:",null,"Number of Stage Days:",null,null,{"$f":" IF(OR(C14=\"USA\", C14=\"Canada\", C14= \"Australia\"), \"StatesList\", \"\")","v":""}]
["TV",null,null,"Total Number of Shoot Days:",null,null,null,null,"TV only- HIDE ROW IF FILM"]
[null,"For each production location, enter the name, selet the location type and country.  Additional address information is optional.    \nThese locations are used on the electricity and natural gas & heating oil tabs."]
[null,"Locations",null,null,null,null,null,null,"Location Calculations"]
[null,"Location Name","Location Type","Country","State/Province","Address (optional)","City & Postal Code (optional)",null,"StatesDropdown","Elec Region","eGRID Factor",{"$f":"SUM(K:K)","v":0}]
[null,null,null,null,null,null,null,null,{"$f":" IF(OR(D20=\"USA\", D20=\"Canada\", D20= \"Australia\"), \"StatesList\", \"\")","v":""},{"$f":"IF(ISBLANK(D20),\"\", IF(OR(D20=\"Canada\", D20=\"Australia\", D20=\"USA\"), CONCATENATE(D20,E20), D20))","v":""},{"$f":"IF(ISBLANK(B20), \"\", VLOOKUP(J20,ElecFactor,5,FALSE))","v":""}]
[null,null,null,null,null,null,null,null,{"$f":" IF(OR(D21=\"USA\", D21=\"Canada\", D21= \"Australia\"), \"StatesList\", \"\")","v":""},{"$f":"IF(ISBLANK(D21),\"\", IF(OR(D21=\"Canada\", D21=\"Australia\", D21=\"USA\"), CONCATENATE(D21,E21), D21))","v":""},{"$f":"IF(ISBLANK(B21), \"\", VLOOKUP(J21,ElecFactor,5,FALSE))","v":""}]
[null,null,null,null,null,null,null,null,"","",""]
[null,null,null,null,null,null,null,null,"","",""]
[null,null,null,null,null,null,null,null,"","",""]
[null,null,null,null,null,null,null,null,"","",""]
[null,null,null,null,null,null,null,null,"","",""]
[null,null,null,null,null,null,null,null,"","",""]
[null,null,null,null,null,null,null,null,"","",""]
[null,null,null,null,null,null,null,null,"","",""]
[null,null,null,null,null,null,null,null,"","",""]
[null,null,null,null,null,null,null,null,"","",""]
[null,null,null,null,null,null,null,null,"","",""]
[null,null,null,null,null,null,null,null,"","",""]
[null,null,null,null,null,null,null,null,"","",""]
[null,null,null,null,null,null,null,null,"","",""]
[null,null,null,null,null,null,null,null,"","",""]
[null,null,null,null,null,null,null,null,"","",""]
[null,null,null,null,null,null,null,null,"","",""]
[null,null,null,null,null,null,null,null,"","",""]
[null,null,null,null,null,null,null,null,"","",""]
[null,null,null,null,null,null,null,null,"","",""]
[null,null,null,null,null,null,null,null,"","",""]
[null,null,null,null,null,null,null,null,"","",""]
[null,null,null,null,null,null,null,null,"",{"$f":"IF(ISBLANK(D44),\"\", IF(OR(D44=\"Canada\", D44=\"Australia\", D44=\"USA\"), CONCATENATE(D44,E44), D44))","v":""},""]
[null,null,null,null,null,null,null,null,{"$f":" IF(OR(D45=\"USA\", D45=\"Canada\", D45= \"Australia\"), \"StatesList\", \"\")","v":""},{"$f":"IF(ISBLANK(D45),\"\", IF(OR(D45=\"Canada\", D45=\"Australia\", D45=\"USA\"), CONCATENATE(D45,E45), D45))","v":""},{"$f":"IF(ISBLANK(B45), \"\", VLOOKUP(J45,ElecFactor,5,FALSE))","v":""}]
[null,null,null,null,null,null,null,null,"","",""]
[null,null,null,null,null,null,null,null,"","",""]
[null,null,null,null,null,null,null,null,"","",""]
[null,null,null,null,null,null,null,null,"","",""]
[null,null,null,null,null,null,null,null,"","",""]
[null,null,null,null,null,null,null,null,"","",""]
[null,null,null,null,null,null,null,null,"","",""]
[null,null,null,null,null,null,null,null,"","",""]
[null,null,null,null,null,null,null,null,"","",""]
[null,null,null,null,null,null,null,null,"","",""]
[null,null,null,null,null,null,null,null,"","",""]
[null,null,null,null,null,null,null,null,"","",""]
[null,null,null,null,null,null,null,null,"","",""]
[null,null,null,null,null,null,null,null,"","",""]
[null,null,null,null,null,null,null,null,"","",""]
[null,null,null,null,null,null,null,null,"","",""]
[null,null,null,null,null,null,null,null,"","",""]
[null,null,null,null,null,null,null,null,"","",""]
[null,null,null,null,null,null,null,null,"","",""]
[null,null,null,null,null,null,null,null,"","",""]
[null,null,null,null,null,null,null,null,"","",""]
[null,null,null,null,null,null,null,null,"","",""]
[null,null,null,null,null,null,null,null,"","",""]
[null,null,null,null,null,null,null,null,"","",""]
[null,null,null,null,null,null,null,null,"","",""]
[null,null,null,null,null,null,null,null,"","",""]
[null,null,null,null,null,null,null,null,"","",""]
[null,null,null,null,null,null,null,null,"","",""]
[null,null,null,null,null,null,null,null,"","",""]
[null,null,null,null,null,null,null,null,"","",""]
[null,null,null,null,null,null,null,null,"","",""]
[null,null,null,null,null,null,null,null,"","",""]
[null,null,null,null,null,null,null,null,"","",""]
[null,null,null,null,null,null,null,null,"","",""]
[null,null,null,null,null,null,null,null,"","",""]
[null,null,null,null,null,null,null,null,"","",""]
[null,null,null,null,null,null,null,null,"","",""]
[null,null,null,null,null,null,null,null,"","",""]
[null,null,null,null,null,null,null,null,"","",""]
[null,null,null,null,null,null,null,null,"","",""]
[null,null,null,null,null,null,null,null,"","",""]
[null,null,null,null,null,null,null,null,"","",""]
[null,null,null,null,null,null,null,null,{"$f":" IF(OR(D88=\"USA\", D88=\"Canada\", D88= \"Australia\"), \"StatesList\", \"\")","v":""},{"$f":"IF(ISBLANK(D88),\"\", IF(OR(D88=\"Canada\", D88=\"Australia\", D88=\"USA\"), CONCATENATE(D88,E88), D88))","v":""},{"$f":"IF(ISBLANK(B88), \"\", VLOOKUP(J88,ElecFactor,5,FALSE))","v":""}]
[null,null,null,null,null,null,null,null,"","",""]
[null,null,null,null,null,null,null,null,"","",""]
[null,null,null,null,null,null,null,null,"","",""]
[null,null,null,null,null,null,null,null,"","",""]
[null,null,null,null,null,null,null,null,"","",""]
[null,null,null,null,null,null,null,null,"","",""]
[null,null,null,null,null,null,null,null,"","",""]
[null,null,null,null,null,null,null,null,"","",""]
[null,null,null,null,null,null,null,null,"","",""]
[null,null,null,null,null,null,null,null,"","",""]
[null,null,null,null,null,null,null,null,"","",""]
[null,null,null,null,null,null,null,null,"","",""]

{"sheet":"2-Electricity","index":2,"n_rows":150,"n_cols":25,"rows_kept":150,"cut":false,"hidden":false,"merged":[[11,8,11,9],[3,22,4,29],[8,23,8,29],[11,19,11,21],[1,18,1,20],[9,23,10,29],[13,24,14,29],[15,23,16,23],[5,23,7,29],[11,23,12,29],[15,24,17,29],[18,24,20,29],[22,22,25,30],[10,4,10,9],[3,1,3,9],[11,12,11,17],[5,1,6,1],[10,12,10,17],[5,2,6,2],[10,1,10,3],[5,4,5,9],[6,4,8,9],[11,3,12,3],[11,2,12,2],[11,10,12,10],[11,1,12,1],[11,5,11,7]]}
[]
[null,"Click for Checklist","Go to EAR",null,null,null,null,"Required field",null,"Input not required"]
[]
[null,{"$f":"'1-Production Info'!C10& \" Purchased Electricity\"","v":" Purchased Electricity"},null,null,null,null,null,null,null,null,null,null,null,null,null,null,null,null,null,null,null,null,"Instructions"]
[]
[null,"Did You Purchase Renewable Energy or RECs?",null,null,"Comments",null,null,null,null,null,null,null,null,null,null,null,null,null,null,null,null,null,null,"1. General Electricity Questions:  Select Yes or No from the dropdowns to identify if you purchased renewable energy, RECs or used power drops on your production.  \nEnter comments about your production energy use (optional)"]
[]
[null,"Did you use power drops?"]
[null,"How much energy was powered from power drops?",null,null,null,null,null,null,null,null,null,null,null,null,null,null,null,null,null,null,null,null,null,"2. Location: Select a Location Name from the dropdown box.  \nLocations are entered in column B of the Production Info Tab"]
[null,null,null,null,null,null,null,null,null,null,null,null,"Status:",{"$f":"IF(ISERROR(U14),\"Data Input Error\",IF(U14<>SUM(U15:U17),\"Multiple Options Entered\",IF(U14>0,\"Data Entered Correctly\",\"Data Not Entered\")))","v":"Data Not Entered"},null,null,null,null,null,null,null,null,null,"3. From & End Date (optional):- Enter the start and end date of the location electricity information (e.g., the dates on the invoice) into column C and D, respectively"]
[null,"Locations entered in Production Info tab",null,null,"Enter  information only for ONE option for each location"]
[null,"Location Name ","From Date (optional)","End Date (optional)","PREFERRED OPTION","Second Option",null,null,"Third Option",null,"Option Selected",null,"Electricity Calculations",null,null,null,null,null,null,"Emission Summary",null,null,null,"4. Enter data for ONE Option for Electricity Information for each location entered:  (Note: Include weekends in date ranges, unless specified otherwise. This factors in longer average work days.)"]
[null,null,null,null,"Electricity Use (kWh)","Total Area \n(e.g., Total Square Feet)","Units","Days Used","Total Cost of Electricity (US$)","Cost Data Source",null,null,"ElectricityCode","ElecFactor (kgCO2/kWh)","Square Footage","CBECskWh","CostkWh","CO2 emissions",null,"Emissions","kg CO2","kWh"]
[null,null,null,null,null,null,null,null,null,null,{"$f":"IF(AND(E14>0,I14>0),\"Multiple Entered!\",IF(AND(F14>0,I14>0),\"Multiple Entered!\",IF(AND(E14>0,F14>0),\"Multiple Entered!\",IF(E14>0,\"Preferred Option\",IF(F14>0,\"2nd Option\",IF(I14>0,\"3rd Option\",\"\"))))))","v":""},null,{"$f":"IF(ISBLANK(B14), \"\", VLOOKUP(B14, LocationInfo, 9, FALSE))","v":""},{"$f":"IF(ISBLANK(B14), \"\", VLOOKUP(M14,ElecFactor,5,FALSE))","v":""},{"$f":"IF(ISBLANK(G14), \"\", VLOOKUP(G14,AreaConvert,2,FALSE)*F14)","v":""},{"$f":"IF(ISBLANK(H14),\"\",(VLOOKUP((VLOOKUP(VLOOKUP(B14,LocationInfo,2,FALSE),CBECSTypes,2,FALSE)),CBECSFactors,2,FALSE)*O14*H14/365))","v":""},{"$f":"IF(I14>0, I14/VLOOKUP(\"Electricity\", FuelCost,2,FALSE), \"\")","v":""},{"$f":"IF(ISBLANK(B14), \"\", IF(E14>0,E14,IF(F14>0,P14,IF(I14>0,Q14,\"\")))*N14)","v":""},null,"Total",{"$f":"SUM(R:R)","v":0},{"$f":"SUM(V15:V17)","v":0},null,null,"4.1 Preferred Option- Actual Electricity Use: Enter the actual electricity use (in kWh) for the selected location into column E"]
[null,null,null,null,null,null,null,null,null,null,{"$f":"IF(AND(E15>0,I15>0),\"Multiple Entered!\",IF(AND(F15>0,I15>0),\"Multiple Entered!\",IF(AND(E15>0,F15>0),\"Multiple Entered!\",IF(E15>0,\"Preferred Option\",IF(F15>0,\"2nd Option\",IF(I15>0,\"3rd Option\",\"\"))))))","v":""},null,{"$f":"IF(ISBLANK(B15), \"\", VLOOKUP(B15, LocationInfo, 9, FALSE))","v":""},"",{"$f":"IF(ISBLANK(G15), \"\", VLOOKUP(G15,AreaConvert,2,FALSE)*F15)","v":""},"","","",null,"Preferred Option (kWh)",{"$f":"SUMIF(E:E, \">0\",R:R )","v":0},{"$f":"SUM(E:E)","v":0}]
[null,null,null,null,null,null,null,null,null,null,"",null,"","","","","","",null,"2nd Option (square footage)",{"$f":"SUMIF(P:P, \">0\",R:R )","v":0},{"$f":"SUM(P:P)","v":0},null,null,"4.2 Second Option- Area: Enter the location area in column F, select the area units from column G, and enter the number of days the location was used in column H"]
[null,null,null,null,null,null,null,null,null,null,"",null,"","","","","","",null,"3rd Option (Cost)",{"$f":"SUMIF(Q:Q, \">0\",R:R )","v":0},{"$f":"SUM(Q:Q)","v":0}]
[null,null,null,null,null,null,null,null,null,null,"",null,"","","","","",""]
[null,null,null,null,null,null,null,null,null,null,"",null,"","","","","","",null,null,null,null,null,null,"4.3 Third Option- Cost: Enter the total cost of electricity for the location in column I, and select the cost data source (invoice or rent) from column J"]
[null,null,null,null,null,null,null,null,null,null,"",null,"","","","","",""]
[null,null,null,null,null,null,null,null,null,null,"",null,"","","","","",""]
[null,null,null,null,null,null,null,null,null,null,"",null,"","","","","",""]
[null,null,null,null,null,null,null,null,null,null,"",null,"","","","","","",null,null,null,null,"Copy Facility Information to Natural Gas Tab:\nClick the purple button to transfer the location names and Options 2 information (area, units and days used) to the Natural Gas and Heating Oil tab.  Clicking the button multiple times will add the same values multiple times."]
[null,null,null,null,null,null,null,null,null,null,"",null,"","","","","",""]
[null,null,null,null,null,null,null,null,null,null,"",null,"","","","","",""]
[null,null,null,null,null,null,null,null,null,null,"",null,"","","","","",""]
[null,null,null,null,null,null,null,null,null,null,"",null,"","","","","",""]
[null,null,null,null,null,null,null,null,null,null,"",null,"","","","","",""]
[null,null,null,null,null,null,null,null,null,null,"",null,"","","","","",""]
[null,null,null,null,null,null,null,null,null,null,"",null,"","","","","",""]
[null,null,null,null,null,null,null,null,null,null,"",null,"","","","","",""]
[null,null,null,null,null,null,null,null,null,null,"",null,"","","","","",""]
[null,null,null,null,null,null,null,null,null,null,"",null,"","","","","",""]
[null,null,null,null,null,null,null,null,null,null,"",null,"","","","","",""]
[null,null,null,null,null,null,null,null,null,null,"",null,"","","","","",""]
[null,null,null,null,null,null,null,null,null,null,"",null,"","","","","",""]
[null,null,null,null,null,null,null,null,null,null,"",null,"","","","","",""]
[null,null,null,null,null,null,null,null,null,null,"",null,"","","","","",""]
[null,null,null,null,null,null,null,null,null,null,"",null,"","","","","",""]
[null,null,null,null,null,null,null,null,null,null,"",null,"","","","","",""]
[null,null,null,null,null,null,null,null,null,null,"",null,"","","","","",""]
[null,null,null,null,null,null,null,null,null,null,"",null,"","","","","",""]
[null,null,null,null,null,null,null,null,null,null,"",null,"","","","","",""]
[null,null,null,null,null,null,null,null,null,null,"",null,"","","","","",""]
[null,null,null,null,null,null,null,null,null,null,"",null,"","","","","",""]
[null,null,null,null,null,null,null,null,null,null,{"$f":"IF(AND(E46>0,I46>0),\"Multiple Entered!\",IF(AND(F46>0,I46>0),\"Multiple Entered!\",IF(AND(E46>0,F46>0),\"Multiple Entered!\",IF(E46>0,\"Preferred Option\",IF(F46>0,\"2nd Option\",IF(I46>0,\"3rd Option\",\"\"))))))","v":""},null,{"$f":"IF(ISBLANK(B46), \"\", VLOOKUP(B46, LocationInfo, 9, FALSE))","v":""},{"$f":"IF(ISBLANK(B46), \"\", VLOOKUP(M46,ElecFactor,5,FALSE))","v":""},{"$f":"IF(ISBLANK(G46), \"\", VLOOKUP(G46,AreaConvert,2,FALSE)*F46)","v":""},{"$f":"IF(ISBLANK(H46),\"\",(VLOOKUP((VLOOKUP(VLOOKUP(B46,LocationInfo,2,FALSE),CBECSTypes,2,FALSE)),CBECSFactors,2,FALSE)*O46*H46/365))","v":""},{"$f":"IF(I46>0, I46/VLOOKUP(\"Electricity\", FuelCost,2,FALSE), \"\")","v":""},{"$f":"IF(ISBLANK(B46), \"\", IF(E46>0,E46,IF(F46>0,P46,IF(I46>0,Q46,\"\")))*N46)","v":""}]
[null,null,null,null,null,null,null,null,null,null,"",null,"","","","","",""]
[null,null,null,null,null,null,null,null,null,null,"",null,"","","","","",""]
[null,null,null,null,null,null,null,null,null,null,"",null,"","","","","",""]
[null,null,null,null,null,null,null,null,null,null,"",null,"","","","","",""]
[null,null,null,null,null,null,null,null,null,null,"",null,"","","","","",""]
[null,null,null,null,null,null,null,null,null,null,"",null,"","","","","",""]
[null,null,null,null,null,null,null,null,null,null,"",null,"","","","","",""]
[null,null,null,null,null,null,null,null,null,null,"",null,"","","","","",""]
[null,null,null,null,null,null,null,null,null,null,"",null,"","","","","",""]
[null,null,null,null,null,null,null,null,null,null,"",null,"","","","","",""]
[null,null,null,null,null,null,null,null,null,null,"",null,"","","","","",""]
[null,null,null,null,null,null,null,null,null,null,"",null,"","","","","",""]
[null,null,null,null,null,null,null,null,null,null,"",null,"","","","","",""]
[null,null,null,null,null,null,null,null,null,null,"",null,"","","","","",""]
[null,null,null,null,null,null,null,null,null,null,"",null,"","","","","",""]
[null,null,null,null,null,null,null,null,null,null,"",null,"","","","","",""]
[null,null,null,null,null,null,null,null,null,null,"",null,"","","","","",""]
[null,null,null,null,null,null,null,null,null,null,"",null,"","","","","",""]
[null,null,null,null,null,null,null,null,null,null,"",null,"","","","","",""]
[null,null,null,null,null,null,null,null,null,null,"",null,"","","","","",""]
[null,null,null,null,null,null,null,null,null,null,"",null,"","","","","",""]
[null,null,null,null,null,null,null,null,null,null,"",null,"","","","","",""]
[null,null,null,null,null,null,null,null,null,null,"",null,"","","","","",""]
[null,null,null,null,null,null,null,null,null,null,"",null,"","","","","",""]
[null,null,null,null,null,null,null,null,null,null,"",null,"","","","","",""]
[null,null,null,null,null,null,null,null,null,null,"",null,"","","","","",""]
[null,null,null,null,null,null,null,null,null,null,"",null,"","","","","",""]
[null,null,null,null,null,null,null,null,null,null,"",null,"","","","","",""]
[null,null,null,null,null,null,null,null,null,null,"",null,"","","","","",""]
[null,null,null,null,null,null,null,null,null,null,"",null,"","","","","",""]
[null,null,null,null,null,null,null,null,null,null,"",null,"","","","","",""]
[null,null,null,null,null,null,null,null,null,null,"",null,"","","","","",""]
[null,null,null,null,null,null,null,null,null,null,"",null,"","","","","",""]
[null,null,null,null,null,null,null,null,null,null,"",null,"","","","","",""]
[null,null,null,null,null,null,null,null,null,null,"",null,"","","","","",""]
[null,null,null,null,null,null,null,null,null,null,"",null,"","","","","",""]
[null,null,null,null,null,null,null,null,null,null,"",null,"","","","","",""]
[null,null,null,null,null,null,null,null,null,null,"",null,"","","","","",""]
[null,null,null,null,null,null,null,null,null,null,"",null,"","","","","",""]
[null,null,null,null,null,null,null,null,null,null,"",null,"","","","","",""]
[null,null,null,null,null,null,null,null,null,null,"",null,"","","","","",""]
[null,null,null,null,null,null,null,null,null,null,"",null,"","","","","",""]
[null,null,null,null,null,null,null,null,null,null,"",null,"","","","","",""]
[null,null,null,null,null,null,null,null,null,null,"",null,"","","","","",""]
[null,null,null,null,null,null,null,null,null,null,"",null,"","","","","",""]
[null,null,null,null,null,null,null,null,null,null,"",null,"","","","","",""]
[null,null,null,null,null,null,null,null,null,null,"",null,"","","","","",""]
[null,null,null,null,null,null,null,null,null,null,"",null,"","","","","",""]
[null,null,null,null,null,null,null,null,null,null,"",null,"","","","","",""]
[null,null,null,null,null,null,null,null,null,null,"",null,"","","","","",""]
[null,null,null,null,null,null,null,null,null,null,"",null,"","","","","",""]
[null,null,null,null,null,null,null,null,null,null,"",null,"","","","","",""]
[null,null,null,null,null,null,null,null,null,null,"",null,"","","","","",""]
[null,null,null,null,null,null,null,null,null,null,"",null,"","","","","",""]
[null,null,null,null,null,null,null,null,null,null,"",null,"","","","","",""]
[null,null,null,null,null,null,null,null,null,null,"",null,"","","","","",""]
[null,null,null,null,null,null,null,null,null,null,"",null,"","","","","",""]
[null,null,null,null,null,null,null,null,null,null,"",null,"","","","","",""]
[null,null,null,null,null,null,null,null,null,null,"",null,"","","","","",""]
[null,null,null,null,null,null,null,null,null,null,"",null,"","","","","",""]
[null,null,null,null,null,null,null,null,null,null,"",null,"","","","","",""]
[null,null,null,null,null,null,null,null,null,null,"",null,"","","","","",""]
[null,null,null,null,null,null,null,null,null,null,"",null,"","","","","",""]
[null,null,null,null,null,null,null,null,null,null,{"$f":"IF(AND(E110>0,I110>0),\"Multiple Entered!\",IF(AND(F110>0,I110>0),\"Multiple Entered!\",IF(AND(E110>0,F110>0),\"Multiple Entered!\",IF(E110>0,\"Preferred Option\",IF(F110>0,\"2nd Option\",IF(I110>0,\"3rd Option\",\"\"))))))","v":""},null,{"$f":"IF(ISBLANK(B110), \"\", VLOOKUP(B110, LocationInfo, 9, FALSE))","v":""},{"$f":"IF(ISBLANK(B110), \"\", VLOOKUP(M110,ElecFactor,5,FALSE))","v":""},{"$f":"IF(ISBLANK(G110), \"\", VLOOKUP(G110,AreaConvert,2,FALSE)*F110)","v":""},{"$f":"IF(ISBLANK(H110),\"\",(VLOOKUP((VLOOKUP(VLOOKUP(B110,LocationInfo,2,FALSE),CBECSTypes,2,FALSE)),CBECSFactors,2,FALSE)*O110*H110/365))","v":""},{"$f":"IF(I110>0, I110/VLOOKUP(\"Electricity\", FuelCost,2,FALSE), \"\")","v":""},{"$f":"IF(ISBLANK(B110), \"\", IF(E110>0,E110,IF(F110>0,P110,IF(I110>0,Q110,\"\")))*N110)","v":""}]
[null,null,null,null,null,null,null,null,null,null,"",null,"","","","","",""]
[null,null,null,null,null,null,null,null,null,null,"",null,"","","","","",""]
[null,null,null,null,null,null,null,null,null,null,"",null,"","","","","",""]
[null,null,null,null,null,null,null,null,null,null,"",null,"","","","","",""]
[null,null,null,null,null,null,null,null,null,null,"",null,"","","","","",""]
[null,null,null,null,null,null,null,null,null,null,"",null,"","","","","",""]
[null,null,null,null,null,null,null,null,null,null,"",null,"","","","","",""]
[null,null,null,null,null,null,null,null,null,null,"",null,"","","","","",""]
[null,null,null,null,null,null,null,null,null,null,"",null,"","","","","",""]
[null,null,null,null,null,null,null,null,null,null,"",null,"","","","","",""]
[null,null,null,null,null,null,null,null,null,null,"",null,"","","","","",""]
[null,null,null,null,null,null,null,null,null,null,"",null,"","","","","",""]
[null,null,null,null,null,null,null,null,null,null,"",null,"","","","","",""]
[null,null,null,null,null,null,null,null,null,null,"",null,"","","","","",""]
[null,null,null,null,null,null,null,null,null,null,"",null,"","","","","",""]
[null,null,null,null,null,null,null,null,null,null,"",null,"","","","","",""]
[null,null,null,null,null,null,null,null,null,null,"",null,"","","","","",""]
[null,null,null,null,null,null,null,null,null,null,"",null,"","","","","",""]
[null,null,null,null,null,null,null,null,null,null,"",null,"","","","","",""]
[null,null,null,null,null,null,null,null,null,null,"",null,"","","","","",""]
[null,null,null,null,null,null,null,null,null,null,"",null,"","","","","",""]
[null,null,null,null,null,null,null,null,null,null,"",null,"","","","","",""]
[null,null,null,null,null,null,null,null,null,null,"",null,"","","","","",""]
[null,null,null,null,null,null,null,null,null,null,"",null,"","","","","",""]
[null,null,null,null,null,null,null,null,null,null,"",null,"","","","","",""]
[null,null,null,null,null,null,null,null,null,null,"",null,"","","","","",""]
[null,null,null,null,null,null,null,null,null,null,"",null,"","","","","",""]
[null,null,null,null,null,null,null,null,null,null,"",null,"","","","","",""]
[null,null,null,null,null,null,null,null,null,null,"",null,"","","","","",""]
[null,null,null,null,null,null,null,null,null,null,"",null,"","","","","",""]
[null,null,null,null,null,null,null,null,null,null,"",null,"","","","","",""]
[null,null,null,null,null,null,null,null,null,null,"",null,"","","","","",""]
[null,null,null,null,null,null,null,null,null,null,"",null,"","","","","",""]
[null,null,null,null,null,null,null,null,null,null,"",null,"","","","","",""]
[null,null,null,null,null,null,null,null,null,null,"",null,"","","","","",""]
[null,null,null,null,null,null,null,null,null,null,"",null,"","","","","",""]
[null,null,null,null,null,null,null,null,null,null,"",null,"","","","","",""]
[null,null,null,null,null,null,null,null,null,null,"",null,"","","","","",""]
[null,null,null,null,null,null,null,null,null,null,"",null,"","","","","",""]
[null,null,null,null,null,null,null,null,null,null,"",null,"","","","","",""]

{"sheet":"3-Nat Gas & Heating Oil","index":3,"n_rows":150,"n_cols":27,"rows_kept":150,"cut":false,"hidden":false,"merged":[[19,26,21,31],[22,26,24,31],[1,1,1,2],[3,1,3,11],[6,1,6,11],[8,1,8,4],[9,7,9,9],[8,5,8,11],[9,3,10,3],[9,1,10,1],[9,12,10,12],[9,10,9,11],[9,4,10,4],[9,2,10,2],[9,5,9,6],[1,19,1,21],[7,15,7,16],[9,14,9,20],[3,24,4,31],[7,24,9,24],[9,22,9,23],[7,25,9,31],[15,26,18,31],[16,24,17,25],[13,25,14,31],[5,25,6,31],[11,25,12,31],[10,25,10,31]]}
[]
[null,"Click for Checklist",null,"Go to EAR",null,null,null,null,null,"Required field",null,"Input not required"]
[]
[null,{"$f":"'1-Production Info'!C10& \" Natural Gas & Fuel Oil\"","v":" Natural Gas & Fuel Oil"},null,null,null,null,null,null,null,null,null,null,null,null,null,null,null,null,null,null,null,null,null,null,"Instructions"]
[]
[null,"Comments",null,null,null,null,null,null,null,null,null,null,null,null,null,null,null,null,null,null,null,null,null,null,null,"1. General Natural Gas & Heating Oil Questions:  Enter comments about natural gas and heating oil use for your production (optional)"]
[]
[null,null,null,null,null,null,null,null,null,null,null,null,null,null,"Status:",{"$f":"IF(ISERROR(X12),\"Data Input Error\",IF(X12<>SUM(X13:X15),\"Multiple Options Entered\",IF(X12>0,\"Data Entered Correctly\",\"Data Not Entered\")))","v":"Data Not Entered"},null,null,null,null,null,null,null,null,null,"2. Location-Column B: Select a Location Name from the dropdown box.  \nLocations are entered in Column B of the Production Info Tab"]
[null,"Locations entered in Production Info tab",null,null,null,"Enter  information only for ONE option for each location"]
[null,"Location Name","From Date (optional)","End Date (optional)","Fuel Type","PREFERRED OPTION",null,"Second Option",null,null,"Third Option",null,"Option Selected",null,"Natural Gas & Heating Oil Calculations",null,null,null,null,null,null,null,"Emission Summary"]
[null,null,null,null,null,"Fuel Use Amount","Fuel Use Units","Area","Units","Days Used","Total Cost of Fuel (US$)","Cost Data Source",null,null,"Standard Fuel Use Amount","Standard Fuel Use Units","EF (kg CO2/unit)","Square Footage","Fuel Use, CBECs-Est. (Std Units)","Fuel Use, Cost-Est. (Std Unit)","CO2 emissions (kg)",null,"Emissions","kg CO2",null,"3. From & End Date (optional)- Column C & D: enter the start and end date of the location electricity information (e.g., the dates on the invoice)"]
[null,null,null,null,null,null,null,null,null,null,null,null,{"$f":"IF(AND(F12>0,K12>0),\"Multiple Values!\",IF(AND(H12>0,K12>0),\"Multiple Values!\",IF(AND(F12>0,H12>0),\"Multiple Values!\",IF(F12>0,\"Preferred Option\",IF(H12>0,\"2nd Option\",IF(K12>0,\"3rd Option\",\"\"))))))","v":""},null,{"$f":"IF(ISBLANK(F12), \"\", (IF(E12=\"Natural gas\", VLOOKUP(G12,NGConvert,2,FALSE),IF(E12=\"Fuel Oil\", VLOOKUP(G12,FOConvert,2,FALSE),\"\"))*F12))","v":""},{"$f":"IF(E12=\"Natural Gas\", \"Cubic Feet\", IF(E12=\"Fuel Oil\", \"Gallons\",\"\"))","v":""},{"$f":"IF(ISBLANK(E12), \"\", VLOOKUP(E12,FuelFactors, 2, FALSE))","v":""},{"$f":"IF(H12>0, (VLOOKUP(I12,AreaConvert,2,FALSE)*H12), \"\")","v":""},{"$f":"IF(ISBLANK(J12),\"\",((VLOOKUP((VLOOKUP(VLOOKUP(B12,LocationInfo,2,FALSE),CBECSTypes,2,FALSE)),CBECSFactors,IF(E12=\"Natural Gas\",3,4),FALSE))*R12*J12/365))","v":""},{"$f":"IF(ISBLANK(K12), \"\", K12/VLOOKUP(E12,FuelCost,2,FALSE))","v":""},{"$f":"IF((F12+H12+K12)=0,\"\",IF(F12>0,O12,IF(J12>0,S12,IF(K12>0,T12,\"\")))*Q12)","v":""},null,"Total",{"$f":"SUM(U:U)","v":0},null,"4. Fuel Type- Select the fuel type (natural gas or heating oil) from the dropdown list in column D"]
[null,null,null,null,null,null,null,null,null,null,null,null,{"$f":"IF(AND(F13>0,K13>0),\"Multiple Values!\",IF(AND(H13>0,K13>0),\"Multiple Values!\",IF(AND(F13>0,H13>0),\"Multiple Values!\",IF(F13>0,\"Preferred Option\",IF(H13>0,\"2nd Option\",IF(K13>0,\"3rd Option\",\"\"))))))","v":""},null,{"$f":"IF(ISBLANK(F13), \"\", (IF(E13=\"Natural gas\", VLOOKUP(G13,NGConvert,2,FALSE),IF(E13=\"Fuel Oil\", VLOOKUP(G13,FOConvert,2,FALSE),\"\"))*F13))","v":""},{"$f":"IF(E13=\"Natural Gas\", \"Cubic Feet\", IF(E13=\"Fuel Oil\", \"Gallons\",\"\"))","v":""},{"$f":"IF(ISBLANK(E13), \"\", VLOOKUP(E13,FuelFactors, 2, FALSE))","v":""},{"$f":"IF(H13>0, (VLOOKUP(I13,AreaConvert,2,FALSE)*H13), \"\")","v":""},{"$f":"IF(ISBLANK(J13),\"\",((VLOOKUP((VLOOKUP(VLOOKUP(B13,LocationInfo,2,FALSE),CBECSTypes,2,FALSE)),CBECSFactors,IF(E13=\"Natural Gas\",3,4),FALSE))*R13*J13/365))","v":""},{"$f":"IF(ISBLANK(K13), \"\", K13/VLOOKUP(E13,FuelCost,2,FALSE))","v":""},{"$f":"IF((F13+H13+K13)=0,\"\",IF(F13>0,O13,IF(J13>0,S13,IF(K13>0,T13,\"\")))*Q13)","v":""},null,"Preferred Option (fuel use)",{"$f":"SUMIF(F:F, \">0\",U:U )","v":0}]
[null,null,null,null,null,null,null,null,null,null,null,null,"",null,"","","","","","","",null,"2nd Option (square footage)",{"$f":"SUMIF(S:S, \">0\",U:U )","v":0},null,"5. Enter data for ONE option for Natural Gas or Heating Oil Information for each location entered:"]
[null,null,null,null,null,null,null,null,null,null,null,null,"",null,"","","","","","","",null,"3rd Option (cost)",{"$f":"SUMIF(T:T, \">0\",U:U )","v":0}]
[null,null,null,null,null,null,null,null,null,null,null,null,"",null,"","","","","","","",null,null,null,null,null,"5.1 Preferred Option- Actual Fuel Use: Enter the actual natural gas or heating oil used for the selected location in column F and select the associated unit (e.g., cubic feet) for the fuel use amount in column G"]
[null,null,null,null,null,null,null,null,null,null,null,null,"",null,"","","","","","",""]
[null,null,null,null,null,null,null,null,null,null,null,null,"",null,"","","","","","",""]
[null,null,null,null,null,null,null,null,null,null,null,null,"",null,"","","","","","",""]
[null,null,null,null,null,null,null,null,null,null,null,null,"",null,"","","","","","","",null,null,null,null,null,"5.2 Second Option- Area: Enter the total area of the location in column H, select the area units from column I (e.g., square feet), and enter the number of days the location was used in column J"]
[null,null,null,null,null,null,null,null,null,null,null,null,"",null,"","","","","","",""]
[null,null,null,null,null,null,null,null,null,null,null,null,"",null,"","","","","","",""]
[null,null,null,null,null,null,null,null,null,null,null,null,"",null,"","","","","","","",null,null,null,null,null,"5.3 Third Option- Cost: Enter the total cost of natural gas or fuel oil for the location in Column K, and select the cost data source (invoice or rent) from column L"]
[null,null,null,null,null,null,null,null,null,null,null,null,"",null,"","","","","","",""]
[null,null,null,null,null,null,null,null,null,null,null,null,"",null,"","","","","","",""]
[null,null,null,null,null,null,null,null,null,null,null,null,"",null,"","","","","","",""]
[null,null,null,null,null,null,null,null,null,null,null,null,"",null,"","","","","","",""]
[null,null,null,null,null,null,null,null,null,null,null,null,"",null,"","","","","","",""]
[null,null,null,null,null,null,null,null,null,null,null,null,"",null,"","","","","","",""]
[null,null,null,null,null,null,null,null,null,null,null,null,"",null,"","","","","","",""]
[null,null,null,null,null,null,null,null,null,null,null,null,"",null,"","","","","","",""]
[null,null,null,null,null,null,null,null,null,null,null,null,"",null,"","","","","","",""]
[null,null,null,null,null,null,null,null,null,null,null,null,"",null,"","","","","","",""]
[null,null,null,null,null,null,null,null,null,null,null,null,"",null,"","","","","","",""]
[null,null,null,null,null,null,null,null,null,null,null,null,"",null,"","","","","","",""]
[null,null,null,null,null,null,null,null,null,null,null,null,"",null,"","","","","","",""]
[null,null,null,null,null,null,null,null,null,null,null,null,"",null,"","","","","","",""]
[null,null,null,null,null,null,null,null,null,null,null,null,"",null,"","","","","","",""]
[null,null,null,null,null,null,null,null,null,null,null,null,"",null,"","","","","","",""]
[null,null,null,null,null,null,null,null,null,null,null,null,"",null,"","","","","","",""]
[null,null,null,null,null,null,null,null,null,null,null,null,"",null,"","","","","","",""]
[null,null,null,null,null,null,null,null,null,null,null,null,"",null,"","","","","","",""]
[null,null,null,null,null,null,null,null,null,null,null,null,"",null,"","","","","","",""]
[null,null,null,null,null,null,null,null,null,null,null,null,"",null,"","","","","","",""]
[null,null,null,null,null,null,null,null,null,null,null,null,{"$f":"IF(AND(F45>0,K45>0),\"Multiple Values!\",IF(AND(H45>0,K45>0),\"Multiple Values!\",IF(AND(F45>0,H45>0),\"Multiple Values!\",IF(F45>0,\"Preferred Option\",IF(H45>0,\"2nd Option\",IF(K45>0,\"3rd Option\",\"\"))))))","v":""},null,{"$f":"IF(ISBLANK(F45), \"\", (IF(E45=\"Natural gas\", VLOOKUP(G45,NGConvert,2,FALSE),IF(E45=\"Fuel Oil\", VLOOKUP(G45,FOConvert,2,FALSE),\"\"))*F45))","v":""},{"$f":"IF(E45=\"Natural Gas\", \"Cubic Feet\", IF(E45=\"Fuel Oil\", \"Gallons\",\"\"))","v":""},{"$f":"IF(ISBLANK(E45), \"\", VLOOKUP(E45,FuelFactors, 2, FALSE))","v":""},{"$f":"IF(H45>0, (VLOOKUP(I45,AreaConvert,2,FALSE)*H45), \"\")","v":""},{"$f":"IF(ISBLANK(J45),\"\",((VLOOKUP((VLOOKUP(VLOOKUP(B45,LocationInfo,2,FALSE),CBECSTypes,2,FALSE)),CBECSFactors,IF(E45=\"Natural Gas\",3,4),FALSE))*R45*J45/365))","v":""},{"$f":"IF(ISBLANK(K45), \"\", K45/VLOOKUP(E45,FuelCost,2,FALSE))","v":""},{"$f":"IF((F45+H45+K45)=0,\"\",IF(F45>0,O45,IF(J45>0,S45,IF(K45>0,T45,\"\")))*Q45)","v":""}]
[null,null,null,null,null,null,null,null,null,null,null,null,"",null,"","","","","","",""]
[null,null,null,null,null,null,null,null,null,null,null,null,"",null,"","","","","","",""]
[null,null,null,null,null,null,null,null,null,null,null,null,"",null,"","","","","","",""]
[null,null,null,null,null,null,null,null,null,null,null,null,"",null,"","","","","","",""]
[null,null,null,null,null,null,null,null,null,null,null,null,"",null,"","","","","","",""]
[null,null,null,null,null,null,null,null,null,null,null,null,"",null,"","","","","","",""]
[null,null,null,null,null,null,null,null,null,null,null,null,"",null,"","","","","","",""]
[null,null,null,null,null,null,null,null,null,null,null,null,"",null,"","","","","","",""]
[null,null,null,null,null,null,null,null,null,null,null,null,"",null,"","","","","","",""]
[null,null,null,null,null,null,null,null,null,null,null,null,"",null,"","","","","","",""]
[null,null,null,null,null,null,null,null,null,null,null,null,"",null,"","","","","","",""]
[null,null,null,null,null,null,null,null,null,null,null,null,"",null,"","","","","","",""]
[null,null,null,null,null,null,null,null,null,null,null,null,"",null,"","","","","","",""]
[null,null,null,null,null,null,null,null,null,null,null,null,"",null,"","","","","","",""]
[null,null,null,null,null,null,null,null,null,null,null,null,"",null,"","","","","","",""]
[null,null,null,null,null,null,null,null,null,null,null,null,"",null,"","","","","","",""]
[null,null,null,null,null,null,null,null,null,null,null,null,"",null,"","","","","","",""]
[null,null,null,null,null,null,null,null,null,null,null,null,"",null,"","","","","","",""]
[null,null,null,null,null,null,null,null,null,null,null,null,"",null,"","","","","","",""]
[null,null,null,null,null,null,null,null,null,null,null,null,"",null,"","","","","","",""]
[null,null,null,null,null,null,null,null,null,null,null,null,"",null,"","","","","","",""]
[null,null,null,null,null,null,null,null,null,null,null,null,"",null,"","","","","","",""]
[null,null,null,null,null,null,null,null,null,null,null,null,"",null,"","","","","","",""]
[null,null,null,null,null,null,null,null,null,null,null,null,"",null,"","","","","","",""]
[null,null,null,null,null,null,null,null,null,null,null,null,"",null,"","","","","","",""]
[null,null,null,null,null,null,null,null,null,null,null,null,"",null,"","","","","","",""]
[null,null,null,null,null,null,null,null,null,null,null,null,"",null,"","","","","","",""]
[null,null,null,null,null,null,null,null,null,null,null,null,"",null,"","","","","","",""]
[null,null,null,null,null,null,null,null,null,null,null,null,"",null,"","","","","","",""]
[null,null,null,null,null,null,null,null,null,null,null,null,"",null,"","","","","","",""]
[null,null,null,null,null,null,null,null,null,null,null,null,"",null,"","","","","","",""]
[null,null,null,null,null,null,null,null,null,null,null,null,"",null,"","","","","","",""]
[null,null,null,null,null,null,null,null,null,null,null,null,"",null,"","","","","","",""]
[null,null,null,null,null,null,null,null,null,null,null,null,"",null,"","","","","","",""]
[null,null,null,null,null,null,null,null,null,null,null,null,"",null,"","","","","","",""]
[null,null,null,null,null,null,null,null,null,null,null,null,"",null,"","","","","","",""]
[null,null,null,null,null,null,null,null,null,null,null,null,"",null,"","","","","","",""]
[null,null,null,null,null,null,null,null,null,null,null,null,"",null,"","","","","","",""]
[null,null,null,null,null,null,null,null,null,null,null,null,"",null,"","","","","","",""]
[null,null,null,null,null,null,null,null,null,null,null,null,"",null,"","","","","","",""]
[null,null,null,null,null,null,null,null,null,null,null,null,"",null,"","","","","","",""]
[null,null,null,null,null,null,null,null,null,null,null,null,"",null,"","","","","","",""]
[null,null,null,null,null,null,null,null,null,null,null,null,"",null,"","","","","","",""]
[null,null,null,null,null,null,null,null,null,null,null,null,"",null,"","","","","","",""]
[null,null,null,null,null,null,null,null,null,null,null,null,"",null,"","","","","","",""]
[null,null,null,null,null,null,null,null,null,null,null,null,"",null,"","","","","","",""]
[null,null,null,null,null,null,null,null,null,null,null,null,"",null,"","","","","","",""]
[null,null,null,null,null,null,null,null,null,null,null,null,"",null,"","","","","","",""]
[null,null,null,null,null,null,null,null,null,null,null,null,"",null,"","","","","","",""]
[null,null,null,null,null,null,null,null,null,null,null,null,"",null,"","","","","","",""]
[null,null,null,null,null,null,null,null,null,null,null,null,"",null,"","","","","","",""]
[null,null,null,null,null,null,null,null,null,null,null,null,"",null,"","","","","","",""]
[null,null,null,null,null,null,null,null,null,null,null,null,"",null,"","","","","","",""]
[null,null,null,null,null,null,null,null,null,null,null,null,"",null,"","","","","","",""]
[null,null,null,null,null,null,null,null,null,null,null,null,"",null,"","","","","","",""]
[null,null,null,null,null,null,null,null,null,null,null,null,"",null,"","","","","","",""]
[null,null,null,null,null,null,null,null,null,null,null,null,"",null,"","","","","","",""]
[null,null,null,null,null,null,null,null,null,null,null,null,"",null,"","","","","","",""]
[null,null,null,null,null,null,null,null,null,null,null,null,"",null,"","","","","","",""]
[null,null,null,null,null,null,null,null,null,null,null,null,"",null,"","","","","","",""]
[null,null,null,null,null,null,null,null,null,null,null,null,"",null,"","","","","","",""]
[null,null,null,null,null,null,null,null,null,null,null,null,"",null,"","","","","","",""]
[null,null,null,null,null,null,null,null,null,null,null,null,"",null,"","","","","","",""]
[null,null,null,null,null,null,null,null,null,null,null,null,{"$f":"IF(AND(F109>0,K109>0),\"Multiple Values!\",IF(AND(H109>0,K109>0),\"Multiple Values!\",IF(AND(F109>0,H109>0),\"Multiple Values!\",IF(F109>0,\"Preferred Option\",IF(H109>0,\"2nd Option\",IF(K109>0,\"3rd Option\",\"\"))))))","v":""},null,{"$f":"IF(ISBLANK(F109), \"\", (IF(E109=\"Natural gas\", VLOOKUP(G109,NGConvert,2,FALSE),IF(E109=\"Fuel Oil\", VLOOKUP(G109,FOConvert,2,FALSE),\"\"))*F109))","v":""},{"$f":"IF(E109=\"Natural Gas\", \"Cubic Feet\", IF(E109=\"Fuel Oil\", \"Gallons\",\"\"))","v":""},{"$f":"IF(ISBLANK(E109), \"\", VLOOKUP(E109,FuelFactors, 2, FALSE))","v":""},{"$f":"IF(H109>0, (VLOOKUP(I109,AreaConvert,2,FALSE)*H109), \"\")","v":""},{"$f":"IF(ISBLANK(J109),\"\",((VLOOKUP((VLOOKUP(VLOOKUP(B109,LocationInfo,2,FALSE),CBECSTypes,2,FALSE)),CBECSFactors,IF(E109=\"Natural Gas\",3,4),FALSE))*R109*J109/365))","v":""},{"$f":"IF(ISBLANK(K109), \"\", K109/VLOOKUP(E109,FuelCost,2,FALSE))","v":""},{"$f":"IF((F109+H109+K109)=0,\"\",IF(F109>0,O109,IF(J109>0,S109,IF(K109>0,T109,\"\")))*Q109)","v":""}]
[null,null,null,null,null,null,null,null,null,null,null,null,"",null,"","","","","","",""]
[null,null,null,null,null,null,null,null,null,null,null,null,"",null,"","","","","","",""]
[null,null,null,null,null,null,null,null,null,null,null,null,"",null,"","","","","","",""]
[null,null,null,null,null,null,null,null,null,null,null,null,"",null,"","","","","","",""]
[null,null,null,null,null,null,null,null,null,null,null,null,"",null,"","","","","","",""]
[null,null,null,null,null,null,null,null,null,null,null,null,"",null,"","","","","","",""]
[null,null,null,null,null,null,null,null,null,null,null,null,"",null,"","","","","","",""]
[null,null,null,null,null,null,null,null,null,null,null,null,"",null,"","","","","","",""]
[null,null,null,null,null,null,null,null,null,null,null,null,"",null,"","","","","","",""]
[null,null,null,null,null,null,null,null,null,null,null,null,"",null,"","","","","","",""]
[null,null,null,null,null,null,null,null,null,null,null,null,"",null,"","","","","","",""]
[null,null,null,null,null,null,null,null,null,null,null,null,"",null,"","","","","","",""]
[null,null,null,null,null,null,null,null,null,null,null,null,"",null,"","","","","","",""]
[null,null,null,null,null,null,null,null,null,null,null,null,"",null,"","","","","","",""]
[null,null,null,null,null,null,null,null,null,null,null,null,"",null,"","","","","","",""]
[null,null,null,null,null,null,null,null,null,null,null,null,"",null,"","","","","","",""]
[null,null,null,null,null,null,null,null,null,null,null,null,"",null,"","","","","","",""]
[null,null,null,null,null,null,null,null,null,null,null,null,"",null,"","","","","","",""]
[null,null,null,null,null,null,null,null,null,null,null,null,"",null,"","","","","","",""]
[null,null,null,null,null,null,null,null,null,null,null,null,"",null,"","","","","","",""]
[null,null,null,null,null,null,null,null,null,null,null,null,"",null,"","","","","","",""]
[null,null,null,null,null,null,null,null,null,null,null,null,"",null,"","","","","","",""]
[null,null,null,null,null,null,null,null,null,null,null,null,"",null,"","","","","","",""]
[null,null,null,null,null,null,null,null,null,null,null,null,"",null,"","","","","","",""]
[null,null,null,null,null,null,null,null,null,null,null,null,"",null,"","","","","","",""]
[null,null,null,null,null,null,null,null,null,null,null,null,"",null,"","","","","","",""]
[null,null,null,null,null,null,null,null,null,null,null,null,"",null,"","","","","","",""]
[null,null,null,null,null,null,null,null,null,null,null,null,"",null,"","","","","","",""]
[null,null,null,null,null,null,null,null,null,null,null,null,"",null,"","","","","","",""]
[null,null,null,null,null,null,null,null,null,null,null,null,"",null,"","","","","","",""]
[null,null,null,null,null,null,null,null,null,null,null,null,"",null,"","","","","","",""]
[null,null,null,null,null,null,null,null,null,null,null,null,"",null,"","","","","","",""]
[null,null,null,null,null,null,null,null,null,null,null,null,"",null,"","","","","","",""]
[null,null,null,null,null,null,null,null,null,null,null,null,"",null,"","","","","","",""]
[null,null,null,null,null,null,null,null,null,null,null,null,"",null,"","","","","","",""]
[null,null,null,null,null,null,null,null,null,null,null,null,"",null,"","","","","","",""]
[null,null,null,null,null,null,null,null,null,null,null,null,"",null,"","","","","","",""]
[null,null,null,null,null,null,null,null,null,null,null,null,"",null,"","","","","","",""]
[null,null,null,null,null,null,null,null,null,null,null,null,"",null,"","","","","","",""]
[null,null,null,null,null,null,null,null,null,null,null,null,"",null,"","","","","","",""]
[null,null,null,null,null,null,null,null,null,null,null,null,"",null,"","","","","","",""]

{"sheet":"4-Fuel","index":4,"n_rows":150,"n_cols":26,"rows_kept":150,"cut":false,"hidden":false,"merged":[[23,24,24,24],[26,24,27,24],[26,25,27,29],[28,24,29,29],[5,23,6,29],[12,23,12,29],[18,24,22,29],[23,25,24,29],[25,25,25,29],[10,22,11,22],[11,23,11,29],[14,24,17,29],[1,1,1,2],[3,22,4,29],[6,22,8,22],[7,23,7,29],[8,23,10,29],[1,19,1,21],[5,1,6,1],[3,1,3,10],[9,6,9,10],[10,20,10,21],[8,14,8,15],[10,4,11,4],[10,6,10,7],[10,5,11,5],[5,2,6,2],[10,13,10,18],[10,1,11,1],[10,11,11,11],[10,3,11,3],[9,1,9,5],[10,2,11,2],[10,8,10,9],[6,4,7,10],[5,4,5,10]]}
[]
[null,"Click for Checklist",null,"Go to EAR",null,null,null,null,"Required field",null,"Input not required"]
[]
[null,{"$f":"'1-Production Info'!C10& \" Fuel\"","v":" Fuel"},null,null,null,null,null,null,null,null,null,null,null,null,null,null,null,null,null,null,null,null,"Instructions"]
[]
[null,"How many hybrid vehicles did you use?",null,null,"Comments",null,null,null,null,null,null,null,null,null,null,null,null,null,null,null,null,null,null,"1. General Fuel Questions:  Select Yes or No from the dropdowns to identify if you used hybrid vehicles or enforced the no-idling policy on your set.  Enter comments about your production fuel use (optional)"]
[]
[null,"Did you enforce the \"No-Idling\" polIcy on your set?",null,null,null,null,null,null,null,null,null,null,null,null,null,null,null,null,null,null,null,null,null,"2. Equipment Type: Select an equipment type from the dropdown list in column B.  If the equipment type is unknown or you would like to enter information for multiple types of equipment, select “Other\""]
[null,null,null,null,null,null,null,null,null,null,null,null,null,"Status:",{"$f":"IF(ISERROR(V13),\"Data Input Error\",IF(V13<>SUM(V14:V16),\"Multiple Options Entered\",IF(V13>0,\"Data Entered Correctly\",\"Data Not Entered\")))","v":"Data Not Entered"},null,null,null,null,null,null,null,null,"3. From & End Date (optional): Enter the start and end date of the equipment fuel use information information into columns C and D, respectively"]
[null,"Select equipment and fuel type.  Dates and reason for use are optional.",null,null,null,null,"Enter all information for ONE option for each equipment and fuel type combination"]
[null,"Equipment Type","From Date (optional)","End Date (optional)","Reason for Use (Optional)","Fuel Type","PREFERRED OPTION",null,"Second Option",null,"Third Option","Option Selected",null,"Fuel Calculations",null,null,null,null,null,null,"Emission Summary"]
[null,null,null,null,null,null,"Fuel Use Amount","Fuel Use Units","Total Cost of Fuel (US$)","Average US$ per gallon","Miles Driven (Vehicles) ",null,null,"Equipment Type","Standard Fuel Use Amount (gal)","Fuel EF (kg CO2/gal)","Fuel Use - Cost Est. (Gallons)","Fuel Use - Miles Est. (Gallons)","CO2 emissions (kg)","Fuel Use - All","Emissions","kg CO2",null,"4. Reason for Use (optional): select the reason for the equipment use (e.g., personal, production) from the dropdown list in column E"]
[null,null,null,null,null,null,null,null,null,null,null,{"$f":"IF(AND(G13>0,K13>0),\"Multiple Entered!\",IF(AND(I13>0,K13>0),\"Multiple Entered!\",IF(AND(G13>0,I13>0),\"Multiple Entered!\",IF(G13>0,\"Preferred Option\",IF(I13>0,\"2nd Option\",IF(K13>0,\"3rd Option\",\"\"))))))","v":""},null,{"$f":"IF(ISNA(VLOOKUP(B13,EquipmentTypes,2,FALSE)),\"\",(VLOOKUP(B13,EquipmentTypes,2,FALSE)))","v":""},{"$f":"IF(ISBLANK(G13), \"\", (VLOOKUP(H13,FuelUnitsConvert, 2,FALSE)*G13))","v":""},{"$f":"IF(ISBLANK(F13), \"\", VLOOKUP(F13,FuelFactors,2,FALSE))","v":""},{"$f":"IF(ISBLANK(I13), \"\", I13/(IF(ISBLANK(J13),VLOOKUP(F13,FuelCost,2,FALSE),J13)))","v":""},{"$f":"IF(K13>0, K13/VLOOKUP(B13, MPG, 2, FALSE), \"\")","v":""},{"$f":"IF(L13<>\"\", IF(G13>0,O13,IF(I13>0,Q13, IF(K13>0,R13,\"\")))*P13, \"\")","v":""},{"$f":"IF(ISNUMBER(O13),O13,IF(ISNUMBER(Q13),Q13,IF(ISNUMBER(R13),R13,\"\")))","v":""},"Total",{"$f":"SUM(S:S)","v":0},null,"5. Fuel Type: Select the type of fuel used for the equipment from the dropdown list in column F"]
[null,null,null,null,null,null,null,null,null,null,null,{"$f":"IF(AND(G14>0,K14>0),\"Multiple Entered!\",IF(AND(I14>0,K14>0),\"Multiple Entered!\",IF(AND(G14>0,I14>0),\"Multiple Entered!\",IF(G14>0,\"Preferred Option\",IF(I14>0,\"2nd Option\",IF(K14>0,\"3rd Option\",\"\"))))))","v":""},null,"","","",{"$f":"IF(ISBLANK(I14), \"\", I14/(IF(ISBLANK(J14),VLOOKUP(F14,FuelCost,2,FALSE),J14)))","v":""},"",{"$f":"IF(L14<>\"\", IF(G14>0,O14,IF(I14>0,Q14, IF(K14>0,R14,\"\")))*P14, \"\")","v":""},{"$f":"IF(ISNUMBER(O14),O14,IF(ISNUMBER(Q14),Q14,IF(ISNUMBER(R14),R14,\"\")))","v":""},"Preferred Option (fuel use)",{"$f":"SUMIF(G:G, \">0\",S:S )","v":0},null,"6. Enter data for ONE option for Fuel Use:"]
[null,null,null,null,null,null,null,null,null,null,null,"",null,"","","","","","","","2nd Option (cost)",{"$f":"SUMIF(I:I, \">0\",S:S )","v":0},null,null,"6.1 Preferred Option- Actual Fuel Use:  Enter the actual fuel use in column G and select the associated units (e.g., gallons) from the dropdown list in column H"]
[null,null,null,null,null,null,null,null,null,null,null,"",null,"","","","","","","","3rd Option (miles)",{"$f":"SUMIF(K:K, \">0\",S:S )","v":0}]
[null,null,null,null,null,null,null,null,null,null,null,"",null,"","","","","","",""]
[null,null,null,null,null,null,null,null,null,null,null,"",null,"","","","","","",""]
[null,null,null,null,null,null,null,null,null,null,null,"",null,"","","","","","","",null,null,null,null,"6.2 Second Option- Cost: Enter the total cost of the equipment fuel in US dollars in column I.  Enter the average cost per gallon of the fuel in column J.  If the average cost is unknown, the following links have regional cost information:  "]
[null,null,null,null,null,null,null,null,null,null,null,"",null,"","","","","","",""]
[null,null,null,null,null,null,null,null,null,null,null,"",null,"","","","","","",""]
[null,null,null,null,null,null,null,null,null,null,null,"",null,"","","","","","",""]
[null,null,null,null,null,null,null,null,null,null,null,"",null,"","","","","","",""]
[null,null,null,null,null,null,null,null,null,null,null,"",null,"","","","","","","",null,null,null,null,"Gasoline:","http://www.eia.doe.gov/oil_gas/petroleum/data_publications/wrgp/mogas_home_page.html "]
[null,null,null,null,null,null,null,null,null,null,null,"",null,"","","","","","",""]
[null,null,null,null,null,null,null,null,null,null,null,"",null,"","","","","","","",null,null,null,null,"Diesel:","http://tonto.eia.doe.gov/oog/info/wohdp/diesel.asp "]
[null,null,null,null,null,null,null,null,null,null,null,"",null,"","","","","","","",null,null,null,null,"Alternative Fuels:","http://www.altfuelprices.com/"]
[null,null,null,null,null,null,null,null,null,null,null,"",null,"","","","","","",""]
[null,null,null,null,null,null,null,null,null,null,null,"",null,"","","","","","","",null,null,null,null,"6.3 Third Option- Distance: This option applies only to vehicles.  Enter the total miles driven for the selected vehicle type"]
[null,null,null,null,null,null,null,null,null,null,null,"",null,"","","","","","",""]
[null,null,null,null,null,null,null,null,null,null,null,"",null,"","","","","","",""]
[null,null,null,null,null,null,null,null,null,null,null,"",null,"","","","","","",""]
[null,null,null,null,null,null,null,null,null,null,null,"",null,"","","","","","",""]
[null,null,null,null,null,null,null,null,null,null,null,"",null,"","","","","","",""]
[null,null,null,null,null,null,null,null,null,null,null,"",null,"","","","","","",""]
[null,null,null,null,null,null,null,null,null,null,null,"",null,"","","","","","",""]
[null,null,null,null,null,null,null,null,null,null,null,"",null,"","","","","","",""]
[null,null,null,null,null,null,null,null,null,null,null,"",null,"","","","","","",""]
[null,null,null,null,null,null,null,null,null,null,null,{"$f":"IF(AND(G39>0,K39>0),\"Multiple Entered!\",IF(AND(I39>0,K39>0),\"Multiple Entered!\",IF(AND(G39>0,I39>0),\"Multiple Entered!\",IF(G39>0,\"Preferred Option\",IF(I39>0,\"2nd Option\",IF(K39>0,\"3rd Option\",\"\"))))))","v":""},null,{"$f":"IF(ISNA(VLOOKUP(B39,EquipmentTypes,2,FALSE)),\"\",(VLOOKUP(B39,EquipmentTypes,2,FALSE)))","v":""},{"$f":"IF(ISBLANK(G39), \"\", (VLOOKUP(H39,FuelUnitsConvert, 2,FALSE)*G39))","v":""},{"$f":"IF(ISBLANK(F39), \"\", VLOOKUP(F39,FuelFactors,2,FALSE))","v":""},{"$f":"IF(ISBLANK(I39), \"\", I39/(IF(ISBLANK(J39),VLOOKUP(F39,FuelCost,2,FALSE),J39)))","v":""},{"$f":"IF(K39>0, K39/VLOOKUP(B39, MPG, 2, FALSE), \"\")","v":""},{"$f":"IF(L39<>\"\", IF(G39>0,O39,IF(I39>0,Q39, IF(K39>0,R39,\"\")))*P39, \"\")","v":""},{"$f":"IF(ISNUMBER(O39),O39,IF(ISNUMBER(Q39),Q39,IF(ISNUMBER(R39),R39,\"\")))","v":""}]
[null,null,null,null,null,null,null,null,null,null,null,"",null,"","","","","","",""]
[null,null,null,null,null,null,null,null,null,null,null,"",null,"","","","","","",""]
[null,null,null,null,null,null,null,null,null,null,null,"",null,"","","","","","",""]
[null,null,null,null,null,null,null,null,null,null,null,"",null,"","","","","","",""]
[null,null,null,null,null,null,null,null,null,null,null,"",null,"","","","","","",""]
[null,null,null,null,null,null,null,null,null,null,null,"",null,"","","","","","",""]
[null,null,null,null,null,null,null,null,null,null,null,"",null,"","","","","","",""]
[null,null,null,null,null,null,null,null,null,null,null,"",null,"","","","","","",""]
[null,null,null,null,null,null,null,null,null,null,null,"",null,"","","","","","",""]
[null,null,null,null,null,null,null,null,null,null,null,"",null,"","","","","","",""]
[null,null,null,null,null,null,null,null,null,null,null,"",null,"","","","","","",""]
[null,null,null,null,null,null,null,null,null,null,null,"",null,"","","","","","",""]
[null,null,null,null,null,null,null,null,null,null,null,"",null,"","","","","","",""]
[null,null,null,null,null,null,null,null,null,null,null,"",null,"","","","","","",""]
[null,null,null,null,null,null,null,null,null,null,null,"",null,"","","","","","",""]
[null,null,null,null,null,null,null,null,null,null,null,"",null,"","","","","","",""]
[null,null,null,null,null,null,null,null,null,null,null,"",null,"","","","","","",""]
[null,null,null,null,null,null,null,null,null,null,null,"",null,"","","","","","",""]
[null,null,null,null,null,null,null,null,null,null,null,"",null,"","","","","","",""]
[null,null,null,null,null,null,null,null,null,null,null,"",null,"","","","","","",""]
[null,null,null,null,null,null,null,null,null,null,null,"",null,"","","","","","",""]
[null,null,null,null,null,null,null,null,null,null,null,"",null,"","","","","","",""]
[null,null,null,null,null,null,null,null,null,null,null,"",null,"","","","","","",""]
[null,null,null,null,null,null,null,null,null,null,null,"",null,"","","","","","",""]
[null,null,null,null,null,null,null,null,null,null,null,"",null,"","","","","","",""]
[null,null,null,null,null,null,null,null,null,null,null,"",null,"","","","","","",""]
[null,null,null,null,null,null,null,null,null,null,null,"",null,"","","","","","",""]
[null,null,null,null,null,null,null,null,null,null,null,"",null,"","","","","","",""]
[null,null,null,null,null,null,null,null,null,null,null,"",null,"","","","","","",""]
[null,null,null,null,null,null,null,null,null,null,null,"",null,"","","","","","",""]
[null,null,null,null,null,null,null,null,null,null,null,"",null,"","","","","","",""]
[null,null,null,null,null,null,null,null,null,null,null,"",null,"","","","","","",""]
[null,null,null,null,null,null,null,null,null,null,null,"",null,"","","","","","",""]
[null,null,null,null,null,null,null,null,null,null,null,"",null,"","","","","","",""]
[null,null,null,null,null,null,null,null,null,null,null,"",null,"","","","","","",""]
[null,null,null,null,null,null,null,null,null,null,null,"",null,"","","","","","",""]
[null,null,null,null,null,null,null,null,null,null,null,"",null,"","","","","","",""]
[null,null,null,null,null,null,null,null,null,null,null,"",null,"","","","","","",""]
[null,null,null,null,null,null,null,null,null,null,null,"",null,"","","","","","",""]
[null,null,null,null,null,null,null,null,null,null,null,"",null,"","","","","","",""]
[null,null,null,null,null,null,null,null,null,null,null,"",null,"","","","","","",""]
[null,null,null,null,null,null,null,null,null,null,null,"",null,"","","","","","",""]
[null,null,null,null,null,null,null,null,null,null,null,"",null,"","","","","","",""]
[null,null,null,null,null,null,null,null,null,null,null,"",null,"","","","","","",""]
[null,null,null,null,null,null,null,null,null,null,null,"",null,"","","","","","",""]
[null,null,null,null,null,null,null,null,null,null,null,"",null,"","","","","","",""]
[null,null,null,null,null,null,null,null,null,null,null,"",null,"","","","","","",""]
[null,null,null,null,null,null,null,null,null,null,null,"",null,"","","","","","",""]
[null,null,null,null,null,null,null,null,null,null,null,"",null,"","","","","","",""]
[null,null,null,null,null,null,null,null,null,null,null,"",null,"","","","","","",""]
[null,null,null,null,null,null,null,null,null,null,null,"",null,"","","","","","",""]
[null,null,null,null,null,null,null,null,null,null,null,"",null,"","","","","","",""]
[null,null,null,null,null,null,null,null,null,null,null,"",null,"","","","","","",""]
[null,null,null,null,null,null,null,null,null,null,null,"",null,"","","","","","",""]
[null,null,null,null,null,null,null,null,null,null,null,"",null,"","","","","","",""]
[null,null,null,null,null,null,null,null,null,null,null,"",null,"","","","","","",""]
[null,null,null,null,null,null,null,null,null,null,null,"",null,"","","","","","",""]
[null,null,null,null,null,null,null,null,null,null,null,"",null,"","","","","","",""]
[null,null,null,null,null,null,null,null,null,null,null,"",null,"","","","","","",""]
[null,null,null,null,null,null,null,null,null,null,null,"",null,"","","","","","",""]
[null,null,null,null,null,null,null,null,null,null,null,"",null,"","","","","","",""]
[null,null,null,null,null,null,null,null,null,null,null,"",null,"","","","","","",""]
[null,null,null,null,null,null,null,null,null,null,null,"",null,"","","","","","",""]
[null,null,null,null,null,null,null,null,null,null,null,{"$f":"IF(AND(G103>0,K103>0),\"Multiple Entered!\",IF(AND(I103>0,K103>0),\"Multiple Entered!\",IF(AND(G103>0,I103>0),\"Multiple Entered!\",IF(G103>0,\"Preferred Option\",IF(I103>0,\"2nd Option\",IF(K103>0,\"3rd Option\",\"\"))))))","v":""},null,{"$f":"IF(ISNA(VLOOKUP(B103,EquipmentTypes,2,FALSE)),\"\",(VLOOKUP(B103,EquipmentTypes,2,FALSE)))","v":""},{"$f":"IF(ISBLANK(G103), \"\", (VLOOKUP(H103,FuelUnitsConvert, 2,FALSE)*G103))","v":""},{"$f":"IF(ISBLANK(F103), \"\", VLOOKUP(F103,FuelFactors,2,FALSE))","v":""},{"$f":"IF(ISBLANK(I103), \"\", I103/(IF(ISBLANK(J103),VLOOKUP(F103,FuelCost,2,FALSE),J103)))","v":""},{"$f":"IF(K103>0, K103/VLOOKUP(B103, MPG, 2, FALSE), \"\")","v":""},{"$f":"IF(L103<>\"\", IF(G103>0,O103,IF(I103>0,Q103, IF(K103>0,R103,\"\")))*P103, \"\")","v":""},{"$f":"IF(ISNUMBER(O103),O103,IF(ISNUMBER(Q103),Q103,IF(ISNUMBER(R103),R103,\"\")))","v":""}]
[null,null,null,null,null,null,null,null,null,null,null,"",null,"","","","","","",""]
[null,null,null,null,null,null,null,null,null,null,null,"",null,"","","","","","",""]
[null,null,null,null,null,null,null,null,null,null,null,"",null,"","","","","","",""]
[null,null,null,null,null,null,null,null,null,null,null,"",null,"","","","","","",""]
[null,null,null,null,null,null,null,null,null,null,null,"",null,"","","","","","",""]
[null,null,null,null,null,null,null,null,null,null,null,"",null,"","","","","","",""]
[null,null,null,null,null,null,null,null,null,null,null,"",null,"","","","","","",""]
[null,null,null,null,null,null,null,null,null,null,null,"",null,"","","","","","",""]
[null,null,null,null,null,null,null,null,null,null,null,"",null,"","","","","","",""]
[null,null,null,null,null,null,null,null,null,null,null,"",null,"","","","","","",""]
[null,null,null,null,null,null,null,null,null,null,null,"",null,"","","","","","",""]
[null,null,null,null,null,null,null,null,null,null,null,"",null,"","","","","","",""]
[null,null,null,null,null,null,null,null,null,null,null,"",null,"","","","","","",""]
[null,null,null,null,null,null,null,null,null,null,null,"",null,"","","","","","",""]
[null,null,null,null,null,null,null,null,null,null,null,"",null,"","","","","","",""]
[null,null,null,null,null,null,null,null,null,null,null,"",null,"","","","","","",""]
[null,null,null,null,null,null,null,null,null,null,null,"",null,"","","","","","",""]
[null,null,null,null,null,null,null,null,null,null,null,"",null,"","","","","","",""]
[null,null,null,null,null,null,null,null,null,null,null,"",null,"","","","","","",""]
[null,null,null,null,null,null,null,null,null,null,null,"",null,"","","","","","",""]
[null,null,null,null,null,null,null,null,null,null,null,"",null,"","","","","","",""]
[null,null,null,null,null,null,null,null,null,null,null,"",null,"","","","","","",""]
[null,null,null,null,null,null,null,null,null,null,null,"",null,"","","","","","",""]
[null,null,null,null,null,null,null,null,null,null,null,"",null,"","","","","","",""]
[null,null,null,null,null,null,null,null,null,null,null,"",null,"","","","","","",""]
[null,null,null,null,null,null,null,null,null,null,null,"",null,"","","","","","",""]
[null,null,null,null,null,null,null,null,null,null,null,"",null,"","","","","","",""]
[null,null,null,null,null,null,null,null,null,null,null,"",null,"","","","","","",""]
[null,null,null,null,null,null,null,null,null,null,null,"",null,"","","","","","",""]
[null,null,null,null,null,null,null,null,null,null,null,"",null,"","","","","","",""]
[null,null,null,null,null,null,null,null,null,null,null,"",null,"","","","","","",""]
[null,null,null,null,null,null,null,null,null,null,null,"",null,"","","","","","",""]
[null,null,null,null,null,null,null,null,null,null,null,"",null,"","","","","","",""]
[null,null,null,null,null,null,null,null,null,null,null,"",null,"","","","","","",""]
[null,null,null,null,null,null,null,null,null,null,null,"",null,"","","","","","",""]
[null,null,null,null,null,null,null,null,null,null,null,"",null,"","","","","","",""]
[null,null,null,null,null,null,null,null,null,null,null,"",null,"","","","","","",""]
[null,null,null,null,null,null,null,null,null,null,null,"",null,"","","","","","",""]
[null,null,null,null,null,null,null,null,null,null,null,"",null,"","","","","","",""]
[null,null,null,null,null,null,null,null,null,null,null,"",null,"","","","","","",""]
[null,null,null,null,null,null,null,null,null,null,null,"",null,"","","","","","",""]
[null,null,null,null,null,null,null,null,null,null,null,"",null,"","","","","","",""]
[null,null,null,null,null,null,null,null,null,null,null,"",null,"","","","","","",""]
[null,null,null,null,null,null,null,null,null,null,null,"",null,"","","","","","",""]
[null,null,null,null,null,null,null,null,null,null,null,"",null,"","","","","","",""]
[null,null,null,null,null,null,null,null,null,null,null,"",null,"","","","","","",""]
[null,null,null,null,null,null,null,null,null,null,null,"",null,"","","","","","",""]

{"sheet":"5-Hotels-Housing","index":5,"n_rows":150,"n_cols":22,"rows_kept":150,"cut":false,"hidden":false,"merged":[[3,19,4,26],[6,19,8,19],[11,19,12,19],[10,20,10,26],[11,20,14,26],[3,1,3,7],[9,1,9,4],[8,10,8,15],[8,17,8,18],[5,11,5,12],[5,1,6,1],[5,2,6,2],[18,20,18,26],[22,21,23,26],[19,21,20,26],[9,5,9,6],[6,4,7,7],[5,20,8,26],[15,20,16,26],[5,4,5,7]]}
[]
[null,"Click for Checklist","Go to EAR",null,"Required field",null,"Input not required"]
[]
[null,{"$f":"'1-Production Info'!C10& \" Hotels & Housing\"","v":" Hotels & Housing"},null,null,null,null,null,null,null,null,null,null,null,null,null,null,null,null,null,"Instructions"]
[]
[null,"Did you choose a hotel because it is considered \"green\"?",null,null,"Comments",null,null,null,null,null,"Status:",{"$f":"IF(ISERROR(S12),\"Data Input Error\",IF(S12>0,\"Data Entered Correctly\",\"Data Not Entered\"))","v":"Data Not Entered"},null,null,null,null,null,null,null,null,"1. General Hotel & Housing Questions:  Select Yes or No from the dropdown to identify if you choose a hotel because it is considered “green.” \nEnter comments about your production hotel & housing use (optional)"]
[]
[]
[null,"Select the room type and location (city is optional).  Enter the number of rooms (for hotels only) and number of nights stayed at the hotel or house. (Option 1)",null,null,null,null,null,null,null,null,"Hotels & Housing Calculations",null,null,null,null,null,null,"Emission Summary"]
[null,"Or enter the total number of nights (Option 2)",null,null,null,"Option 1",null,"Option 2"]
[null,"Room Type","City (Optional)","Country","State/Province","Number of Rooms (for hotels only)","Number of Nights","Total Number of  Nights",null,null,"StatesList","EF (kg CO2/kWh)","kWh/year","Room-Nights (years) \n(Option 1)","Total Nights (years)\n(Option 2)","CO2 emissions (kg)",null,"Emissions","kg CO2",null,"2. Room Type: Select a room or house type from the drop down list in column B"]
[null,null,null,null,null,null,null,null,null,null,{"$f":" IF(OR(D12=\"USA\", D12=\"Canada\", D12= \"Australia\"), \"StatesList\", \"\")","v":""},{"$f":"IF(ISBLANK(D12),\"\",IF(OR(D12=\"USA\",D12=\"Australia\",D12=\"Canada\"),VLOOKUP(CONCATENATE(D12,E12),ElecFactor,5,FALSE),VLOOKUP(D12,ElecFactor,5,FALSE)))","v":""},{"$f":"IF(ISTEXT(B12),VLOOKUP(B12, HotelFactors, 4, FALSE),\"\")","v":""},{"$f":"IF(ISBLANK(B12),\"\",IF(H12>0,1,IF(OR(B12=\"Apartment/Condo\", B12 = \"Average House\", B12= \"Large House\"),G12,G12*F12)/365))","v":""},{"$f":"IF(ISBLANK(B12),\"\",IF(F12+G12>0,1,H12/365))","v":""},{"$f":"IF(AND(ISBLANK(B12), ISBLANK(G12)), \"\", L12*M12*N12*O12)","v":""},null,"Total",{"$f":"SUM(P:P)","v":0},null,"3. Hotel/Housing Location: \n    -Enter the hotel or housing city into column C (optional)\n    -Select the country from the dropdown list in column D \n    -Select the state or province from column E (if required)"]
[null,null,null,null,null,null,null,null,null,null,{"$f":" IF(OR(D13=\"USA\", D13=\"Canada\", D13= \"Australia\"), \"StatesList\", \"\")","v":""},"","",{"$f":"IF(ISBLANK(B13),\"\",IF(H13>0,1,IF(OR(B13=\"Apartment/Condo\", B13 = \"Average House\", B13= \"Large House\"),G13,G13*F13)/365))","v":""},{"$f":"IF(ISBLANK(B13),\"\",IF(F13+G13>0,1,H13/365))","v":""},{"$f":"IF(AND(ISBLANK(B13), ISBLANK(G13)), \"\", L13*M13*N13*O13)","v":""}]
[null,null,null,null,null,null,null,null,null,null,"","","","","",""]
[null,null,null,null,null,null,null,null,null,null,"","","","","",""]
[null,null,null,null,null,null,null,null,null,null,"","","","","","",null,null,null,null,"4. Number of Rooms: (for hotels only) Enter the number of rooms rented at the hotel in column F "]
[null,null,null,null,null,null,null,null,null,null,"","","","","",""]
[null,null,null,null,null,null,null,null,null,null,"","","","","",""]
[null,null,null,null,null,null,null,null,null,null,"","","","","","",null,null,null,null,"4. Enter data for ONE Option for Hotels/Houses:"]
[null,null,null,null,null,null,null,null,null,null,"","","","","","",null,null,null,null,null,"4.1 Option 1- Nights and Rooms:  Enter the number of rooms rented at the hotel in column F.   Enter the number of rooms in column G."]
[null,null,null,null,null,null,null,null,null,null,"","","","","",""]
[null,null,null,null,null,null,null,null,null,null,"","","","","",""]
[null,null,null,null,null,null,null,null,null,null,"","","","","","",null,null,null,null,null,"4.2 Second Option- Total Nights: Enter the total number of nights into Column H"]
[null,null,null,null,null,null,null,null,null,null,"","","","","",""]
[null,null,null,null,null,null,null,null,null,null,"","","","","",""]
[null,null,null,null,null,null,null,null,null,null,"","","","","","",null,null,null,null,null,"Housing Type Key"]
[null,null,null,null,null,null,null,null,null,null,"","","","","",""]
[null,null,null,null,null,null,null,null,null,null,"","","","","",""]
[null,null,null,null,null,null,null,null,null,null,"","","","","",""]
[null,null,null,null,null,null,null,null,null,null,"","","","","",""]
[null,null,null,null,null,null,null,null,null,null,"","","","","",""]
[null,null,null,null,null,null,null,null,null,null,"","","","","",""]
[null,null,null,null,null,null,null,null,null,null,"","","","","",""]
[null,null,null,null,null,null,null,null,null,null,"","","","","",""]
[null,null,null,null,null,null,null,null,null,null,"","","","","",""]
[null,null,null,null,null,null,null,null,null,null,{"$f":" IF(OR(D36=\"USA\", D36=\"Canada\", D36= \"Australia\"), \"StatesList\", \"\")","v":""},{"$f":"IF(ISBLANK(D36),\"\",IF(OR(D36=\"USA\",D36=\"Australia\",D36=\"Canada\"),VLOOKUP(CONCATENATE(D36,E36),ElecFactor,5,FALSE),VLOOKUP(D36,ElecFactor,5,FALSE)))","v":""},{"$f":"IF(ISTEXT(B36),VLOOKUP(B36, HotelFactors, 4, FALSE),\"\")","v":""},{"$f":"IF(ISBLANK(B36),\"\",IF(H36>0,1,IF(OR(B36=\"Apartment/Condo\", B36 = \"Average House\", B36= \"Large House\"),G36,G36*F36)/365))","v":""},{"$f":"IF(ISBLANK(B36),\"\",IF(F36+G36>0,1,H36/365))","v":""},{"$f":"IF(AND(ISBLANK(B36), ISBLANK(G36)), \"\", L36*M36*N36*O36)","v":""}]
[null,null,null,null,null,null,null,null,null,null,"","","","","",""]
[null,null,null,null,null,null,null,null,null,null,"","","","","",""]
[null,null,null,null,null,null,null,null,null,null,"","","","","",""]
[null,null,null,null,null,null,null,null,null,null,"","","","","",""]
[null,null,null,null,null,null,null,null,null,null,"","","","","",""]
[null,null,null,null,null,null,null,null,null,null,"","","","","",""]
[null,null,null,null,null,null,null,null,null,null,"","","","","",""]
[null,null,null,null,null,null,null,null,null,null,"","","","","",""]
[null,null,null,null,null,null,null,null,null,null,"","","","","",""]
[null,null,null,null,null,null,null,null,null,null,"","","","","",""]
[null,null,null,null,null,null,null,null,null,null,"","","","","",""]
[null,null,null,null,null,null,null,null,null,null,"","","","","",""]
[null,null,null,null,null,null,null,null,null,null,"","","","","",""]
[null,null,null,null,null,null,null,null,null,null,"","","","","",""]
[null,null,null,null,null,null,null,null,null,null,"","","","","",""]
[null,null,null,null,null,null,null,null,null,null,"","","","","",""]
[null,null,null,null,null,null,null,null,null,null,"","","","","",""]
[null,null,null,null,null,null,null,null,null,null,"","","","","",""]
[null,null,null,null,null,null,null,null,null,null,"","","","","",""]
[null,null,null,null,null,null,null,null,null,null,"","","","","",""]
[null,null,null,null,null,null,null,null,null,null,"","","","","",""]
[null,null,null,null,null,null,null,null,null,null,"","","","","",""]
[null,null,null,null,null,null,null,null,null,null,"","","","","",""]
[null,null,null,null,null,null,null,null,null,null,"","","","","",""]
[null,null,null,null,null,null,null,null,null,null,"","","","","",""]
[null,null,null,null,null,null,null,null,null,null,"","","","","",""]
[null,null,null,null,null,null,null,null,null,null,"","","","","",""]
[null,null,null,null,null,null,null,null,null,null,"","","","","",""]
[null,null,null,null,null,null,null,null,null,null,"","","","","",""]
[null,null,null,null,null,null,null,null,null,null,"","","","","",""]
[null,null,null,null,null,null,null,null,null,null,"","","","","",""]
[null,null,null,null,null,null,null,null,null,null,"","","","","",""]
[null,null,null,null,null,null,null,null,null,null,"","","","","",""]
[null,null,null,null,null,null,null,null,null,null,"","","","","",""]
[null,null,null,null,null,null,null,null,null,null,"","","","","",""]
[null,null,null,null,null,null,null,null,null,null,"","","","","",""]
[null,null,null,null,null,null,null,null,null,null,"","","","","",""]
[null,null,null,null,null,null,null,null,null,null,"","","","","",""]
[null,null,null,null,null,null,null,null,null,null,"","","","","",""]
[null,null,null,null,null,null,null,null,null,null,"","","","","",""]
[null,null,null,null,null,null,null,null,null,null,"","","","","",""]
[null,null,null,null,null,null,null,null,null,null,"","","","","",""]
[null,null,null,null,null,null,null,null,null,null,"","","","","",""]
[null,null,null,null,null,null,null,null,null,null,"","","","","",""]
[null,null,null,null,null,null,null,null,null,null,"","","","","",""]
[null,null,null,null,null,null,null,null,null,null,"","","","","",""]
[null,null,null,null,null,null,null,null,null,null,"","","","","",""]
[null,null,null,null,null,null,null,null,null,null,"","","","","",""]
[null,null,null,null,null,null,null,null,null,null,"","","","","",""]
[null,null,null,null,null,null,null,null,null,null,"","","","","",""]
[null,null,null,null,null,null,null,null,null,null,"","","","","",""]
[null,null,null,null,null,null,null,null,null,null,"","","","","",""]
[null,null,null,null,null,null,null,null,null,null,"","","","","",""]
[null,null,null,null,null,null,null,null,null,null,"","","","","",""]
[null,null,null,null,null,null,null,null,null,null,"","","","","",""]
[null,null,null,null,null,null,null,null,null,null,"","","","","",""]
[null,null,null,null,null,null,null,null,null,null,"","","","","",""]
[null,null,null,null,null,null,null,null,null,null,"","","","","",""]
[null,null,null,null,null,null,null,null,null,null,"","","","","",""]
[null,null,null,null,null,null,null,null,null,null,"","","","","",""]
[null,null,null,null,null,null,null,null,null,null,"","","","","",""]
[null,null,null,null,null,null,null,null,null,null,"","","","","",""]
[null,null,null,null,null,null,null,null,null,null,"","","","","",""]
[null,null,null,null,null,null,null,null,null,null,{"$f":" IF(OR(D100=\"USA\", D100=\"Canada\", D100= \"Australia\"), \"StatesList\", \"\")","v":""},{"$f":"IF(ISBLANK(D100),\"\",IF(OR(D100=\"USA\",D100=\"Australia\",D100=\"Canada\"),VLOOKUP(CONCATENATE(D100,E100),ElecFactor,5,FALSE),VLOOKUP(D100,ElecFactor,5,FALSE)))","v":""},{"$f":"IF(ISTEXT(B100),VLOOKUP(B100, HotelFactors, 4, FALSE),\"\")","v":""},{"$f":"IF(ISBLANK(B100),\"\",IF(H100>0,1,IF(OR(B100=\"Apartment/Condo\", B100 = \"Average House\", B100= \"Large House\"),G100,G100*F100)/365))","v":""},{"$f":"IF(ISBLANK(B100),\"\",IF(F100+G100>0,1,H100/365))","v":""},{"$f":"IF(AND(ISBLANK(B100), ISBLANK(G100)), \"\", L100*M100*N100*O100)","v":""}]
[null,null,null,null,null,null,null,null,null,null,"","","","","",""]
[null,null,null,null,null,null,null,null,null,null,"","","","","",""]
[null,null,null,null,null,null,null,null,null,null,"","","","","",""]
[null,null,null,null,null,null,null,null,null,null,"","","","","",""]
[null,null,null,null,null,null,null,null,null,null,"","","","","",""]
[null,null,null,null,null,null,null,null,null,null,"","","","","",""]
[null,null,null,null,null,null,null,null,null,null,"","","","","",""]
[null,null,null,null,null,null,null,null,null,null,"","","","","",""]
[null,null,null,null,null,null,null,null,null,null,"","","","","",""]
[null,null,null,null,null,null,null,null,null,null,"","","","","",""]
[null,null,null,null,null,null,null,null,null,null,"","","","","",""]
[null,null,null,null,null,null,null,null,null,null,"","","","","",""]
[null,null,null,null,null,null,null,null,null,null,"","","","","",""]
[null,null,null,null,null,null,null,null,null,null,"","","","","",""]
[null,null,null,null,null,null,null,null,null,null,"","","","","",""]
[null,null,null,null,null,null,null,null,null,null,"","","","","",""]
[null,null,null,null,null,null,null,null,null,null,"","","","","",""]
[null,null,null,null,null,null,null,null,null,null,"","","","","",""]
[null,null,null,null,null,null,null,null,null,null,"","","","","",""]
[null,null,null,null,null,null,null,null,null,null,"","","","","",""]
[null,null,null,null,null,null,null,null,null,null,"","","","","",""]
[null,null,null,null,null,null,null,null,null,null,"","","","","",""]
[null,null,null,null,null,null,null,null,null,null,"","","","","",""]
[null,null,null,null,null,null,null,null,null,null,"","","","","",""]
[null,null,null,null,null,null,null,null,null,null,"","","","","",""]
[null,null,null,null,null,null,null,null,null,null,"","","","","",""]
[null,null,null,null,null,null,null,null,null,null,"","","","","",""]
[null,null,null,null,null,null,null,null,null,null,"","","","","",""]
[null,null,null,null,null,null,null,null,null,null,"","","","","",""]
[null,null,null,null,null,null,null,null,null,null,"","","","","",""]
[null,null,null,null,null,null,null,null,null,null,"","","","","",""]
[null,null,null,null,null,null,null,null,null,null,"","","","","",""]
[null,null,null,null,null,null,null,null,null,null,"","","","","",""]
[null,null,null,null,null,null,null,null,null,null,"","","","","",""]
[null,null,null,null,null,null,null,null,null,null,"","","","","",""]
[null,null,null,null,null,null,null,null,null,null,"","","","","",""]
[null,null,null,null,null,null,null,null,null,null,"","","","","",""]
[null,null,null,null,null,null,null,null,null,null,"","","","","",""]
[null,null,null,null,null,null,null,null,null,null,"","","","","",""]
[null,null,null,null,null,null,null,null,null,null,"","","","","",""]
[null,null,null,null,null,null,null,null,null,null,"","","","","",""]
[null,null,null,null,null,null,null,null,null,null,"","","","","",""]
[null,null,null,null,null,null,null,null,null,null,"","","","","",""]
[null,null,null,null,null,null,null,null,null,null,"","","","","",""]
[null,null,null,null,null,null,null,null,null,null,"","","","","",""]
[null,null,null,null,null,null,null,null,null,null,"","","","","",""]
[null,null,null,null,null,null,null,null,null,null,"","","","","",""]
[null,null,null,null,null,null,null,null,null,null,"","","","","",""]
[null,null,null,null,null,null,null,null,null,null,"","","","","",""]
[null,null,null,null,null,null,null,null,null,null,"","","","","",""]

{"sheet":"6-Commercial Air Travel","index":6,"n_rows":150,"n_cols":22,"rows_kept":150,"cut":false,"hidden":false,"merged":[[1,1,1,2],[9,1,9,5],[9,8,9,9],[21,21,27,26],[8,21,8,26],[9,21,16,26],[17,21,19,26],[6,19,7,19],[9,19,10,19],[3,19,4,26],[5,20,6,26],[9,10,10,10],[9,6,9,7],[3,1,3,7],[5,1,5,7],[6,1,6,7],[8,1,8,7],[7,20,7,26],[9,12,9,15],[7,1,7,3],[9,17,9,18],[7,13,7,14]]}
[]
[null,"Click for Checklist",null,"Go to EAR",null,"Required field",null,"Input not required"]
[]
[null,{"$f":"'1-Production Info'!C10& \" Commercial Air Travel\"","v":" Commercial Air Travel"},null,null,null,null,null,null,null,null,null,null,null,null,null,null,null,null,null,"Instructions"]
[]
[null,"Comments",null,null,null,null,null,null,null,null,null,null,null,null,null,null,null,null,null,null,"1. General Commercial Air Travel Information:  Enter comments about commercial air travel for your production (optional) "]
[]
[null,null,null,null,null,null,null,null,null,null,null,null,"Status:",{"$f":"IF(ISERROR(S12),\"Data Input Error\",IF(S12<>SUM(S13:S14),\"Multiple Options Entered\",IF(S12>0,\"Data Entered Correctly\",\"Data Not Entered\")))","v":"Data Not Entered"},null,null,null,null,null,null,"2. Enter data for ONE Option for Commercial Air Travel Information:"]
[null,"Enter the information for ONE option for air travel.  Departure and arrival locations are optional.",null,null,null,null,null,null,null,null,null,null,null,null,null,null,null,null,null,null,null,"2.1 Preferred Option- Flights by Route:"]
[null,"PREFERRED OPTION",null,null,null,null,"Second Option",null,"Third Option",null,"Option Selected",null,"Commercial Flight Calculations",null,null,null,null,"Emission Summary",null,null,null,"If known, enter the departure and arrival airport information into columns B and C, respectively\nEnter the total number of individual one-way trips for all people flown on this leg in column D.  A round trip is equal to two trips. For example, if 5 cast members travel round trip from LAX to JFK 3 times, the number of trips equals 30 (5 x 2 x 3).  Multiple trips on the same route can be entered on separate rows, as long as the number of trips is correct.  \nEnter the one way flight distance of the route in column E and select the associated units from column F (e.g., LAX to JFK = 2500 land miles)"]
[null,"Departure Airport Code/City \n(if known)","Arrival Airport Code/City \n(if known)","# of Trips on this Route (Total the number of individual one-way trips for all people. Round-trip = 2 trips)","One Way Flight Distance","Flight Distance Units","Total Commerical Flight Distance","Flight Distance Units",null,null,null,null,"Total Distance (miles)","Trip Classification","EF (kgCO2/passenger mile)","CO2 emissions (kg)",null,"Emissions","kg CO2"]
[null,null,null,null,null,null,null,null,null,null,{"$f":"IF(AND(D12>0,I12>0),\"Multiple Values!\",IF(AND(G12>0,I12>0),\"Multiple Values!\",IF(AND(D12>0,G12>0),\"Multiple Values!\",IF(D12>0,\"Preferred Option\",IF(G12>0,\"2nd Option\",IF(I12>0,\"Option 3\",\"\"))))))","v":""},null,{"$f":"IF(E12>0,(VLOOKUP(F12,FlightDistanceConversion,2,FALSE)*E12*D12),IF(G12>0,(VLOOKUP(H12,FlightDistanceConversion,2,FALSE)*G12),\"\"))","v":""},{"$f":"IF(K12=\"Multiple Values!\", \"Mult Values\",IF(E12>0,IF(E12<ShortMax,\"Short\",IF(E12<MedMax,\"Medium\",\"Long\")),IF(G12>0,\"Average\",\"\")))","v":""},{"$f":"IF(K12<>\"\",VLOOKUP(N12, CommAirFactors, 2, FALSE),\"\")","v":""},{"$f":"IF(K12<>\"\",M12*O12,\"\")","v":""},null,"Total",{"$f":"SUM(P:P)","v":0}]
[null,null,null,null,null,null,null,null,null,null,"",null,"","","",{"$f":"IF(K13<>\"\",M13*O13,\"\")","v":""},null,"Preferred Option (flight type)",{"$f":"SUMIF(E:E, \">0\",P:P )","v":0}]
[null,null,null,null,null,null,null,null,null,null,"",null,"","","","",null,"2nd Option (total miles)",{"$f":"SUMIF(G:G, \">0\",P:P )","v":0}]
[null,null,null,null,null,null,null,null,null,null,"",null,"","","",""]
[null,null,null,null,null,null,null,null,null,null,"",null,"","","",""]
[null,null,null,null,null,null,null,null,null,null,"",null,"","","",""]
[null,null,null,null,null,null,null,null,null,null,"",null,"","","","",null,null,null,null,null,"Multiple trips on the same route can be entered on separate rows, as long as the number of trips is correct.  \nWebflier's flight distance calculator can be found at: "]
[null,null,null,null,null,null,null,null,null,null,"",null,"","","",""]
[null,null,null,null,null,null,null,null,null,null,"",null,"","","",""]
[null,null,null,null,null,null,null,null,null,null,"",null,"","","","",null,null,null,null,null,"http://www.webflyer.com/travel/mileage_calculator/ "]
[null,null,null,null,null,null,null,null,null,null,"",null,"","","","",null,null,null,null,null,"2.2 Second Option- Total Flight Distance: \nEnter the total commercial flight distance (in passenger miles) for the production into column G and the associated units into column H.  \n(If more than one person is on the same flight, the total passenger miles would be the distance traveled by passenger one plus the distance traveled by passenger two)"]
[null,null,null,null,null,null,null,null,null,null,"",null,"","","",""]
[null,null,null,null,null,null,null,null,null,null,"",null,"","","",""]
[null,null,null,null,null,null,null,null,null,null,"",null,"","","",""]
[null,null,null,null,null,null,null,null,null,null,"",null,"","","",""]
[null,null,null,null,null,null,null,null,null,null,"",null,"","","",""]
[null,null,null,null,null,null,null,null,null,null,"",null,"","","",""]
[null,null,null,null,null,null,null,null,null,null,"",null,"","","",""]
[null,null,null,null,null,null,null,null,null,null,"",null,"","","",""]
[null,null,null,null,null,null,null,null,null,null,"",null,"","","",""]
[null,null,null,null,null,null,null,null,null,null,"",null,"","","",""]
[null,null,null,null,null,null,null,null,null,null,"",null,"","","",""]
[null,null,null,null,null,null,null,null,null,null,"",null,"","","",""]
[null,null,null,null,null,null,null,null,null,null,"",null,"","","",""]
[null,null,null,null,null,null,null,null,null,null,"",null,"","","",""]
[null,null,null,null,null,null,null,null,null,null,"",null,"","","",""]
[null,null,null,null,null,null,null,null,null,null,"",null,"","","",""]
[null,null,null,null,null,null,null,null,null,null,"",null,"","","",""]
[null,null,null,null,null,null,null,null,null,null,"",null,"","","",""]
[null,null,null,null,null,null,null,null,null,null,"",null,"","","",""]
[null,null,null,null,null,null,null,null,null,null,"",null,"","","",""]
[null,null,null,null,null,null,null,null,null,null,"",null,"","","",""]
[null,null,null,null,null,null,null,null,null,null,{"$f":"IF(AND(D44>0,I44>0),\"Multiple Values!\",IF(AND(G44>0,I44>0),\"Multiple Values!\",IF(AND(D44>0,G44>0),\"Multiple Values!\",IF(D44>0,\"Preferred Option\",IF(G44>0,\"2nd Option\",IF(I44>0,\"Option 3\",\"\"))))))","v":""},null,{"$f":"IF(E44>0,(VLOOKUP(F44,FlightDistanceConversion,2,FALSE)*E44*D44),IF(G44>0,(VLOOKUP(H44,FlightDistanceConversion,2,FALSE)*G44),\"\"))","v":""},{"$f":"IF(K44=\"Multiple Values!\", \"Mult Values\",IF(E44>0,IF(E44<ShortMax,\"Short\",IF(E44<MedMax,\"Medium\",\"Long\")),IF(G44>0,\"Average\",\"\")))","v":""},{"$f":"IF(K44<>\"\",VLOOKUP(N44, CommAirFactors, 2, FALSE),\"\")","v":""},""]
[null,null,null,null,null,null,null,null,null,null,"",null,"","","",""]
[null,null,null,null,null,null,null,null,null,null,"",null,"","","",""]
[null,null,null,null,null,null,null,null,null,null,"",null,"","","",""]
[null,null,null,null,null,null,null,null,null,null,"",null,"","","",""]
[null,null,null,null,null,null,null,null,null,null,"",null,"","","",""]
[null,null,null,null,null,null,null,null,null,null,"",null,"","","",""]
[null,null,null,null,null,null,null,null,null,null,"",null,"","","",""]
[null,null,null,null,null,null,null,null,null,null,"",null,"","","",""]
[null,null,null,null,null,null,null,null,null,null,"",null,"","","",""]
[null,null,null,null,null,null,null,null,null,null,"",null,"","","",""]
[null,null,null,null,null,null,null,null,null,null,"",null,"","","",""]
[null,null,null,null,null,null,null,null,null,null,"",null,"","","",""]
[null,null,null,null,null,null,null,null,null,null,"",null,"","","",""]
[null,null,null,null,null,null,null,null,null,null,"",null,"","","",""]
[null,null,null,null,null,null,null,null,null,null,"",null,"","","",""]
[null,null,null,null,null,null,null,null,null,null,"",null,"","","",""]
[null,null,null,null,null,null,null,null,null,null,"",null,"","","",""]
[null,null,null,null,null,null,null,null,null,null,"",null,"","","",""]
[null,null,null,null,null,null,null,null,null,null,"",null,"","","",""]
[null,null,null,null,null,null,null,null,null,null,"",null,"","","",""]
[null,null,null,null,null,null,null,null,null,null,"",null,"","","",""]
[null,null,null,null,null,null,null,null,null,null,"",null,"","","",""]
[null,null,null,null,null,null,null,null,null,null,"",null,"","","",""]
[null,null,null,null,null,null,null,null,null,null,"",null,"","","",""]
[null,null,null,null,null,null,null,null,null,null,"",null,"","","",""]
[null,null,null,null,null,null,null,null,null,null,"",null,"","","",""]
[null,null,null,null,null,null,null,null,null,null,"",null,"","","",""]
[null,null,null,null,null,null,null,null,null,null,"",null,"","","",""]
[null,null,null,null,null,null,null,null,null,null,"",null,"","","",""]
[null,null,null,null,null,null,null,null,null,null,"",null,"","","",""]
[null,null,null,null,null,null,null,null,null,null,"",null,"","","",""]
[null,null,null,null,null,null,null,null,null,null,{"$f":"IF(AND(D76>0,I76>0),\"Multiple Values!\",IF(AND(G76>0,I76>0),\"Multiple Values!\",IF(AND(D76>0,G76>0),\"Multiple Values!\",IF(D76>0,\"Preferred Option\",IF(G76>0,\"2nd Option\",IF(I76>0,\"Option 3\",\"\"))))))","v":""},null,{"$f":"IF(E76>0,(VLOOKUP(F76,FlightDistanceConversion,2,FALSE)*E76*D76),IF(G76>0,(VLOOKUP(H76,FlightDistanceConversion,2,FALSE)*G76),\"\"))","v":""},{"$f":"IF(K76=\"Multiple Values!\", \"Mult Values\",IF(E76>0,IF(E76<ShortMax,\"Short\",IF(E76<MedMax,\"Medium\",\"Long\")),IF(G76>0,\"Average\",\"\")))","v":""},{"$f":"IF(K76<>\"\",VLOOKUP(N76, CommAirFactors, 2, FALSE),\"\")","v":""},{"$f":"IF(K76<>\"\",M76*O76,\"\")","v":""}]
[null,null,null,null,null,null,null,null,null,null,"",null,"","","",""]
[null,null,null,null,null,null,null,null,null,null,"",null,"","","",""]
[null,null,null,null,null,null,null,null,null,null,"",null,"","","",""]
[null,null,null,null,null,null,null,null,null,null,"",null,"","","",""]
[null,null,null,null,null,null,null,null,null,null,"",null,"","","",""]
[null,null,null,null,null,null,null,null,null,null,"",null,"","","",""]
[null,null,null,null,null,null,null,null,null,null,"",null,"","","",""]
[null,null,null,null,null,null,null,null,null,null,"",null,"","","",""]
[null,null,null,null,null,null,null,null,null,null,"",null,"","","",""]
[null,null,null,null,null,null,null,null,null,null,"",null,"","","",""]
[null,null,null,null,null,null,null,null,null,null,"",null,"","","",""]
[null,null,null,null,null,null,null,null,null,null,"",null,"","","",""]
[null,null,null,null,null,null,null,null,null,null,"",null,"","","",""]
[null,null,null,null,null,null,null,null,null,null,"",null,"","","",""]
[null,null,null,null,null,null,null,null,null,null,"",null,"","","",""]
[null,null,null,null,null,null,null,null,null,null,"",null,"","","",""]
[null,null,null,null,null,null,null,null,null,null,"",null,"","","",""]
[null,null,null,null,null,null,null,null,null,null,"",null,"","","",""]
[null,null,null,null,null,null,null,null,null,null,"",null,"","","",""]
[null,null,null,null,null,null,null,null,null,null,"",null,"","","",""]
[null,null,null,null,null,null,null,null,null,null,"",null,"","","",""]
[null,null,null,null,null,null,null,null,null,null,"",null,"","","",""]
[null,null,null,null,null,null,null,null,null,null,"",null,"","","",""]
[null,null,null,null,null,null,null,null,null,null,"",null,"","","",""]
[null,null,null,null,null,null,null,null,null,null,"",null,"","","",""]
[null,null,null,null,null,null,null,null,null,null,"",null,"","","",""]
[null,null,null,null,null,null,null,null,null,null,"",null,"","","",""]
[null,null,null,null,null,null,null,null,null,null,"",null,"","","",""]
[null,null,null,null,null,null,null,null,null,null,"",null,"","","",""]
[null,null,null,null,null,null,null,null,null,null,"",null,"","","",""]
[null,null,null,null,null,null,null,null,null,null,"",null,"","","",""]
[null,null,null,null,null,null,null,null,null,null,"",null,"","","",""]
[null,null,null,null,null,null,null,null,null,null,"",null,"","","",""]
[null,null,null,null,null,null,null,null,null,null,"",null,"","","",""]
[null,null,null,null,null,null,null,null,null,null,"",null,"","","",""]
[null,null,null,null,null,null,null,null,null,null,"",null,"","","",""]
[null,null,null,null,null,null,null,null,null,null,"",null,"","","",""]
[null,null,null,null,null,null,null,null,null,null,"",null,"","","",""]
[null,null,null,null,null,null,null,null,null,null,"",null,"","","",""]
[null,null,null,null,null,null,null,null,null,null,"",null,"","","",""]
[null,null,null,null,null,null,null,null,null,null,"",null,"","","",""]
[null,null,null,null,null,null,null,null,null,null,"",null,"","","",""]
[null,null,null,null,null,null,null,null,null,null,"",null,"","","",""]
[null,null,null,null,null,null,null,null,null,null,"",null,"","","",""]
[null,null,null,null,null,null,null,null,null,null,"",null,"","","",""]
[null,null,null,null,null,null,null,null,null,null,"",null,"","","",""]
[null,null,null,null,null,null,null,null,null,null,"",null,"","","",""]
[null,null,null,null,null,null,null,null,null,null,"",null,"","","",""]
[null,null,null,null,null,null,null,null,null,null,"",null,"","","",""]
[null,null,null,null,null,null,null,null,null,null,"",null,"","","",""]
[null,null,null,null,null,null,null,null,null,null,"",null,"","","",""]
[null,null,null,null,null,null,null,null,null,null,"",null,"","","",""]
[null,null,null,null,null,null,null,null,null,null,"",null,"","","",""]
[null,null,null,null,null,null,null,null,null,null,"",null,"","","",""]
[null,null,null,null,null,null,null,null,null,null,"",null,"","","",""]
[null,null,null,null,null,null,null,null,null,null,"",null,"","","",""]
[null,null,null,null,null,null,null,null,null,null,"",null,"","","",""]
[null,null,null,null,null,null,null,null,null,null,"",null,"","","",""]
[null,null,null,null,null,null,null,null,null,null,"",null,"","","",""]
[null,null,null,null,null,null,null,null,null,null,"",null,"","","",""]
[null,null,null,null,null,null,null,null,null,null,"",null,"","","",""]
[null,null,null,null,null,null,null,null,null,null,"",null,"","","",""]
[null,null,null,null,null,null,null,null,null,null,"",null,"","","",""]
[null,null,null,null,null,null,null,null,null,null,{"$f":"IF(AND(D140>0,I140>0),\"Multiple Values!\",IF(AND(G140>0,I140>0),\"Multiple Values!\",IF(AND(D140>0,G140>0),\"Multiple Values!\",IF(D140>0,\"Preferred Option\",IF(G140>0,\"2nd Option\",IF(I140>0,\"Option 3\",\"\"))))))","v":""},null,{"$f":"IF(E140>0,(VLOOKUP(F140,FlightDistanceConversion,2,FALSE)*E140*D140),IF(G140>0,(VLOOKUP(H140,FlightDistanceConversion,2,FALSE)*G140),\"\"))","v":""},{"$f":"IF(K140=\"Multiple Values!\", \"Mult Values\",IF(E140>0,IF(E140<ShortMax,\"Short\",IF(E140<MedMax,\"Medium\",\"Long\")),IF(G140>0,\"Average\",\"\")))","v":""},{"$f":"IF(K140<>\"\",VLOOKUP(N140, CommAirFactors, 2, FALSE),\"\")","v":""},{"$f":"IF(K140<>\"\",M140*O140,\"\")","v":""}]
[null,null,null,null,null,null,null,null,null,null,"",null,"","","",""]
[null,null,null,null,null,null,null,null,null,null,"",null,"","","",""]
[null,null,null,null,null,null,null,null,null,null,"",null,"","","",""]
[null,null,null,null,null,null,null,null,null,null,"",null,"","","",""]
[null,null,null,null,null,null,null,null,null,null,"",null,"","","",""]
[null,null,null,null,null,null,null,null,null,null,"",null,"","","",""]
[null,null,null,null,null,null,null,null,null,null,"",null,"","","",""]
[null,null,null,null,null,null,null,null,null,null,"",null,"","","",""]
[null,null,null,null,null,null,null,null,null,null,"",null,"","","",""]
[null,null,null,null,null,null,null,null,null,null,"",null,"","","",""]

{"sheet":"7-Charter and Heli Flights","index":7,"n_rows":150,"n_cols":22,"rows_kept":150,"cut":false,"hidden":false,"merged":[[3,19,4,26],[5,20,6,26],[6,19,8,19],[10,19,11,19],[7,20,8,26],[9,20,9,26],[10,21,10,26],[11,21,12,26],[13,21,16,26],[9,10,9,15],[9,17,9,18],[5,11,5,12],[9,8,10,8],[1,1,1,2],[3,1,3,7],[9,2,10,2],[9,1,10,1],[8,3,8,7],[9,6,9,7],[9,3,9,4],[8,1,8,2],[5,1,5,7],[6,1,6,7]]}
[]
[null,"Click for Checklist",null,"Go to EAR",null,"Required field",null,"Input not required"]
[]
[null,{"$f":"'1-Production Info'!C10& \" Charter & Helicopter Flights\"","v":" Charter & Helicopter Flights"},null,null,null,null,null,null,null,null,null,null,null,null,null,null,null,null,null,"Instructions"]
[]
[null,"Comments",null,null,null,null,null,null,null,null,"Status:",{"$f":"IF(ISERROR(S12),\"Data Input Error\",IF(S12<>SUM(S13:S15),\"Multiple Options Entered\",IF(S12>0,\"Data Entered Correctly\",\"Data Not Entered\")))","v":"Data Not Entered"},null,null,null,null,null,null,null,null,"1. General Charter and Helicopter Flight Information:  Enter comments about charter and helicopter air travel for your production (optional) "]
[]
[null,null,null,null,null,null,null,null,null,null,null,null,null,null,null,null,null,null,null,null,"2. Plane Information: Select the plane type from the dropdown list in column B (required) and enter the plane model in column C (optional)"]
[null,"Select the plane type.  Model type is optional.",null,"Enter all information for ONE option"]
[null,"Plane Type","Model \n(if known)","PREFERRED OPTION",null,"Second Option","Third Option",null,"Option Selected",null,"Charter Flight Calculations ",null,null,null,null,null,null,"Emission Summary",null,null,"3. Enter data for ONE Option for Chartered and Helicopter Flights:"]
[null,null,null,"Fuel Use Amount","Fuel Use Units","Total Hours Flown","Total Distance Flown","Flight Units",null,null,"Standard Fuel Use (gal)","Fuel EF (kg/gallon)","Fuel Use - Hours Est. (gal)","Standard Distance (miles)","Distance Fuel Use (gal)","CO2 emissions (kg)",null,"Emissions","kg CO2",null,null,"3.1 Preferred Option- Actual Fuel Use: Enter the actual fuel used for the plane type selected in column D and select the associated units (e.g., gallons) from the dropdown list in column E"]
[null,null,null,null,null,null,null,null,{"$f":"IF(AND(D12>0,F12>0),\"Multiple Values!\",IF(AND(G12>0,F12>0),\"Multiple Values!\",IF(AND(D12>0,G12>0),\"Multiple Values!\",IF(D12>0,\"Preferred Option\",IF(G12>0,\"Third Option\",IF(F12>0,\"Second Option\",\"\"))))))","v":""},null,{"$f":"IF(ISBLANK(D12), \"\", VLOOKUP(E12, FuelUnitsConvert, 2, FALSE)*D12)","v":""},{"$f":"IF(ISBLANK(B12), \"\", VLOOKUP(VLOOKUP(B12,AirFactors,2,FALSE),FuelFactors,2,FALSE))","v":""},{"$f":"IF(F12>0, VLOOKUP(B12, AirFactors, 3, FALSE)*F12, \"\")","v":""},{"$f":"IF(G12>0, VLOOKUP(H12, FlightDistanceConversion, 2, FALSE)*G12, \"\")","v":""},{"$f":"IF(G12>0, N12/VLOOKUP(B12, AirFactors, 4, FALSE), \"\")","v":""},{"$f":"IF((D12+F12+G12)=0,\"\",IF(D12>0,K12,IF(F12>0,M12,IF(G12>0,O12,\"\")))*L12)","v":""},null,"Total",{"$f":"SUM(P:P)","v":0},null,null,"3.2 Second Option- Hours Flown: Enter the total hours flown by the selected plane type in column F"]
[null,null,null,null,null,null,null,null,{"$f":"IF(AND(D13>0,F13>0),\"Multiple Values!\",IF(AND(G13>0,F13>0),\"Multiple Values!\",IF(AND(D13>0,G13>0),\"Multiple Values!\",IF(D13>0,\"Preferred Option\",IF(G13>0,\"Third Option\",IF(F13>0,\"Second Option\",\"\"))))))","v":""},null,{"$f":"IF(ISBLANK(D13), \"\", VLOOKUP(E13, FuelUnitsConvert, 2, FALSE)*D13)","v":""},{"$f":"IF(ISBLANK(B13), \"\", VLOOKUP(VLOOKUP(B13,AirFactors,2,FALSE),FuelFactors,2,FALSE))","v":""},{"$f":"IF(F13>0, VLOOKUP(B13, AirFactors, 3, FALSE)*F13, \"\")","v":""},"",{"$f":"IF(G13>0, N13/VLOOKUP(B13, AirFactors, 4, FALSE), \"\")","v":""},{"$f":"IF((D13+F13+G13)=0,\"\",IF(D13>0,K13,IF(F13>0,M13,IF(G13>0,O13,\"\")))*L13)","v":""},null,"Preferred Option (fuel use)",{"$f":"SUMIF(D:D, \">0\",P:P )","v":0}]
[null,null,null,null,null,null,null,null,"",null,"","","","","","",null,"2nd Option (hours flown)",{"$f":"SUMIF(M:M, \">0\",P:P )","v":0},null,null,"3.3 Third Option- Distance: Enter the total distance flown by the selected plane type in column G and select the associated units (e.g. miles) from the dropdown list in column H"]
[null,null,null,null,null,null,null,null,"",null,"","","","","","",null,"3rd Option (disntance flown)",{"$f":"SUMIF(O:O, \">0\",P:P )","v":0}]
[null,null,null,null,null,null,null,null,"",null,"","","","","",""]
[null,null,null,null,null,null,null,null,"",null,"","","","","",""]
[null,null,null,null,null,null,null,null,"",null,"","","","","",""]
[null,null,null,null,null,null,null,null,"",null,"","","","","",""]
[null,null,null,null,null,null,null,null,"",null,"","","","","","",null,null,null,null,"Plane Type Key"]
[null,null,null,null,null,null,null,null,"",null,"","","","","",""]
[null,null,null,null,null,null,null,null,"",null,"","","","","",""]
[null,null,null,null,null,null,null,null,"",null,"","","","","",""]
[null,null,null,null,null,null,null,null,"",null,"","","","","",""]
[null,null,null,null,null,null,null,null,"",null,"","","","","",""]
[null,null,null,null,null,null,null,null,"",null,"","","","","",""]
[null,null,null,null,null,null,null,null,"",null,"","","","","",""]
[null,null,null,null,null,null,null,null,"",null,"","","","","",""]
[null,null,null,null,null,null,null,null,"",null,"","","","","",""]
[null,null,null,null,null,null,null,null,"",null,"","","","","",""]
[null,null,null,null,null,null,null,null,"",null,"","","","","",""]
[null,null,null,null,null,null,null,null,"",null,"","","","","",""]
[null,null,null,null,null,null,null,null,"",null,"","","","","",""]
[null,null,null,null,null,null,null,null,"",null,"","","","","",""]
[null,null,null,null,null,null,null,null,{"$f":"IF(AND(D35>0,F35>0),\"Multiple Values!\",IF(AND(G35>0,F35>0),\"Multiple Values!\",IF(AND(D35>0,G35>0),\"Multiple Values!\",IF(D35>0,\"Preferred Option\",IF(G35>0,\"Third Option\",IF(F35>0,\"Second Option\",\"\"))))))","v":""},null,{"$f":"IF(ISBLANK(D35), \"\", VLOOKUP(E35, FuelUnitsConvert, 2, FALSE)*D35)","v":""},{"$f":"IF(ISBLANK(B35), \"\", VLOOKUP(VLOOKUP(B35,AirFactors,2,FALSE),FuelFactors,2,FALSE))","v":""},{"$f":"IF(F35>0, VLOOKUP(B35, AirFactors, 3, FALSE)*F35, \"\")","v":""},{"$f":"IF(G35>0, VLOOKUP(H35, FlightDistanceConversion, 2, FALSE)*G35, \"\")","v":""},{"$f":"IF(G35>0, N35/VLOOKUP(B35, AirFactors, 4, FALSE), \"\")","v":""},{"$f":"IF((D35+F35+G35)=0,\"\",IF(D35>0,K35,IF(F35>0,M35,IF(G35>0,O35,\"\")))*L35)","v":""}]
[null,null,null,null,null,null,null,null,"",null,"","","","","",""]
[null,null,null,null,null,null,null,null,"",null,"","","","","",""]
[null,null,null,null,null,null,null,null,"",null,"","","","","",""]
[null,null,null,null,null,null,null,null,"",null,"","","","","",""]
[null,null,null,null,null,null,null,null,"",null,"","","","","",""]
[null,null,null,null,null,null,null,null,"",null,"","","","","",""]
[null,null,null,null,null,null,null,null,"",null,"","","","","",""]
[null,null,null,null,null,null,null,null,"",null,"","","","","",""]
[null,null,null,null,null,null,null,null,"",null,"","","","","",""]
[null,null,null,null,null,null,null,null,"",null,"","","","","",""]
[null,null,null,null,null,null,null,null,"",null,"","","","","",""]
[null,null,null,null,null,null,null,null,"",null,"","","","","",""]
[null,null,null,null,null,null,null,null,"",null,"","","","","",""]
[null,null,null,null,null,null,null,null,"",null,"","","","","",""]
[null,null,null,null,null,null,null,null,"",null,"","","","","",""]
[null,null,null,null,null,null,null,null,"",null,"","","","","",""]
[null,null,null,null,null,null,null,null,"",null,"","","","","",""]
[null,null,null,null,null,null,null,null,"",null,"","","","","",""]
[null,null,null,null,null,null,null,null,"",null,"","","","","",""]
[null,null,null,null,null,null,null,null,"",null,"","","","","",""]
[null,null,null,null,null,null,null,null,"",null,"","","","","",""]
[null,null,null,null,null,null,null,null,"",null,"","","","","",""]
[null,null,null,null,null,null,null,null,"",null,"","","","","",""]
[null,null,null,null,null,null,null,null,"",null,"","","","","",""]
[null,null,null,null,null,null,null,null,"",null,"","","","","",""]
[null,null,null,null,null,null,null,null,"",null,"","","","","",""]
[null,null,null,null,null,null,null,null,"",null,"","","","","",""]
[null,null,null,null,null,null,null,null,"",null,"","","","","",""]
[null,null,null,null,null,null,null,null,"",null,"","","","","",""]
[null,null,null,null,null,null,null,null,"",null,"","","","","",""]
[null,null,null,null,null,null,null,null,"",null,"","","","","",""]
[null,null,null,null,null,null,null,null,"",null,"","","","","",""]
[null,null,null,null,null,null,null,null,"",null,"","","","","",""]
[null,null,null,null,null,null,null,null,"",null,"","","","","",""]
[null,null,null,null,null,null,null,null,"",null,"","","","","",""]
[null,null,null,null,null,null,null,null,"",null,"","","","","",""]
[null,null,null,null,null,null,null,null,"",null,"","","","","",""]
[null,null,null,null,null,null,null,null,"",null,"","","","","",""]
[null,null,null,null,null,null,null,null,"",null,"","","","","",""]
[null,null,null,null,null,null,null,null,"",null,"","","","","",""]
[null,null,null,null,null,null,null,null,"",null,"","","","","",""]
[null,null,null,null,null,null,null,null,"",null,"","","","","",""]
[null,null,null,null,null,null,null,null,"",null,"","","","","",""]
[null,null,null,null,null,null,null,null,"",null,"","","","","",""]
[null,null,null,null,null,null,null,null,"",null,"","","","","",""]
[null,null,null,null,null,null,null,null,"",null,"","","","","",""]
[null,null,null,null,null,null,null,null,"",null,"","","","","",""]
[null,null,null,null,null,null,null,null,"",null,"","","","","",""]
[null,null,null,null,null,null,null,null,"",null,"","","","","",""]
[null,null,null,null,null,null,null,null,"",null,"","","","","",""]
[null,null,null,null,null,null,null,null,"",null,"","","","","",""]
[null,null,null,null,null,null,null,null,"",null,"","","","","",""]
[null,null,null,null,null,null,null,null,"",null,"","","","","",""]
[null,null,null,null,null,null,null,null,"",null,"","","","","",""]
[null,null,null,null,null,null,null,null,"",null,"","","","","",""]
[null,null,null,null,null,null,null,null,"",null,"","","","","",""]
[null,null,null,null,null,null,null,null,"",null,"","","","","",""]
[null,null,null,null,null,null,null,null,"",null,"","","","","",""]
[null,null,null,null,null,null,null,null,"",null,"","","","","",""]
[null,null,null,null,null,null,null,null,"",null,"","","","","",""]
[null,null,null,null,null,null,null,null,"",null,"","","","","",""]
[null,null,null,null,null,null,null,null,"",null,"","","","","",""]
[null,null,null,null,null,null,null,null,"",null,"","","","","",""]
[null,null,null,null,null,null,null,null,{"$f":"IF(AND(D99>0,F99>0),\"Multiple Values!\",IF(AND(G99>0,F99>0),\"Multiple Values!\",IF(AND(D99>0,G99>0),\"Multiple Values!\",IF(D99>0,\"Preferred Option\",IF(G99>0,\"Third Option\",IF(F99>0,\"Second Option\",\"\"))))))","v":""},null,{"$f":"IF(ISBLANK(D99), \"\", VLOOKUP(E99, FuelUnitsConvert, 2, FALSE)*D99)","v":""},{"$f":"IF(ISBLANK(B99), \"\", VLOOKUP(VLOOKUP(B99,AirFactors,2,FALSE),FuelFactors,2,FALSE))","v":""},{"$f":"IF(F99>0, VLOOKUP(B99, AirFactors, 3, FALSE)*F99, \"\")","v":""},{"$f":"IF(G99>0, VLOOKUP(H99, FlightDistanceConversion, 2, FALSE)*G99, \"\")","v":""},{"$f":"IF(G99>0, N99/VLOOKUP(B99, AirFactors, 4, FALSE), \"\")","v":""},{"$f":"IF((D99+F99+G99)=0,\"\",IF(D99>0,K99,IF(F99>0,M99,IF(G99>0,O99,\"\")))*L99)","v":""}]
[null,null,null,null,null,null,null,null,"",null,"","","","","",""]
[null,null,null,null,null,null,null,null,"",null,"","","","","",""]
[null,null,null,null,null,null,null,null,"",null,"","","","","",""]
[null,null,null,null,null,null,null,null,"",null,"","","","","",""]
[null,null,null,null,null,null,null,null,"",null,"","","","","",""]
[null,null,null,null,null,null,null,null,"",null,"","","","","",""]
[null,null,null,null,null,null,null,null,"",null,"","","","","",""]
[null,null,null,null,null,null,null,null,"",null,"","","","","",""]
[null,null,null,null,null,null,null,null,"",null,"","","","","",""]
[null,null,null,null,null,null,null,null,"",null,"","","","","",""]
[null,null,null,null,null,null,null,null,"",null,"","","","","",""]
[null,null,null,null,null,null,null,null,"",null,"","","","","",""]
[null,null,null,null,null,null,null,null,"",null,"","","","","",""]
[null,null,null,null,null,null,null,null,"",null,"","","","","",""]
[null,null,null,null,null,null,null,null,"",null,"","","","","",""]
[null,null,null,null,null,null,null,null,"",null,"","","","","",""]
[null,null,null,null,null,null,null,null,"",null,"","","","","",""]
[null,null,null,null,null,null,null,null,"",null,"","","","","",""]
[null,null,null,null,null,null,null,null,"",null,"","","","","",""]
[null,null,null,null,null,null,null,null,"",null,"","","","","",""]
[null,null,null,null,null,null,null,null,"",null,"","","","","",""]
[null,null,null,null,null,null,null,null,"",null,"","","","","",""]
[null,null,null,null,null,null,null,null,"",null,"","","","","",""]
[null,null,null,null,null,null,null,null,"",null,"","","","","",""]
[null,null,null,null,null,null,null,null,"",null,"","","","","",""]
[null,null,null,null,null,null,null,null,"",null,"","","","","",""]
[null,null,null,null,null,null,null,null,"",null,"","","","","",""]
[null,null,null,null,null,null,null,null,"",null,"","","","","",""]
[null,null,null,null,null,null,null,null,"",null,"","","","","",""]
[null,null,null,null,null,null,null,null,"",null,"","","","","",""]
[null,null,null,null,null,null,null,null,"",null,"","","","","",""]
[null,null,null,null,null,null,null,null,"",null,"","","","","",""]
[null,null,null,null,null,null,null,null,"",null,"","","","","",""]
[null,null,null,null,null,null,null,null,"",null,"","","","","",""]
[null,null,null,null,null,null,null,null,"",null,"","","","","",""]
[null,null,null,null,null,null,null,null,"",null,"","","","","",""]
[null,null,null,null,null,null,null,null,"",null,"","","","","",""]
[null,null,null,null,null,null,null,null,"",null,"","","","","",""]
[null,null,null,null,null,null,null,null,"",null,"","","","","",""]
[null,null,null,null,null,null,null,null,"",null,"","","","","",""]
[null,null,null,null,null,null,null,null,"",null,"","","","","",""]
[null,null,null,null,null,null,null,null,"",null,"","","","","",""]
[null,null,null,null,null,null,null,null,"",null,"","","","","",""]
[null,null,null,null,null,null,null,null,"",null,"","","","","",""]
[null,null,null,null,null,null,null,null,"",null,"","","","","",""]
[null,null,null,null,null,null,null,null,"",null,"","","","","",""]
[null,null,null,null,null,null,null,null,"",null,"","","","","",""]
[null,null,null,null,null,null,null,null,"",null,"","","","","",""]
[null,null,null,null,null,null,null,null,"",null,"","","","","",""]
[null,null,null,null,null,null,null,null,"",null,"","","","","",""]
[null,null,null,null,null,null,null,null,"",null,"","","","","",""]

{"sheet":"EAR Metrics","index":8,"n_rows":186,"n_cols":26,"rows_kept":186,"cut":false,"hidden":false,"merged":[[131,2,132,2],[133,2,133,8],[134,2,142,8],[131,7,132,8],[131,4,131,6],[132,4,132,6],[109,2,109,8],[115,2,116,8],[110,2,111,2],[110,3,110,6],[110,8,111,8],[82,2,82,8],[83,6,83,8],[84,6,88,8],[91,2,91,8],[98,2,98,8],[92,4,97,8],[72,2,79,8],[54,11,54,12],[2,2,2,8],[13,2,13,8],[14,3,14,4],[14,2,15,2],[14,5,14,7],[41,2,41,8],[42,2,50,8],[24,2,24,8],[53,2,53,8],[54,5,54,8],[66,6,70,6],[1,11,1,17],[144,2,144,8],[145,2,145,8],[146,2,154,8],[55,11,55,12],[56,11,56,12],[57,11,57,12],[55,5,57,8],[61,7,61,8],[61,2,62,2],[60,2,60,8],[61,4,61,5],[61,3,62,3],[99,2,107,8],[70,3,70,5],[71,2,71,8]]}
[null,null,null,null,null,null,null,null,null,null,null,null,null,null,null,null,null,null,null,null,null,null,null,"Interface to select quadrant: only can select options with checkmarks"]
[null,null,"Click for Checklist","Go to EAR",null,"Required field",null,"Input not required",null,null,null,"DO NOT DELETE THESE CELLS, USED IN VBA (ENVIRON)"]
[null,null,{"$f":"'1-Production Info'!D8& \"Other Environmental Activity Metrics\"","v":"Other Environmental Activity Metrics"},null,null,null,null,null,null,null,null,null,null,"active_ear"]
[]
[null,null,"Select your production's  Environmental Activity Metrics",null,null,null,"Choose 4 metrics to include on the EAR",null,null,null,null,null,"Active EAR","Dropdown","EAR Lookup",null,"EAR","Group","All:",{"$f":"IFERROR(IF((IFERROR(SUM(M17:R51,L64:O65,M67:M71,O67:O70,S62:T68,M94:O99,Q113:Q116,N55:N58,P55:P57,P85,M85:M89),\"Data input error\"))=0, \"Data not entered\", \"Data entered correctly\"),\"Data input error\")","v":"Data not entered"}]
[null,null,"Environmental Activity","Include \n(select X)","Additional Rows?","Lookup","Select from Dropdown Menus. Reports on \"EAR\" tab.*",null,null,null,null,{"$f":"IF(M6=\"\",0,1)","v":0},{"$f":"IF(D7=\"X\",A7,\"\")","v":""},{"$f":"IF(ISNA(VLOOKUP(1,$L$6:$M$11,2,FALSE)),\"\",VLOOKUP(1,$L$6:$M$11,2,FALSE))","v":""},{"$f":"IF($N6<>\"\",VLOOKUP($N6,$A$7:$F$12,6,FALSE),\"\")","v":""},null,"Waste","Group 4"]
["Waste",null,"Waste: Landfill, Compost and Recycling",null,null,"W","Quadrant 1","Quadrant 2",null,null,null,{"$f":"IF(M7=\"\",\"\",MAX($L$6:L6)+1)","v":""},"",{"$f":"IF(ISNA(VLOOKUP(2,$L$6:$M$11,2,FALSE)),\"\",VLOOKUP(2,$L$6:$M$11,2,FALSE))","v":""},"",null,"Donations","Group 5"]
["Drinking Water",null,"Drinking Water (bottles/jugs)",null,null,"DW",null,null,null,null,null,{"$f":"IF(M8=\"\",\"\",MAX($L$6:L7)+1)","v":""},"",{"$f":"IF(ISNA(VLOOKUP(3,$L$6:$M$11,2,FALSE)),\"\",VLOOKUP(3,$L$6:$M$11,2,FALSE))","v":""},"",null,"Drinking Water","Group 2"]
["Fuel Savings",null,"Fuel Savings (e.g. biodiesel/hybrids)",null,null,"F","Quadrant 3","Quadrant 4",null,null,null,{"$f":"IF(M9=\"\",\"\",MAX($L$6:L8)+1)","v":""},"",{"$f":"IF(ISNA(VLOOKUP(4,$L$6:$M$11,2,FALSE)),\"\",VLOOKUP(4,$L$6:$M$11,2,FALSE))","v":""},"",null,"Fuel Savings","Group 9"]
["Donations",null,"Donations (e.g., food, set materials)",null,null,"Don",null,null,null,null,null,{"$f":"IF(M10=\"\",\"\",MAX($L$6:L9)+1)","v":""},"",{"$f":"IF(ISNA(VLOOKUP(5,$L$6:$M$11,2,FALSE)),\"\",VLOOKUP(5,$L$6:$M$11,2,FALSE))","v":""},"",null,"Plywood","Group 8"]
["Recycled Paper",null,"Recycled Paper Content",null,null,"P",null,null,null,null,null,{"$f":"IF(M11=\"\",\"\",MAX($L$6:L10)+1)","v":""},"",{"$f":"IF(ISNA(VLOOKUP(6,$L$6:$M$11,2,FALSE)),\"\",VLOOKUP(6,$L$6:$M$11,2,FALSE))","v":""},"",null,"Recycled Paper","Group 16"]
["Plywood",null,"Lauan/Meranti Plywood",null,null,"Ply","*Only active metrics (\"X\" in Column D) are selectable."]
[]
["W",null,"Waste",null,null,null,null,null,null,null,null,"Waste Calculations",null,null,null,null,null,null,null,"Waste Totals/Diversion Rate"]
["W",null,"Waste Type & Disposal","PREFERRED OPTION: Weight",null,"Second Option: Volume",null,null,"Third Option",null,null,"Waste Type","Standard Waste  Amount (lb)","Waste - Volume Est. (Cubic yards)","Waste density (lb/cubic yard)","Waste Weight - Volume Est. (pounds)","Waste- Cost Est.","Waste total (lbs)",{"$f":"IFERROR(IF(SUM(M17:Q51)=0,\"No Data Entered\",IF(SUM(M17:Q51)>0,\"Data Entered Correctly\",\"Data Input Error\")), \"Data Input Error\")","v":"No Data Entered"},"Diverted?","Waste Category","Category for Graph","Total (lbs)"]
["W",null,null,"Waste Weight","Units","Number of containers","Size","Units","Cost ($)"]
["W",null,"Waste to Landfill",null,null,null,null,null,null,null,null,{"$f":"C17","v":"Waste to Landfill"},{"$f":"IF(ISBLANK(D17), \"\", (VLOOKUP(E17,WasteConversions, 2,FALSE)*D17))","v":""},{"$f":"IF(ISBLANK(F17), \"\", (VLOOKUP(H17,WasteVolConvert, 2,FALSE)*F17*G17))","v":""},{"$f":"IF(ISBLANK(F17), \"\", (VLOOKUP(C17,WasteConvert, 2,FALSE)))","v":""},{"$f":"IF(ISBLANK(F17),\"\",N17*O17)","v":""},{"$f":"IF(ISBLANK(I17),\"\",(I17/(VLOOKUP(C17,WasteConvert,3,FALSE))))","v":""},{"$f":"IF(ISNUMBER(M17),M17,IF(ISNUMBER(P17),P17,Q17))","v":""},null,"N","Waste to Landfill","Waste to LF",{"$f":"SUMIF($L$17:$L$41,U17,$R$17:$R$41)","v":0}]
["W",null,"Construction Material to Landfill",null,null,null,null,null,null,null,null,"Construction Material to Landfill","","","","","","",null,"N","Construction Material to Landfill","Const. Mtl to LF",{"$f":"SUMIF($L$17:$L$41,U18,$R$17:$R$41)","v":0}]
["W",null,"Polystyrene Foam to Landfill",null,null,null,null,null,null,null,null,"Polystyrene Foam to Landfill","","","","","","",null,"N","Polystyrene Foam to Landfill","PS Foam to LF",{"$f":"SUMIF($L$17:$L$41,U19,$R$17:$R$41)","v":0}]
["W",null,"Mixed Recycled",null,null,null,null,null,null,null,null,"Mixed Recycled","","","","","","",null,"Y",{"$f":"L20","v":"Mixed Recycled"},"Mix Rec.",0]
["W",null,"Metal Recycling",null,null,null,null,null,null,null,null,"Metal Recycling","","","","","","",null,"Y","Metal Recycling","Metal Rec.",{"$f":"SUMIF($L$17:$L$41,U21,$R$17:$R$41)","v":0}]
["W",null,"Recycled Construction Material",null,null,null,null,null,null,null,null,"Recycled Construction Material","","","","","","",null,"Y","Recycled Construction Material","Rec. Const. Mtl",0]
["W",null,"Other Recycled",null,null,null,null,null,null,null,null,"Other Recycled","","","","","","",null,"Y","Other Recycled","Other Rec.",0]
["W",null,"Compost",null,null,null,null,null,null,null,null,"Compost","","","","","","",null,"Y","Compost","Compost",0]
["WA",null,"Select \"X\" in Cell E7 for additional waste types. Add values below as necessary.",null,null,null,null,null,null,null,null,{"$f":"C25","v":"Select \"X\" in Cell E7 for additional waste types. Add values below as necessary."},{"$f":"IF(ISBLANK(D25), \"\", (VLOOKUP(E25,WasteConversions, 2,FALSE)*D25))","v":""},{"$f":"IF(ISBLANK(F25), \"\", (VLOOKUP(H25,WasteVolConvert, 2,FALSE)*F25*G25))","v":""},{"$f":"IF(ISBLANK(F25), \"\", (VLOOKUP(C25,WasteConvert, 2,FALSE)))","v":""},{"$f":"IF(ISBLANK(F25),\"\",N25*O25)","v":""},{"$f":"IF(ISBLANK(I25),\"\",(I25/(VLOOKUP(C25,WasteConvert,3,FALSE))))","v":""},{"$f":"IF(ISNUMBER(M25),M25,IF(ISNUMBER(P25),P25,Q25))","v":""},null,null,"Total Waste",null,{"$f":"SUM(W17:W24)","v":0}]
["WA",null,null,null,null,null,null,null,null,null,null,0,"","","","","","",null,null,"Diversion rate",null,{"$f":"SUMIF(T17:T24, \"Y\", W17:W24)/W25","v":{"$error":"#DIV/0!"}}]
["WA",null,null,null,null,null,null,null,null,null,null,0,"","","","","",""]
["WA",null,null,null,null,null,null,null,null,null,null,0,"","","","","",""]
["WA",null,null,null,null,null,null,null,null,null,null,0,"","","","","",""]
["WA",null,null,null,null,null,null,null,null,null,null,0,"","","","","",""]
["WA",null,null,null,null,null,null,null,null,null,null,0,"","","","","",""]
["WA",null,null,null,null,null,null,null,null,null,null,0,"","","","","",""]
["WA",null,null,null,null,null,null,null,null,null,null,0,"","","","","",""]
["WA",null,null,null,null,null,null,null,null,null,null,0,"","","","","",""]
["WA",null,null,null,null,null,null,null,null,null,null,0,"","","","","",""]
["WA",null,null,null,null,null,null,null,null,null,null,0,"","","","","",""]
["WA",null,null,null,null,null,null,null,null,null,null,0,"","","","","",""]
["WA",null,null,null,null,null,null,null,null,null,null,0,"","","","","",""]
["WA",null,null,null,null,null,null,null,null,null,null,0,"","","","","",""]
["WA",null,null,null,null,null,null,null,null,null,null,0,"","","","","",""]
["WA",null,null,null,null,null,null,null,null,null,null,0,"","","","","",""]
["W",null,"Comments",null,null,null,null,null,null,null,null,{"$f":"C42","v":"Comments"},{"$f":"IF(ISBLANK(D42), \"\", (VLOOKUP(E42,WasteConversions, 2,FALSE)*D42))","v":""},{"$f":"IF(ISBLANK(F42), \"\", (VLOOKUP(H42,WasteVolConvert, 2,FALSE)*F42*G42))","v":""},{"$f":"IF(ISBLANK(F42), \"\", (VLOOKUP(C42,WasteConvert, 2,FALSE)))","v":""},{"$f":"IF(ISBLANK(F42),\"\",N42*O42)","v":""},{"$f":"IF(ISBLANK(I42),\"\",(I42/(VLOOKUP(C42,WasteConvert,3,FALSE))))","v":""},{"$f":"IF(ISNUMBER(M42),M42,IF(ISNUMBER(P42),P42,Q42))","v":""}]
["W",null,"enter comments on the EAR metrics page",null,null,null,null,null,null,null,null,null,null,null,null,null,null,null,null,null,null,null,null,{"$f":"IFERROR(VLOOKUP($U43, $U$17:$W$24, 4, FALSE), \"\")","v":""}]
["W",null,null,null,null,null,null,null,null,null,null,null,null,null,null,null,null,null,null,null,null,null,null,{"$f":"IFERROR(VLOOKUP($U44, $U$17:$W$24, 4, FALSE), \"\")","v":""}]
["W",null,null,null,null,null,null,null,null,null,null,null,null,null,null,null,null,null,null,null,null,null,null,{"$f":"IFERROR(VLOOKUP($U45, $U$17:$W$24, 4, FALSE), \"\")","v":""}]
["W",null,null,null,null,null,null,null,null,null,null,null,null,null,null,null,null,null,null,null,null,null,null,{"$f":"IFERROR(VLOOKUP($U46, $U$17:$W$24, 4, FALSE), \"\")","v":""}]
["W",null,null,null,null,null,null,null,null,null,null,null,null,null,null,null,null,null,null,null,null,null,null,{"$f":"IFERROR(VLOOKUP($U47, $U$17:$W$24, 4, FALSE), \"\")","v":""}]
["W"]
["W"]
["W"]
["W"]
["W"]
["DW"]
["DW",null,"Drinking Water",null,null,null,null,null,null,null,null,"Drinking Water Calculations"]
["DW",null,"Drinking Water Container","Number","Total Cost ($)","Comments",null,null,null,null,null,"Bottles Used",null,{"$f":"IF(ISNUMBER(D56),D56,IF(ISNUMBER(E56),ROUND(E56/WaterBottleCost,0), 0))","v":0},"Bottle Cost:",{"$f":"IF(ISNUMBER(E56),E56,IF(ISNUMBER(D56),D56*WaterBottleCost,\"\"))","v":""},"Entered Jug Cost",{"$f":"IFERROR(E57/D57, 0)","v":0},{"$f":"IF((P58 = 0), \"No data Entered\", \"Data Entered Correctly\")","v":"No data Entered"}]
["DW",null,"0.5L Plastic water bottles (not cases)",null,null,"enter comments on the EAR metrics page",null,null,null,null,null,"Bottles Saved",null,{"$f":"IF(OR(ISNUMBER(D57), ISNUMBER(E57)), ROUNDUP(IF(ISNUMBER(D57),H20BottleperJug*D57,IF(ISNUMBER(E57),E57/JugCost*H20BottleperJug,\"\")),1), \"\")","v":""},"Jug Cost:",{"$f":"IF(ISNUMBER(E57),E57,IF(ISNUMBER(D57),D57*JugCost,0))","v":0},"Entered Water bottle cost",{"$f":"IFERROR(E56/D56, 0)","v":0}]
["DW",null,"5 gallon jugs",null,null,null,null,null,null,null,null,"Bottle Cost Savings:",null,{"$f":"IFERROR(IF(EnteredH20BottleCost>0, BottlesSaved*EnteredH20BottleCost, BottlesSaved*WaterBottleCost), \"\")","v":""},"Reusable Cost:",{"$f":"IF(ISNUMBER(E58),E58,IF(ISNUMBER(D58),D58*ReuseWaterCost,0))","v":0},"0.5L Bottles per Jug:",40]
["DW",null,"Reusable bottles",null,null,null,null,null,null,null,null,"Net Cost Saving",null,{"$f":"IFERROR(N57-P56-P57, \"\")","v":""},null,{"$f":"SUM(N55:N58,P55:P57)","v":0}]
["DW",null,null,null,null,null,null,null,null,null,null,null,"Drinking Water"]
["FS"]
["FS",null,"Fossil Fuel (Gasoline & Diesel) Savings",null,null,null,null,null,null,null,null,"Fuel Saving Calculations",null,null,null,null,null,"Fuel Type","Gallons Saved","MTCO2 Saved"]
["FS",null,"Hybrid Vehicles","Fuel Use obtained from \"Fuel Tab\" (Gal)","PREFERRED OPTION",null,"Second Option","Third Option",null,null,null,null,null,null,null,null,"Hybrids","Gasoline ",{"$f":"SUM(O64:O65)","v":0},{"$f":"VLOOKUP(R62, FuelFactors, 2, FALSE)*S62/1000","v":0}]
["FS",null,null,null,"Hybrid Fuel Use Amount","Fuel Use Units","Hybrid Distance Driven (miles)","Total Cost of Hybrid Fuel (US$)","Average US$ per gallon",null,null,"Standard Fuel Use Amount (gal)","Fuel Use - Miles Est. (Gallons)","Fuel Use - Cost Est. (Gallons)","Gal Saved",{"$f":"IFERROR(IF(SUM(L64:O65,O67:O70,M67:M71) = 0, \"No Data Entered\", \"Data Entered Correctly\"), \"Data Input Error\")","v":"No Data Entered"},"Biodiesel","Diesel Fuel ",{"$f":"SUM(M67:M71)","v":0},{"$f":"VLOOKUP(R63, FuelFactors, 2, FALSE)*S63/1000","v":0}]
["FS",null,"Hybrid SUVs",{"$f":"SUMIF('4-Fuel'!$B$13:$B$150,'EAR Metrics'!C64,'4-Fuel'!$T$13:$T$150)","v":0},null,null,null,null,null,null,null,{"$f":"IF(ISBLANK(E64), \"\", (VLOOKUP(F64,FuelUnitsConvert, 2,FALSE)*E64))","v":""},{"$f":"IF(G64>0,G64/VLOOKUP(C64, MPG, 2, FALSE), \"\")","v":""},{"$f":"IF(ISBLANK(H64), \"\", H64/(IF(ISBLANK(I64),VLOOKUP(\"Gasoline\",FuelCost,2,FALSE),I64)))","v":""},{"$f":"IF(D64>0, D64, SUM(L64:N64))*HybridSUV","v":0},"Hybrid SUV","Electric Cars",{"$f":"IF(F67=0, FuelEFs!$A$6, F67)","v":"Gasoline "},{"$f":"O67","v":0},{"$f":"IF((D67>0),VLOOKUP(R64, FuelFactors, 2, FALSE)*S64/1000,0)","v":0}]
["FS",null,"Hybrid Cars",{"$f":"SUMIF('4-Fuel'!$B$13:$B$38,'EAR Metrics'!C65,'4-Fuel'!$T$13:$T$38)","v":0},null,null,null,null,null,null,null,{"$f":"IF(ISBLANK(E65), \"\", (VLOOKUP(F65,FuelUnitsConvert, 2,FALSE)*E65))","v":""},{"$f":"IF(G65>0,G65/VLOOKUP(C65, MPG, 2, FALSE), \"\")","v":""},{"$f":"IF(ISBLANK(H65), \"\", H65/(IF(ISBLANK(I65),VLOOKUP(\"Gasoline\",FuelCost,2,FALSE),I65)))","v":""},{"$f":"IF(D65>0, D65, SUM(L65:N65))*HybridCar","v":0},"Hybrid Cars","Solar",{"$f":"IF(F68=0, FuelEFs!$A$6, F68)","v":"Gasoline "},{"$f":"O68","v":0},{"$f":"IF((D68>0),VLOOKUP(R65, FuelFactors, 2, FALSE)*S65/1000,0)","v":0}]
["FS",null,"Other Fuel Savings","Amount Saved","Units","Fuel Type",null,"Biodiesel","Amount Used (gal)",null,null,"Biodiesel","Gal Diesel Saved",null,"Gal Saved",null,"Grid Tie In",{"$f":"IF(F69=0, FuelEFs!$A$6, F69)","v":"Gasoline "},{"$f":"O69","v":0},{"$f":"IF((D69>0),VLOOKUP(R66, FuelFactors, 2, FALSE)*S66/1000,0)","v":0}]
["FS",null,"Electric Cars",null,null,null,"Biodiesel values obtained from the \"Fuel\" tab","Biodiesel (B100)",{"$f":"SUMIF('4-Fuel'!$F$13:$F$150,'EAR Metrics'!H67,'4-Fuel'!$T$13:$T$150)","v":0},null,null,"Biodiesel (B100)",{"$f":"I67","v":0},"Electric Cars",{"$f":"IF((D67>0), D67*VLOOKUP(E67,FuelUnitsConvert, 2,FALSE),0)","v":0},null,"Other ",{"$f":"IF(F70=0, FuelEFs!$A$6, F70)","v":"Gasoline "},{"$f":"O70","v":0},{"$f":"IF((D70>0),VLOOKUP(R67, FuelFactors, 2, FALSE)*S67/1000,0)","v":0}]
["FS",null,"Solar",null,null,null,null,"B99",{"$f":"SUMIF('4-Fuel'!$F$13:$F$38,'EAR Metrics'!H68,'4-Fuel'!$T$13:$T$38)","v":0},null,null,"B99",{"$f":"I68*0.99","v":0},"Solar",{"$f":"IF((D68>0), D68*VLOOKUP(E68,FuelUnitsConvert, 2,FALSE), 0)","v":0},null,"Total",null,{"$f":"SUM(S62:S67)","v":0},{"$f":"SUM(T62:T67)","v":0}]
["FS",null,"Electric grid tie in",null,null,null,null,"B40",{"$f":"SUMIF('4-Fuel'!$F$13:$F$38,'EAR Metrics'!H69,'4-Fuel'!$T$13:$T$38)","v":0},null,null,"B40",{"$f":"I69*0.4","v":0},"Electric grid tie in",{"$f":"IF((D69>0), D69*VLOOKUP(E69,FuelUnitsConvert, 2,FALSE), 0)","v":0}]
["FS",null,"Other ",null,null,null,null,"B20",{"$f":"SUMIF('4-Fuel'!$F$13:$F$38,'EAR Metrics'!H70,'4-Fuel'!$T$13:$T$38)","v":0},null,null,"B20",{"$f":"I70*0.2","v":0},"Other ",{"$f":"IF((D70>0), D70*VLOOKUP(E70,FuelUnitsConvert, 2,FALSE), 0)","v":0}]
["FS",null,"Other fuel description:",null,null,null,null,"B5",{"$f":"SUMIF('4-Fuel'!$F$13:$F$38,'EAR Metrics'!H71,'4-Fuel'!$T$13:$T$38)","v":0},null,null,"B5",{"$f":"I71*0.05","v":0}]
["FS",null,"Comments"]
["FS",null,"enter comments on the EAR metrics page"]
["FS"]
["FS"]
["FS"]
["FS"]
["FS"]
["FS"]
["FS"]
["FS"]
["Don"]
["Don",null,"Donations",null,null,null,null,null,null,null,null,"Donation Calculations",null,null,{"$f":"IF(SUM(D85:D89) = 0, \"No Data Entered\", \"Data Entered Correctly\")","v":"No Data Entered"},null,{"$f":"IF(DollarDonations = \"\", \"\", \"Your production donated worth of materials\")","v":""}]
["Don",null,"Type of Donation","Number","Units","Value ($)","Comments",null,null,null,null,null,null,"meals",{"$f":"IF(ISBLANK(D85), \"\",ROUND( D85*VLOOKUP(E85,WasteConversions, 2, FALSE)/P84, 0))","v":""},1.3]
["Don",null,"Food",null,null,null,"enter comments on the EAR metrics page",null,null,null,null,{"$f":"IF(D85>0,1,)","v":0},{"$f":"L85","v":0},{"$f":"IF(ISBLANK(D85), \"\", CONCATENATE(O84, \" meals\"))","v":""},null,{"$f":"IF(SUM(F85:F89)=0, \"\", SUM(F85:F89))","v":""},1,{"$f":"IFERROR(VLOOKUP(Q85,DonList, 2, FALSE), \"\")","v":""}]
["Don",null,"Set dressing/props",null,null,null,null,null,null,null,null,{"$f":"IF(D86>0,1,)","v":0},{"$f":"L86+M85","v":0},{"$f":"IF(ISBLANK(D86),\"\",CONCATENATE(C86,\": \",D86,\" \",E86,\"\"))","v":""},null,"Total Donations",2,{"$f":"IFERROR(VLOOKUP(Q86,DonList, 2, FALSE), \"\")","v":""}]
["Don",null,"Wardrobe",null,null,null,null,null,null,null,null,{"$f":"IF(D87>0,1,)","v":0},{"$f":"L87+M86","v":0},{"$f":"IF(ISBLANK(D87),\"\",CONCATENATE(C87,\": \",D87,\" \",E87,\"\"))","v":""},null,null,3,{"$f":"IFERROR(VLOOKUP(Q87,DonList, 2, FALSE), \"\")","v":""}]
["Don",null,"Construction Material",null,null,null,null,null,null,null,null,{"$f":"IF(D88>0,1,)","v":0},{"$f":"L88+M87","v":0},{"$f":"IF(ISBLANK(D88),\"\",CONCATENATE(C88,\": \",D88,\" \",E88,\"\"))","v":""},null,null,4,{"$f":"IFERROR(VLOOKUP(Q88,DonList, 2, FALSE), \"\")","v":""}]
["Don",null,"Other",null,null,null,null,null,null,null,null,{"$f":"IF(D89>0,1,)","v":0},{"$f":"L89+M88","v":0},{"$f":"IF(ISBLANK(D89),\"\",CONCATENATE(C89,\": \",D89,\" \",E89,\"\"))","v":""},null,null,5,{"$f":"IFERROR(VLOOKUP(Q89,DonList, 2, FALSE), \"\")","v":""}]
["Don"]
["P"]
["P",null,"Recycled Paper Content",null,null,null,null,null,null,null,null,"Recycled Paper Calculations"]
["P",null,"Percent Recycled Content","Number of Reams","Enter the number of Reams used of the associated percent recycled content paper",null,null,null,null,null,null,"Type","Virgin","Recycled","Total"]
["P",null,0,null,null,null,null,null,null,null,null,0,{"$f":"$D94*(1-C94)","v":0},{"$f":"$D94*(C94)","v":0},{"$f":"SUM(M94:N94)","v":0},{"$f":"IF(SUM(M94:O98) >0, \"Data Entered Correctly\", \"No Data Entered\")","v":"No Data Entered"}]
["P",null,0.3,null,null,null,null,null,null,null,null,0.3,{"$f":"$D95*(1-C95)","v":0},{"$f":"$D95*(C95)","v":0},0]
["P",null,0.5,null,null,null,null,null,null,null,null,0.5,{"$f":"$D96*(1-C96)","v":0},{"$f":"$D96*(C96)","v":0},0]
["P",null,0.7,null,null,null,null,null,null,null,null,0.7,{"$f":"$D97*(1-C97)","v":0},{"$f":"$D97*(C97)","v":0},0]
["P",null,1,null,null,null,null,null,null,null,null,1,{"$f":"$D98*(1-C98)","v":0},{"$f":"$D98*(C98)","v":0},0,"Trees",{"$f":"N99*TreesperReam","v":0}]
["P",null,"Comments",null,null,null,null,null,null,null,null,"Total",{"$f":"SUM(M94:M98)","v":0},{"$f":"SUM(N94:N98)","v":0},0,"Trees per Ream",{"$f":"1/16.67","v":5.9988002399520089E-2},"http://conservatree.org/learn/EnviroIssues/TreeStats.shtml"]
["P",null,"enter comments on the EAR metrics page"]
["P"]
["P"]
["P"]
["P"]
["P"]
["P"]
["P"]
["P"]
["P"]
["Ply",null,"Lauan / Meranti Plywood"]
["Ply",null,"Lauan / Meranti Plywood Type","Option 1: Number of Sheets & Dimensions",null,null,null,"Option 2: Total BF","Description",null,null,"Plywood Calculations"]
["Ply",null,null,"Number of Sheets","Length (feet)","Width (feet)","Thickness (inches)","Total board feet",null,null,null,"Plywood Type","Volumn (in3)","Board Feet","Plywood Type List (long name)","Short Name (for graph)","Board Feet"]
["Ply",null,"Lauan/Meranti- non certified",null,null,null,null,null,"N/A",null,null,{"$f":"C113","v":"Lauan/Meranti- non certified"},{"$f":"E113*12*F113*12*G113*D113","v":0},{"$f":"IF((H113>0), H113, M113/boardfoot)","v":0},"Lauan/Meranti- non certified","Non-certified",{"$f":"SUMIF($L$113:$L$131,O113,$N$113:$N$131)","v":0}]
["Ply",null,"Lauan/Meranti -  FSC",null,null,null,null,null,"N/A",null,null,{"$f":"C114","v":"Lauan/Meranti -  FSC"},{"$f":"E114*12*F114*12*G114*D114","v":0},{"$f":"IF((H114>0), H114, M114/boardfoot)","v":0},"Lauan/Meranti -  FSC","FSC",{"$f":"SUMIF($L$113:$L$131,O114,$N$113:$N$131)","v":0}]
["Ply",null,"Lauan Alternative",null,null,null,null,null,null,null,null,{"$f":"C115","v":"Lauan Alternative"},{"$f":"E115*12*F115*12*G115*D115","v":0},{"$f":"IF((H115>0), H115, M115/boardfoot)","v":0},{"$f":"L115","v":"Lauan Alternative"},"Alternative",{"$f":"SUMIF($L$113:$L$131,O115,$N$113:$N$131)","v":0}]
["Ply",null,"Select \"X\" in Cell E12 to add additional lines. Enter additional values and sizes below, as necessary",null,null,null,null,null,null,null,null,null,{"$f":"E116*12*F116*12*G116*D116","v":0},{"$f":"M116/boardfoot","v":0}]
["Ply",null,null,null,null,null,null,null,null,null,null,null,null,null,"Repurposed Walls","Repurp. Walls",{"$f":"N133","v":0}]
["Ply Add",null,null,null,null,null,null,null,null,null,null,{"$f":"C118","v":0},{"$f":"E118*12*F118*12*G118*D118","v":0},{"$f":"IF((H118>0), H118, M118/boardfoot)","v":0}]
["Ply Add",null,null,null,null,null,null,null,null,null,null,{"$f":"C119","v":0},{"$f":"E119*12*F119*12*G119*D119","v":0},0]
["Ply Add",null,null,null,null,null,null,null,null,null,null,{"$f":"C120","v":0},{"$f":"E120*12*F120*12*G120*D120","v":0},0]
["Ply Add",null,null,null,null,null,null,null,null,null,null,0,0,0]
["Ply Add",null,null,null,null,null,null,null,null,null,null,0,0,0]
["Ply Add",null,null,null,null,null,null,null,null,null,null,0,0,0]
["Ply Add",null,null,null,null,null,null,null,null,null,null,0,0,0]
["Ply Add",null,null,null,null,null,null,null,null,null,null,0,0,0]
["Ply Add",null,null,null,null,null,null,null,null,null,null,0,0,0]
["Ply Add",null,null,null,null,null,null,null,null,null,null,0,0,0]
["Ply Add",null,null,null,null,null,null,null,null,null,null,0,0,0]
["Ply Add",null,null,null,null,null,null,null,null,null,null,0,0,0]
["Ply Add",null,null,null,null,null,null,null,null,null,null,0,0,0]
["Ply Add",null,null,null,null,null,null,null,null,null,null,0,0,0]
["Ply",null,"Repurposed Walls","Number of Walls","Percent of total production L/M plywood.  ",null,null,"Enter the  percent of total production L/M plywood obtained from Repurposed walls",null,null,null,"Total Non Wall",null,{"$f":"SUM(N113:N131)","v":0},null,{"$f":"IF(SUM(Q113:Q117)>0, \"Data Entered Correctly\", \"No Data Entered\")","v":"No Data Entered"}]
["Ply",null,null,null,null,null,null,null,null,null,null,"Repurposed Walls",null,{"$f":"N134-N132","v":0}]
["Ply",null,"Comments",null,null,null,null,null,null,null,null,"Total",null,{"$f":"N132/(1-E133)","v":0}]
["Ply",null,"enter comments on the EAR metrics page",null,null,null,null,null,null,null,null,"board foot",144,"in3","http://www.engineeringtoolbox.com/board-foot-d_1453.html"]
["Ply"]
["Ply"]
["Ply"]
["Ply"]
["Ply"]
["Ply"]
["Ply"]
["Ply"]
[]
[null,null,"Additional Measures or Challenges"]
[null,null,"Comments:  These comments will appear on the first page of the EAR"]
[null,null,"Enter comments on the EAR Metrics page.  "]
[]
[]
[]
[]
[]
[]
[]
[]
[]
[]
[null,null,null,null,null,null,null,null,null,null,null,null,null,null,null,null,null,null,null,null,null,null,null,null,"Values for graphs-- Filtered to Remove 0s"]
[null,null,null,null,null,null,null,null,null,null,null,null,null,null,null,null,null,null,null,null,null,null,null,null,"Waste","Value"]
[null,null,null,null,null,null,null,null,null,null,null,null,null,null,null,null,null,null,null,null,null,null,null,null,{"$f":"V17","v":"Waste to LF"},0]
[null,null,null,null,null,null,null,null,null,null,null,null,null,null,null,null,null,null,null,null,null,null,null,null,"Const. Mtl to LF",0]
[null,null,null,null,null,null,null,null,null,null,null,null,null,null,null,null,null,null,null,null,null,null,null,null,"PS Foam to LF",0]
[null,null,null,null,null,null,null,null,null,null,null,null,null,null,null,null,null,null,null,null,null,null,null,null,"Mix Rec.",0]
[null,null,null,null,null,null,null,null,null,null,null,null,null,null,null,null,null,null,null,null,null,null,null,null,"Metal Rec.",0]
[null,null,null,null,null,null,null,null,null,null,null,null,null,null,null,null,null,null,null,null,null,null,null,null,"Rec. Const. Mtl",0]
[null,null,null,null,null,null,null,null,null,null,null,null,null,null,null,null,null,null,null,null,null,null,null,null,"Other Rec.",0]
[null,null,null,null,null,null,null,null,null,null,null,null,null,null,null,null,null,null,null,null,null,null,null,null,"Compost",0]
[null,null,null,null,null,null,null,null,null,null,null,null,null,null,null,null,null,null,null,null,null,null,null,null,{"$f":"V25","v":0}]
[null,null,null,null,null,null,null,null,null,null,null,null,null,null,null,null,null,null,null,null,null,null,null,null,"Fossil Fuel","Amount"]
[null,null,null,null,null,null,null,null,null,null,null,null,null,null,null,null,null,null,null,null,null,null,null,null,{"$f":"Q62","v":"Hybrids"},{"$f":"T62","v":0}]
[null,null,null,null,null,null,null,null,null,null,null,null,null,null,null,null,null,null,null,null,null,null,null,null,"Biodiesel",0]
[null,null,null,null,null,null,null,null,null,null,null,null,null,null,null,null,null,null,null,null,null,null,null,null,"Electric Cars",0]
[null,null,null,null,null,null,null,null,null,null,null,null,null,null,null,null,null,null,null,null,null,null,null,null,"Solar",0]
[null,null,null,null,null,null,null,null,null,null,null,null,null,null,null,null,null,null,null,null,null,null,null,null,"Grid Tie In",0]
[null,null,null,null,null,null,null,null,null,null,null,null,null,null,null,null,null,null,null,null,null,null,null,null,"Other ",0]
[]
[null,null,null,null,null,null,null,null,null,null,null,null,null,null,null,null,null,null,null,null,null,null,null,null,"Plywood","Amount"]
[null,null,null,null,null,null,null,null,null,null,null,null,null,null,null,null,null,null,null,null,null,null,null,null,{"$f":"P113","v":"Non-certified"},0]
[null,null,null,null,null,null,null,null,null,null,null,null,null,null,null,null,null,null,null,null,null,null,null,null,"FSC",0]
[null,null,null,null,null,null,null,null,null,null,null,null,null,null,null,null,null,null,null,null,null,null,null,null,"Alternative",0]
[null,null,null,null,null,null,null,null,null,null,null,null,null,null,null,null,null,null,null,null,null,null,null,null,0,0]
[null,null,null,null,null,null,null,null,null,null,null,null,null,null,null,null,null,null,null,null,null,null,null,null,"Repurp. Walls",0]
[]
[null,null,null,null,null,null,null,null,null,null,null,null,null,null,null,null,null,null,null,null,null,null,null,null,"Paper","Amount"]
[null,null,null,null,null,null,null,null,null,null,null,null,null,null,null,null,null,null,null,null,null,null,null,null,"Virgin",{"$f":"M99","v":0}]
[null,null,null,null,null,null,null,null,null,null,null,null,null,null,null,null,null,null,null,null,null,null,null,null,"Recycled",{"$f":"N99","v":0}]

{"sheet":"EAR","index":9,"n_rows":55,"n_cols":38,"rows_kept":55,"cut":false,"hidden":false,"merged":[]}
[null,null,null,null,null,null,null,null,null,null,null,null,null,null,null,null,null,null,null,null,null,null,null,null,null,"Total CO2 MT",{"$f":"TotalCO2MT","v":0}]
[null,null,null,null,null,null,null,null,null,null,null,null,null,null,null,null,null,null,null,null,null,null,null,null,null,"Norm Graph Label",{"$f":"CONCATENATE(\"CO2 per \",IF(Type=\"Film\",\"Shooting Day\",\"Episode\"))","v":"CO2 per Episode"}]
[null,null,null,null,null,null,null,null,null,null,null,null,null,null,null,null,null,null,null,null,null,null,null,null,null,"Homes",{"$f":"IF(ISERROR(TotalCO2MT*homesperMTCO2),\"\", TotalCO2MT*homesperMTCO2)","v":0},null,null,null,"W",null,null,null,null,null,null,"DON"]
[null,null,null,null,null,null,null,null,null,null,null,null,null,null,null,null,null,null,null,null,null,null,null,null,null,"Vehicles",{"$f":"IF(ISERROR(TotalCO2MT*vehiclesperMTCO2), \"\", TotalCO2MT*vehiclesperMTCO2)","v":0}]
[null,null,null,null,null,null,null,null,null,null,null,null,null,null,null,null,null,null,null,null,null,null,null,null,null,"Trees",{"$f":"IF(ISERROR(TotalCO2MT*treesperMTCO2), \"\", ROUND(TotalCO2MT*treesperMTCO2, -1))","v":0}]
[null,null,null,null,null,null,null,null,null,null,null,null,null,null,null,null,null,null,null,null,null,null,null,null,null,"GalGas",{"$f":"IF(ISERROR(TotalCO2MT*gallonsperMTCO2), \"\", ROUND(TotalCO2MT*gallonsperMTCO2,-1))","v":0}]
[]
[]
[]
[]
[]
[]
[]
[]
[]
[]
[]
[]
[]
[]
[]
[]
[null,null,null,null,null,null,null,null,null,null,null,null,null,null,null,null,null,null,null,null,null,null,null,null,null,null,null,null,null,null,"DW",null,null,null,null,null,null,"P"]
[]
[]
[]
[]
[]
[]
[]
[]
[]
[]
[]
[]
[]
[]
[]
[]
[]
[]
[]
[]
[null,null,null,null,null,null,null,null,null,null,null,null,null,null,null,null,null,null,null,null,null,null,null,null,null,{"$f":"'EAR Metrics'!N86","v":""},null,null,null,null,"F",null,null,null,null,null,null,"PLY"]
[null,null,null,null,null,null,null,null,null,null,null,null,null,null,null,null,null,null,null,null,null,null,null,null,null,{"$f":"'EAR Metrics'!N87","v":""}]
[null,null,null,null,null,null,null,null,null,null,null,null,null,null,null,null,null,null,null,null,null,null,null,null,null,{"$f":"'EAR Metrics'!N88","v":""}]
[null,null,null,null,null,null,null,null,null,null,null,null,null,null,null,null,null,null,null,null,null,null,null,null,null,{"$f":"'EAR Metrics'!N89","v":""}]
[]
[]
[]
[]
[]
[]
[]
["*NOTE:  Add EAR comments on the \"EAR Metrics\" worksheet"]

{"sheet":"Summary","index":10,"n_rows":3,"n_cols":93,"rows_kept":3,"cut":false,"hidden":false,"merged":[[0,87,0,91],[0,17,0,23],[0,47,0,60],[0,44,0,46],[0,61,0,77],[0,78,0,86],[0,24,0,26],[0,27,0,29],[0,30,0,31],[0,32,0,34],[0,35,0,43],[0,7,0,8],[0,9,0,12],[0,13,0,14],[0,15,0,16],[0,0,0,6]]}
["Benchmark ",null,null,null,null,null,null,"Total CO2 (MTCO2)",null,"Summary CO2 (MTCO2)",null,null,null,"Utility Breakout",null,"Air Breakout",null,"Electricity Details",null,null,null,null,null,null,"Heat Details",null,null,"Fuel Details",null,null,"Com Air Details",null,"Chart Air Details",null,null,"Waste",null,null,null,null,null,null,null,null,"Drinking Water",null,null,"Fuel Savings",null,null,null,null,null,null,null,null,null,null,null,null,null,"Donations",null,null,null,null,null,null,null,null,null,null,null,null,null,null,null,null,"Recycled Paper Content",null,null,null,null,null,null,null,null,"L/M Plywood (board feet)",null,null,null,null,"EAR"]
["Type","Name","Category",{"$f":"IF(A3=\"Film\", \"Shooting Days\", IF(A3 = \"TV\",\"Episodes\", \"Type Not Entered\"))","v":"Type Not Entered"},"Region","Start Date","End Date","Total Footprint (MTCO2e)",{"$f":"CONCATENATE(\"CO2 per \",IF(Type=\"Film Production\",\"Shooting day\",IF(Type=\"TV Production\",\"episode\")))","v":"CO2 per FALSE"},"Total Utilities ","Total Fuel CO2","Total Air Travel","Total Housing","Total Electric MTCO2","Total Heat MTCO2","Total Com Air MTCO2","Chart Air Total MTCO2","Total kWh","Entered kWh","SqFt kWh","Cost Kwh","Entered Electric MTCO2","SqFt Electricity MTCO2","Cost Electric MTCO2","Entered Heat MTCO2","SqFt Heat MTCO2","Cost Heat MTCO2","Fuel use MTCO2","Fuel Cost MTCO2","Fuel miles MTCO2","Com Air Flight Type MTCO2","Com Air Total Miles MTCO2","Chart Air Fuel Use MTCO2","Chart Air Miles MTCO2","Chart Air Distance MTCO2","Total Waste (pounds)","Diversion Rate","Waste to Landfill (pounds)","Construction Material to Landfill (pounds)","Polystyrene Foam to Landfill (pounds)","Metal Recycling (pounds)","Recycled Construction Material (pounds)","Other Recycled (pounds)","Compost (pounds)","Bottles Used","Bottle saved","Cost Savings","Total Fuel Savings (MTCO2)","Total Fuel Savings (Gallons)","Hybrids-MTCO2","Biodiesel-MTCO2","Electric Cars-MTCO2","Solar-MTCO2","Grid Tie In MTCO2","Other - MTCO2","Hybrids- gal","Biodiesel - gal","Electric Cars- gal","Solar-gal","Grid Tie In-gal","Other-gal","Total $","Meals","Food- Amount","Food Units","Food $","Set dressing/props- Amount","Set dressing/props- Units","Set dressing/props- Cost","Wardrobe-Amount","Wardrobe-Units","Wardrobe-$","Construction Material- Amount","Construction Material- Units","Construction Material- $","Other-Amount","Other-Units","Other-Cost","Total Reams","Total Virgin (reams)","Total Recycled (Reams)","Trees Saved","0% (reams)","30% (reams)","50% (reams)","70% (reams)","100% (reams)","Lauan/Meranti- non certified","Lauan/Meranti -  FSC","Non Lauan Ply/Other -REMOVED","Lauan Alternative","Repurposed walls","Version"]
[{"$f":"IF(Type=\"TV Production\",\"TV\",IF(Type=\"Film Production\",\"Film\",\"Not Selected\"))","v":"Not Selected"},{"$f":"Name","v":0},{"$f":"IF(A3=\"Film\", '1-Production Info'!C11, IF(A3 = \"TV\", '1-Production Info'!C12, \"Not Entered\"))","v":"Not Entered"},{"$f":"IF(A3=\"Film\", '1-Production Info'!E11, IF(A3 = \"TV\", '1-Production Info'!E12, \"Not Entered\"))","v":"Not Entered"},{"$f":"IF(A3=\"Film\",'1-Production Info'!G11, IF(A3 = \"TV\", '1-Production Info'!G12, \"Not Entered\"))","v":"Not Entered"},{"$f":"'1-Production Info'!E10","v":"00:00:00"},{"$f":"'1-Production Info'!G10","v":"00:00:00"},{"$f":"SUM(J3:M3)","v":0},{"$f":"IFERROR(H3/D3, \"Not Entered\")","v":"Not Entered"},{"$f":"N3+O3","v":0},{"$f":"FuelAll/1000","v":0},{"$f":"P3+Q3","v":0},{"$f":"HouseAll/1000","v":0},{"$f":"EleCO2/1000","v":0},{"$f":"HeatAll/1000","v":0},{"$f":"ComAirTotal/1000","v":0},{"$f":"ChartAirTotal/1000","v":0},{"$f":"kwhAll","v":0},{"$f":"kwh1O","v":0},{"$f":"kWh2O","v":0},{"$f":"kWh3O","v":0},{"$f":"EleCO21/1000","v":0},{"$f":"EleCO22/1000","v":0},{"$f":"EleCO23/1000","v":0},{"$f":"HeatO1/1000","v":0},{"$f":"HeatO2/1000","v":0},{"$f":"HeatO3/1000","v":0},{"$f":"Fuel1/1000","v":0},{"$f":"Fuel2/1000","v":0},{"$f":"Fuel3/1000","v":0},{"$f":"ComAirO1/1000","v":0},{"$f":"ComAirO2/1000","v":0},{"$f":"ChartAir1/1000","v":0},{"$f":"ChartAir2/1000","v":0},{"$f":"ChartAir3/1000","v":0},{"$f":"'EAR Metrics'!W25","v":0},{"$f":"IFERROR(WasteDiversion, \"Error/not entered\")","v":"Error/not entered"},{"$f":"'EAR Metrics'!W17","v":0},{"$f":"'EAR Metrics'!W18","v":0},{"$f":"'EAR Metrics'!W19","v":0},{"$f":"'EAR Metrics'!W21","v":0},{"$f":"'EAR Metrics'!W22","v":0},{"$f":"'EAR Metrics'!W23","v":0},{"$f":"'EAR Metrics'!W24","v":0},{"$f":"BottlesUsed","v":0},{"$f":"BottlesSaved","v":""},{"$f":"WaterCostSavings","v":""},{"$f":"FuelCO2Saved","v":0},{"$f":"FuelGalSaved","v":0},{"$f":"'EAR Metrics'!T62","v":0},{"$f":"'EAR Metrics'!T63","v":0},{"$f":"'EAR Metrics'!T64","v":0},{"$f":"'EAR Metrics'!T65","v":0},{"$f":"'EAR Metrics'!T66","v":0},{"$f":"'EAR Metrics'!T67","v":0},{"$f":"'EAR Metrics'!S62","v":0},{"$f":"'EAR Metrics'!S63","v":0},{"$f":"'EAR Metrics'!S64","v":0},{"$f":"'EAR Metrics'!S65","v":0},{"$f":"'EAR Metrics'!S66","v":0},{"$f":"'EAR Metrics'!S67","v":0},{"$f":"DollarDonations","v":""},{"$f":"'EAR Metrics'!O84","v":""},{"$f":"'EAR Metrics'!D85","v":0},{"$f":"'EAR Metrics'!E85","v":0},{"$f":"'EAR Metrics'!F85","v":0},{"$f":"'EAR Metrics'!D86","v":0},{"$f":"'EAR Metrics'!E86","v":0},{"$f":"'EAR Metrics'!F86","v":0},{"$f":"'EAR Metrics'!D87","v":0},{"$f":"'EAR Metrics'!E87","v":0},{"$f":"'EAR Metrics'!F87","v":0},{"$f":"'EAR Metrics'!D88","v":0},{"$f":"'EAR Metrics'!E88","v":0},{"$f":"'EAR Metrics'!F88","v":0},{"$f":"'EAR Metrics'!D89","v":0},{"$f":"'EAR Metrics'!E89","v":0},{"$f":"'EAR Metrics'!F89","v":0},{"$f":"TotalPaper","v":0},{"$f":"'EAR Metrics'!M99","v":0},{"$f":"'EAR Metrics'!N99","v":0},{"$f":"TreesSaved","v":0},{"$f":"'EAR Metrics'!D94","v":0},{"$f":"'EAR Metrics'!D95","v":0},{"$f":"'EAR Metrics'!D96","v":0},{"$f":"'EAR Metrics'!D97","v":0},{"$f":"'EAR Metrics'!D98","v":0},{"$f":"'EAR Metrics'!Q113","v":0},{"$f":"'EAR Metrics'!Q114","v":0},null,{"$f":"'EAR Metrics'!Q115","v":0},{"$f":"'EAR Metrics'!Q117","v":0},{"$f":"'Intro & Checklist'!D1","v":"Version 3.3.0M"}]

{"sheet":"Megan tasks","index":11,"n_rows":31,"n_cols":9,"rows_kept":31,"cut":false,"hidden":true,"merged":[]}
["Task No.","Worksheet","Task for Megan","Comments by Megan","Status","Date","QC? (CN Comments)","Follow-Up","Date"]
[1,"ALL (Workbook Open Event)","Workbook open settings-  remind me what these do?  Open specific worksheets for admin users?-- see details Below (Permissions)","This sets up workbook every time it opens to a certain page and protection/show/hide. It gives clean tool. See \"ReadMe\" for passwords. Note I updated tab names below to match actual. See \"Workbook Open\" under Workbook module in VBA.","Complete","2013-12-18","1. I would like to delete worksheet 8-Practices and Procurement-- I couldn't find this VBA module?\nCan we discuss what this does again?  \n2. I would like the Summary and Settings worksheets to not hide if a user enters an admin password.\n3. All worksheets should be protected.  The yellow cells in Settings should be unprotected (I did this).  I think the other sheets should already be set to the right protections.\n4. Leave the EAR unprotected for now while lauren finishes it up, but that will be protected eventually.","1. I deleted Worksheet 8 and updated VBA Module. VBA Module is under ThisWorkbook (Workbook_Open) since this is an Event Handler (these are always under corresponding \"Microsoft Excel Object\"). \n2. See what I did for now (prompt)\n3. Please update the table below where you listed requested protections. (Starting A12), especially if you want to re-name any tabs (per Introduction)\n4. Protected EAR since Lauren done, what about EAR Metrics?","2014-01-08"]
[2,"1- Production Info","Add a radio button or dropdown? for \"Film Production\" or \"TV Production\".  If TV selected, hide Film rows.  If radio selected, hide TV rows.   (listed in Column A)","Added Row with Dropdown. Key on top is confusing, required vs. non-required, but there is a third type. Should there be a key item for \"Optional information\" (white)? VBA is in Worksheet (Event Handler), right click \"View Code\" on tab name.","Complete","2013-12-30","Can you not show the \"Please update production site\" pop up if something is already selected?  \nFunctionality looks good.","If not working, make sure that \"Application.EnableEvents = True\" (close and open workbook to reactivate)","2014-01-08"]
[3,"EAR metrics","Check boxes with EAR options.  Only show rows for sections checked","Note there are broken calculations on this tab, can those be updated or removed (tables to right)? Did \"X\" cells since easier. Note this sheet is unprotected, so the user could hide/unhide rows themselves but I do a check when leaving the page to make sure the right rows are showing. OK to go with static row numbers as they are, or do you need to accomodate for inserting rows? Currently does the former.","Complete","2013-12-31","Looks good.\nBroken calculations are updated or noted (e.g., \"Data Input Error\"\nOK to go with static row numbers.  We will protect this sheet except for the specific data entry rows.","OK No Further Changes","2014-01-08"]
[4,"EAR Metrics","button/checkbox to add rows for Wadd and PlyAdd","OK added. Can you remind me what these rows represent? Optional/added rows?","Complete","2013-12-31","This looks good.\nThis is for users to enter extra rows of information if they want to put the same waste/plywood type with different units.","OK No Further Changes","2014-01-08"]
[5,"EAR Metrics","Interface to select quadrants for EAR reports-  only allow checked items in dropdown.  Items can be selected more than once. Anything checked with an \"X\" can be selected from dropdown","Clear value if selected and X --> \"\". Pull quadrants from EAR tab. Goes into quadrant on EAR tab.","Complete","2013-12-31","Looks good.","OK No Further Changes","2014-01-08"]
["5a","EAR","Set location of EAR Report in appropriate quadrant (partial task for next week)","Updated size and location of quadrants so clean fit/alignment.-->  Megan, a graphics person is working on this, all you will need to do is move the text/graphics to the right place, please wait on this task until we discuss","Complete","2014-01-09","I think you should be able to group the whole panel (this can be done ahead of time) and move it to the selected quadrant spot?","Completed, note the panels map to CELL addresses: N11, S11, N31, S31, Also Updated to Delete Groups if Copied Over Previously (Should Only Ever be One Group per Panel Now)","2014-01-10"]
[6,"Refresh button","Reset all sheets to initial settings (no data entered)","Set up a message box to \"ask\" user before making change, in case they don't know what button is. See VBA Module \"Refresh\". Confirm these are the appropriate resets. PS I don't know how to make the text boxes fancy graphics like you do, can you show me or do so for the \"Refresh\" button?","Complete","2014-01-03","I added clear values for the EAR values.  This looks good.","OK No Further Changes","2014-01-08"]
[7,"Settings","Hide \"index\" rows if corresponding setting not equal to \"yes\"  (see columns J through L) if this is easier to do as checkboxes, that's fine too-- whatever works for you.","See updates, I also used text to show the cell values that are changing, don’t delete any cells. Note the macro loops through rows 14-44 looking for triggers, we can always change this range.","Complete","2014-01-02","I moved some things around-- I updated the text and the references, and all seems to work.  Can you please give it a quick check to make sure I didn't screw anything up.","OK No Further Changes (Note I made column A text white, still need text there but invisible)","2014-01-08"]
[8,"Protection issues","see email on 1/23 with details of small errors"]
[]
[]
["NOTE: THE TAB NAMES MUST MATCH LISTING BELOW (do not rename without notifying Megan)"]
["Permissions","Read-Write","Protection","Assumptions"]
["Intro & Checklist","All","Unprotected"]
["1-Production Info","All","Protect"]
["2-Electricity","All","Protect"]
["3-Nat Gas & Heating Oil","All","Protect"]
["4-Fuel","All","Protect"]
["5-Hotels-Housing","All","Protect"]
["6-Commercial Air Travel","All","Protect"]
["7-Charter and Heli Flights","All","Protect"]
["Summary","Admin","Protect","Unhide and Unprotect if Admin Enters Password: environ"]
["Settings","Admin","Protect","Unhide and Unprotect if Admin Enters Password: environ"]
["EAR Metrics","All","Protect"]
["EAR","All","Protected"]
["Megan tasks","All (TEMPORARY UNHIDE)","Unprotected"]
["All others ","Hidden","Protect"]
[]
[]
["WILL HIDE WHEN DONE CODING"]

{"sheet":"Settings","index":12,"n_rows":59,"n_cols":13,"rows_kept":59,"cut":false,"hidden":false,"merged":[[3,2,3,3],[4,2,4,3],[5,2,5,3]]}
[null,{"$f":"CONCATENATE(Name, \" EAR Settings\")","v":" EAR Settings"}]
[null,null,null,null,null,null,null,null,null,null,"Hide associated Row index not set to \"Yes\""]
[null,"Production Information"]
[null,{"$f":"Type","v":0},{"$f":"IF(Type=\"Film Production\",FilmCat,IF(Type=\"TV Production\",TVCat,\"Data Error\"))","v":"Data Error"},null,null,null,null,null,null,"$C$9","NetCO2BM1","Net Benchmark 1",{"$f":"C9","v":"No"}]
[null,"Location:",{"$f":"Region","v":"Not Entered"},null,null,null,null,null,null,"$C$11","NetCO2BM2","Net Benchmark 2",{"$f":"C11","v":"No"}]
[null,{"$f":"IF(Type=\"Film Production\",\"Number of Shooting Days:\", IF(Type=\"TV Production\",\"Number of Episodes:\",\"Data Error\"))","v":"Data Error"},{"$f":"IF(Type=\"Film production\",NumberShootDays,IF(Type=\"TV production\",NumEpisodes,\"Data Error\"))","v":"Data Error"},null,null,null,null,null,null,"$C$14","NormCO2BM1","Norm Benchmark 1",{"$f":"C14","v":"No"}]
[null,null,null,null,null,null,null,null,null,"$C$16","NormCO2BM2","Norm Benchmark 2",{"$f":"C16","v":"No"}]
[null,"Carbon Footprint Goals/Benchmark Options",null,null,null,null,null,null,null,"$C$13","NormGoal","NormGoal",{"$f":"C13","v":"No"}]
[null,"Include Net Benchmark 1?","No",null,null,null,null,null,null,"$C$33","WasteBM","WasteBenchmark",{"$f":"C33","v":"No"}]
["NetCO2BM1","Net Benchmark 1 Name:","Ave Med Prod.",null,null,null,null,null,null,"$C$35","WasteGoal","WasteGoal",{"$f":"C35","v":"No"}]
[null,"Include Net Benchmark 2?","No",null,null,null,null,null,null,"$C$47","H20BM","H20 Benchmark",{"$f":"C47","v":"No"}]
["NetCO2BM2","Net Benchmark 2 Name:","Studio",null,null,null,null,null,null,"$C$49","H20Goal","H20 Goal",{"$f":"C49","v":"No"}]
[null,"Include Norm Goal?","No",null,null,null,null,null,null,"$C$55","PaperBM","Paper Benchmark",{"$f":"C55","v":"No"}]
[null,"Include Norm Benchmark 1?","No",null,null,null,null,null,null,"$C$57","PaperGoal","Paper Goal",{"$f":"C57","v":"No"}]
["NormCO2BM1","Norm Benchmark 1 Name:","Ave Med Prod."]
[null,"Include Net Benchmark 2?","No"]
["NormCO2BM2","Norm Benchmark 2 Name:","Studio"]
[]
[null,"Net CO2 Emissions Benchmarks"]
[null,null,"Utilities","Fuel","Air","Housing","Total"]
[null,{"$f":"Name","v":0},{"$f":"Utilities","v":0},{"$f":"Fuel","v":0},{"$f":"Air","v":0},{"$f":"Housing","v":0},{"$f":"TotalCO2MT","v":0}]
["NetCO2BM1",{"$f":"C10","v":"Ave Med Prod."},105,50,170,60,{"$f":"SUM(C22:F22)","v":385}]
["NetCO2BM2",{"$f":"C12","v":"Studio"},85,45,175,55,{"$f":"SUM(C23:F23)","v":360}]
[]
[null,"Intensity Emissions Benchmarks","used for goal",{"$f":"CONCATENATE(\"CO2 per \",IF(Type=\"Film Production\",\"Shooting Day\",IF(Type=\"TV Production\",\"Episode\")))","v":"CO2 per FALSE"},"used for goal"]
[null,{"$f":"Name","v":0},null,{"$f":"TotalCO2MT/NormFactor","v":{"$error":"#VALUE!"}}]
["NormCO2BM1",{"$f":"C15","v":"Ave Med Prod."},null,6.5]
["NormCO2BM2",{"$f":"C17","v":"Studio"},null,6.4]
["NormGoal","Goal",{"$f":"D29","v":6},6,{"$f":"C29","v":6},null,null,null,null,{"$f":"IF(Type=\"Film Production\",\"Shooting Day\",IF(Type=\"TV Production\",\"Episode\"))","v":false},"used for graph label"]
[]
[]
[null,"Waste Benchmarks"]
[null,"Include Waste Div. Benchmark?","No"]
["WasteBM","Waste Benchmark Name:","Studio"]
[null,"Include Waste Benchmark Goal?","No"]
[]
[null,null,"Diversion Rate"]
[null,{"$f":"Name","v":0},{"$f":"WasteDiversion","v":{"$error":"#DIV/0!"}}]
["WasteBM",{"$f":"C34","v":"Studio"},0.4,null,null,null,null,null,null,{"$f":"IF(C33=\"Yes\", CONCATENATE(B39,\": \",C39*100, \"%\"), \"\")","v":""}]
["WasteGoal","Goal",0.5,null,null,null,null,null,null,{"$f":"IF(C35=\"Yes\", CONCATENATE(B40, \": \", 100*C40, \"%\"), \"\")","v":""}]
[]
[null,"Water Bottle Settings/Benchmarks"]
[]
[null,"Estimated Cost per 0.5L Bottle:",1.29]
[null,"Estimated Cost per Jug:",30]
[null,"Estimated Cost per Reusable Bottle:",12]
[null,"Include H20 Bottle Benchmark?","No"]
["H20BM","H20 Bottle Benchmark Name:","Benchmark"]
[null,"Include H20 Bottle Goal?","No"]
["H20BM",{"$f":"C48","v":"Benchmark"},2000,null,null,null,null,null,null,{"$f":"IF(C47=\"Yes\", CONCATENATE(B50,\": \",C50), \"\")","v":""}]
["H20Goal","Goal",1000,null,null,null,null,null,null,{"$f":"IF(C49=\"No\", \"\", CONCATENATE(B51, \": \", C51))","v":""}]
[]
[null,"Recycled Paper Benchmarks"]
[]
[null,"Include Paper Benchmark?","No"]
["PaperBM","Paper Benchmark Name:","Benchmark"]
[null,"Include Paper Goal?","No"]
["PaperBM",{"$f":"C56","v":"Benchmark"},600,null,null,null,null,null,null,{"$f":"IF(C55=\"Yes\", CONCATENATE(B58,\": \",C58), \"\")","v":""}]
["PaperGoal","Goal",200,null,null,null,null,null,null,{"$f":"IF(C57=\"No\", \"\", CONCATENATE(B59, \": \", C59))","v":""}]

{"sheet":"Results","index":13,"n_rows":59,"n_cols":21,"rows_kept":59,"cut":false,"hidden":true,"merged":[[26,11,26,12],[27,11,27,12],[28,11,28,12],[29,12,33,12],[1,2,1,6],[12,2,12,3],[21,2,22,2],[24,2,25,2],[21,11,21,12],[22,11,22,12],[23,11,23,12],[24,11,24,12],[25,11,25,12]]}
[]
[null,null,{"$f":"\"Carbon Footprint of \"&'1-Production Info'!C10","v":"Carbon Footprint of "},null,null,null,null,null,null,null,null,"Carbon Footprint Results"]
[null,null,null,null,null,null,null,null,null,null,null,"Utilities"]
[null,null,null,"Emission Source","Metric Tons CO2","Percent Contribution",null,null,null,null,null,"Fu"]
[null,null,null,"Electricity",{"$f":"IF(ISERROR('2-Electricity'!U14/1000), \"Data Error\", ('2-Electricity'!U14/1000))","v":0},{"$f":"IF(AND(ISNUMBER($E$10), $E$10>0), E5/$E$10, \"\")","v":""}]
[null,null,null,"Natural Gas & Heating Oil",{"$f":"IF(ISERROR('3-Nat Gas & Heating Oil'!X12/1000), \"Data Error\", '3-Nat Gas & Heating Oil'!X12/1000)","v":0},{"$f":"IF(AND(ISNUMBER($E$10), $E$10>0), E6/$E$10, \"\")","v":""},null,null,null,null,null,"Shooting Days",30]
[null,null,null,"Fuel Use",{"$f":"IF(ISERROR('4-Fuel'!V13/1000), \"Data Error\", ('4-Fuel'!V13/1000))","v":0},{"$f":"IF(AND(ISNUMBER($E$10), $E$10>0), E7/$E$10, \"\")","v":""},null,null,null,null,null,null,"Production","Benchmark 1","Benchmark 2","Goal"]
[null,null,null,"Air Travel",{"$f":"IF(OR(ISERROR('6-Commercial Air Travel'!S12), ISERROR('7-Charter and Heli Flights'!S12)), \"Data Error\", ('6-Commercial Air Travel'!S12+'7-Charter and Heli Flights'!S12)/1000)","v":0},{"$f":"IF(AND(ISNUMBER($E$10), $E$10>0), E8/$E$10, \"\")","v":""},null,null,null,null,null,"Utilities",{"$f":"IF(ISERROR('2-Electricity'!U14/1000), \"Data Error\", ('2-Electricity'!U14/1000))+IF(ISERROR('3-Nat Gas & Heating Oil'!X12/1000), \"Data Error\", '3-Nat Gas & Heating Oil'!X12/1000)","v":0},{"$f":"M8*1.1","v":0},{"$f":"M8*0.9","v":0}]
[null,null,null,"Hotels-Housing",{"$f":"IF(ISERROR('5-Hotels-Housing'!S12/1000), \"Data Error\", ('5-Hotels-Housing'!S12/1000))","v":0},{"$f":"IF(AND(ISNUMBER($E$10), $E$10>0), E9/$E$10, \"\")","v":""},null,null,null,null,null,"Fuel Use",{"$f":"IF(ISERROR('4-Fuel'!V13/1000), \"Data Error\", ('4-Fuel'!V13/1000))","v":0},{"$f":"M9*1.1","v":0},{"$f":"M9*0.9","v":0}]
[null,null,null,"Total",{"$f":"IF(OR(E5=\"Data Error\", E6=\"Data Error\", E7=\"Data Error\", E8=\"Data Error\", E9=\"Data Error\"), \"Data Error\",SUM(E5:E9))","v":0},{"$f":"IF(AND(ISNUMBER($E$10), E15>0), E10/$E$10, \"\")","v":""},null,null,null,null,null,"Air Travel",{"$f":"IF(OR(ISERROR('6-Commercial Air Travel'!S12), ISERROR('7-Charter and Heli Flights'!S12)), \"Data Error\", ('6-Commercial Air Travel'!S12+'7-Charter and Heli Flights'!S12)/1000)","v":0},{"$f":"M10*1.1","v":0},{"$f":"M10*0.9","v":0}]
[null,null,null,null,null,null,null,null,null,null,null,"Hotels/Housing",{"$f":"IF(ISERROR('5-Hotels-Housing'!S12/1000), \"Data Error\", ('5-Hotels-Housing'!S12/1000))","v":0},{"$f":"M11*1.1","v":0},{"$f":"M11*0.9","v":0}]
[null,null,null,null,null,null,null,null,null,null,null,"Total",{"$f":"SUM(M8:M11)","v":0},{"$f":"M12*1.1","v":0},{"$f":"M12*0.9","v":0}]
[null,null,"  CO2  Emissions from this ",null,null,null,null,null,null,null,null,null,"Production","Benchmark 1","Benchmark 2","Goal"]
[null,null,"  production are equivalent to*:",null,null,null,null,null,null,null,null,"Norm 1",0,0,0,1]
[null,null,null,null,null,null,null,null,null,null,null,"Normalized",{"$f":"M12/M6","v":0},{"$f":"M15*1.1","v":0},{"$f":"M15*0.9","v":0},1]
[null,null,"   Annual energy use from",null,null,null,null,null,null,null,null,"Norm 2",0,0,0,1]
[null,null,{"$f":"IF(ISERROR(E10*homesperMTCO2),\"\", E10*homesperMTCO2)","v":0},"homes"]
[]
[null,null,"   Annual emissions from"]
[null,null,{"$f":"IF(ISERROR(E10*vehiclesperMTCO2), \"\", E10*vehiclesperMTCO2)","v":0},"vehicles"]
[]
[null,null,{"$f":"IF(ISERROR(E10*treesperMTCO2), \"\", ROUND(E10*treesperMTCO2, -1))","v":0},"trees",null,null,null,null,null,null,null,"Top of page: Production name and Total carbon footprint; Primary Location, Category of Film or Television production."]
[null,null,null,"grown for 10 years",null,null,null,null,null,null,null,"Carbon Footprint Results:"]
[null,null,null,null,null,null,null,null,null,null,null,"Bar chart with net results summarized in the following categories:"]
[null,null,{"$f":"IF(ISERROR(E10*gallonsperMTCO2), \"\", ROUND(E10*gallonsperMTCO2,-1))","v":0},"gallons",null,null,null,null,null,null,null,"·         Utilities (Electricity, Natural Gas & Heating Oil)"]
[null,null,null,"of gasoline",null,null,null,null,null,null,null,"·         Fuel"]
[null,null,null,null,null,null,null,null,null,null,null,"·         Air Travel (Commercial and Charter)"]
[null,null,null,null,null,null,null,null,null,null,null,"·         Hotels/Housing"]
[null,null,null,null,null,null,null,null,null,null,null,"Bar chart with production footprint normalized results (per shooting day or per episode) "]
[null,null,null,null,null,null,null,null,null,null,null,"Carbon Equivalencies & associated graphics","Text box in which users can add additional measures/challenges"]
[null,null,null,null,null,null,null,null,null,null,null,"·         Annual energy use from X homes"]
[null,null,null,null,null,null,null,null,null,null,null,"·         Annual emissions from X vehicles"]
[null,null,null,null,null,null,null,null,null,null,null,"·         X trees grown for 10 years"]
[null,null,null,null,null,null,null,null,null,null,null,"·         X gallons of gasoline"]
[]
[]
[]
[]
[]
[]
[]
[]
[]
[]
[null,null,"   *Based on EPA Greenhouse Gas Equivalencies Calculator: http://www.epa.gov/cleanenergy/energy-resources/calculator.html"]
[]
[]
[]
[]
[]
[]
[]
[]
[]
[]
[]
[]
[]
[null,null,null,null,null,null,null,null,null,null,null,null,null,null,null,null,null,null,null,"Waste","Water"]

{"sheet":"Sheet1","index":14,"n_rows":0,"n_cols":0,"rows_kept":0,"cut":false,"hidden":true,"merged":[]}

{"sheet":"Lookups","index":15,"n_rows":146,"n_cols":51,"rows_kept":146,"cut":false,"hidden":true,"merged":[]}
["Area_Units","AreaConvert","HeatFuel","NG_Units","NGConvert","FO_Units","FOConvert","Equipment","EquipmentType","Reason","Fuel_Units","FuelUnitsConvert","VehicleFuels","EquipmentFuels","Countries","States","CANProvinces","AusState","FuelOpt3Units","DistanceUnits","DistanceConvert","FlightDistanceUnits","FlightDistanceConversion","FlightClass","PlaneTypes","RoomTypes","WasteUnits",null,"Procurement","WoodTypes","PaperTypes","Water Types","PaintTypes","PaperUnits","VolUnits","EventTypes","CBECType",{"$f":"IF(ISBLANK('1-Production Info'!B20), 1, '1-Production Info'!B20)","v":1},"FilmCategories","TVCategories","Locations","WasteTypes","WasteDensity (lb per cubic yard)","WasteCost ($/lb)","PlyTypes","WasteWeight","WasteConversions","WasteVol","WasteVolConversion","Bottles","Check"]
["square feet",1,"Fuel Oil","cubic feet",1,"gallons",1,"Cars","Vehicle","Personal","gallons",1,"Gasoline ","Gasoline ","USA","AK","Alberta","New South Wales","miles","miles",1,"land miles",1,"First","Chartered Commercial Jet","Economy Hotel","pounds",null,"Wood","Lauan/Meranti- non certified","Recycled white","Bottled water","Low VOC","Reams","Gallons","On Location","Office .......................",{"$f":"IF(ISBLANK('1-Production Info'!B21), 1, '1-Production Info'!B21)","v":1},"Digital","½ Hour Scripted, single camera","West Coast US","Waste to Landfill",{"$f":"AT23","v":450},{"$f":"45/2000","v":2.2499999999999999E-2},"Lauan/Meranti- non certified","lbs",1,"Cubic yard bins",1,"Bottles per jug","X"]
["square meters",10.7639104,"Natural Gas","cubic meters",{"$f":"1/0.028317","v":35.314475403467881},"liters",0.26417205199999999,"Motorcycles","Vehicle","Production","liters",0.26417205199999999,"Diesel Fuel ","Diesel Fuel ","Canada","AL","British Columbia","Australian Capital Teritory","hours","kilometers",0.62137119200000002,"kilometers",0.62137119200000002,"Business","Large Private Jet","Midscale Hotel","kilograms",null,"Paper","Lauan/Meranti -  FSC","Recycled color","5 gallon bottles","No VOC","Cases","Liters","Office","Office .......................",{"$f":"IF(ISBLANK('1-Production Info'!B22), 1, '1-Production Info'!B22)","v":1},"Micro","½ hour scripted, multi-camera","Southern US","Construction Material to Landfill",{"$f":"AT24","v":484},{"$f":"45/2000","v":2.2499999999999999E-2},"Lauan/Meranti -  FSC","kgs",{"$f":"1/0.453592","v":2.2046244201837775},"Gallon containers",{"$f":"1/201.974026","v":4.9511316866060785E-3},"Cost per jug"]
["square yards",9,null,"Btu",{"$f":"1/1028","v":9.727626459143969E-4},"Btu",{"$f":"1/138698","v":7.2099092993410139E-6},"Buses","Vehicle","Rental","std cubic feet",{"$f":"1/134.71","v":7.4233538712790434E-3},"Biodiesel (B100)","Kerosene ","United Kingdom","AR","Manitoba","Victoria",null,null,null,"nautical miles",1.1516,"Economy Plus","Small Private Jet","Upscale Hotel","metric tons",null,"Paint","Non Lauan Ply/Other","Virgin white",null,null,null,null,"Warehouse","Warehouse and Storage ........",{"$f":"IF(ISBLANK('1-Production Info'!B23), 1, '1-Production Info'!B23)","v":1},"Small","1 Hour scripted drama","Other US","Polystyrene Foam to Landfill",50.566649999999996,2.2499999999999999E-2,"Lauan Alternative","tons",{"$f":"2000","v":2000},null,null,"Cost per bottle"]
["acres",43560,null,"Megajoules",{"$f":"1/1.0846","v":0.9219988936013277},"Megajoules",{"$f":"1/146.33","v":6.8338686530444882E-3},"Vans, Pickups, SUVs","Vehicle","Other",null,null,"B5","RFO (Ships)","Australia","AZ","Labrador","Queensland",null,null,null,null,null,"Economy","Helicopter","Luxury Hotel","tons",null,"Ahesives","Ply Alternative","Virgin color",null,null,null,null,"Stage(s)","Warehouse and Storage ........",{"$f":"IF(ISBLANK('1-Production Info'!B24), 1, '1-Production Info'!B24)","v":1},"Medium","Animated","Canada","Mixed Recycled",117.98885,2.2499999999999999E-2,null,"metric tons",{"$f":"1/0.00045359237","v":2204.6226218487759}]
[null,null,null,null,null,null,null,"Trucks (<18 wheel)","Vehicle",null,"Fuel_UnitsPropane",null,"B20","Propane","Albania","CA","New Brunswick","South Australia",null,null,null,null,null,"Unknown",null,"Apartment/Condo",null,null,"Glass","Recycled",null,null,null,null,null,null,null,{"$f":"IF(ISBLANK('1-Production Info'!B25), 1, '1-Production Info'!B25)","v":1},"Large","Reality/Variety","UK/Europe","Metal Recycling",340,2.2499999999999999E-2]
[null,null,null,null,null,null,null,"18 Wheelers","Vehicle",null,"gallons",{"$f":"L2","v":1},"B40","Fuel Oil","Algeria","CO","Newfoundland","Western Australia",null,null,null,null,null,null,null,"Average House",null,null,"Water","Wood alternative",null,null,null,null,null,null,null,{"$f":"IF(ISBLANK('1-Production Info'!B26), 1, '1-Production Info'!B26)","v":1},"Tentpole","Movie of the Week","Other International","Recycled Construction Material",484,2.2499999999999999E-2]
[null,null,null,null,null,null,null,"All Vehicles","Vehicle",null,"liters",{"$f":"L3","v":0.26417205199999999},"B99","Biodiesel (B100)","Angola","CT","Nova Scotia","Tasmaian",null,null,null,null,null,null,null,"Large House",null,null,"Styrofoam","Other",null,null,null,null,null,null,null,{"$f":"IF(ISBLANK('1-Production Info'!B27), 1, '1-Production Info'!B27)","v":1},null,"Pilot Presentation","Multiple","Other Recycled",356.77016416666669,2.2499999999999999E-2]
[null,null,null,null,null,null,null,"Hybrid SUVs","Vehicle",null,"kilograms",{"$f":"1/L15","v":0.53584584178498984},"Ethanol (E100)","B5","Argentina","DC","Ontario","Northern Territory",null,null,null,null,null,null,null,null,null,null,"Other \"Green\" Purchases",null,null,null,null,null,null,null,null,{"$f":"IF(ISBLANK('1-Production Info'!B28), 1, '1-Production Info'!B28)","v":1},null,"Daytime Drama",null,"Compost",264.63213500000001,2.2499999999999999E-2]
[null,null,null,null,null,null,null,"Hybrid Cars","Vehicle",null,null,null,"E85","B20","Armenia","DE","Prince Edward Island",null,null,null,null,null,null,null,null,null,null,null,null,null,null,null,null,null,null,null,null,{"$f":"IF(ISBLANK('1-Production Info'!B29), 1, '1-Production Info'!B29)","v":1}]
[null,null,null,null,null,null,null,"Boat","Equipment",null,null,null,"LNG","B40","Australia","FL","Quebec",null,null,null,null,null,null,null,null,null,null,null,null,null,null,null,null,null,null,null,null,{"$f":"IF(ISBLANK('1-Production Info'!B30), 1, '1-Production Info'!B30)","v":1}]
[null,null,null,null,null,null,null,"Generator","Equipment",null,null,null,"LPG","B99","Austria","GA","Saskatchewan",null,null,null,null,null,null,null,null,null,null,null,null,null,null,null,null,null,null,null,null,{"$f":"IF(ISBLANK('1-Production Info'!B31), 1, '1-Production Info'!B31)","v":1}]
[null,null,null,null,null,null,null,"Cooking Equipment","Equipment",null,"Propkgperm3",493,"CNG","E100","Azerbaijan","HI","Yukon",null,null,null,null,null,null,null,null,null,null,null,null,null,null,null,null,null,null,null,null,{"$f":"IF(ISBLANK('1-Production Info'!B32), 1, '1-Production Info'!B32)","v":1}]
[null,null,null,null,null,null,null,"Lift","Equipment",null,"galperm3",264.17200000000003,null,"E85","Bahrain","IA","Northwest Territories",null,null,null,null,null,null,null,null,null,null,null,null,null,null,null,null,null,null,null,null,{"$f":"IF(ISBLANK('1-Production Info'!B33), 1, '1-Production Info'!B33)","v":1}]
[null,null,null,null,null,null,null,"Other","Equipment",null,"Propkgpergal",{"$f":"L13/L14","v":1.8662083793891857},null,"LNG","Bangladesh","ID","Nunavut",null,null,null,null,null,null,null,null,null,null,null,null,null,null,null,null,null,null,null,null,{"$f":"IF(ISBLANK('1-Production Info'!B34), 1, '1-Production Info'!B34)","v":1}]
[null,null,null,null,null,null,null,null,null,null,"kg/lt",{"$f":"L9/L8","v":2.028397166650278},null,"LPG","Belarus","IL",null,null,null,null,null,null,null,null,null,null,null,null,null,null,null,null,null,null,null,null,null,{"$f":"IF(ISBLANK('1-Production Info'!B35), 1, '1-Production Info'!B35)","v":1},null,null,null,null,"http://www.calrecycle.ca.gov/wastechar/DispRate.htm"]
[null,null,null,null,null,null,null,null,null,null,null,null,null,"CNG","Belgium","IN",null,null,null,null,null,null,null,null,null,null,null,null,null,null,null,null,null,null,null,null,null,{"$f":"IF(ISBLANK('1-Production Info'!B36), 1, '1-Production Info'!B36)","v":1},null,null,null,null,"http://www.deq.state.ms.us/mdeq.nsf/page/Recycling_MaterialDensityandVolumeConversion?OpenDocument"]
[null,null,null,null,null,null,null,null,null,null,null,null,null,null,"Benin","KS",null,null,null,null,null,null,null,null,null,null,null,null,null,null,null,null,null,null,null,null,null,{"$f":"IF(ISBLANK('1-Production Info'!B37), 1, '1-Production Info'!B37)","v":1},null,null,null,"Polystreme foam","0.03g/cm³","http://www.engineeringtoolbox.com/density-solids-d_1265.html"]
[null,null,null,null,null,null,null,null,null,null,null,null,null,null,"Bolivia","KY",null,null,null,null,null,null,null,null,null,null,null,null,null,null,null,null,null,null,null,null,null,{"$f":"IF(ISBLANK('1-Production Info'!B38), 1, '1-Production Info'!B38)","v":1},null,null,null,"Compost (assume food)",null,"http://www.wrap.org.uk/sites/files/wrap/Bulk%20Density%20Summary%20Report%20-%20Jan2010.pdf"]
[null,null,null,null,null,null,null,null,null,null,null,null,null,null,"Bosnia and Herzegovina","LA",null,null,null,null,null,null,null,null,null,null,null,null,null,null,null,null,null,null,null,null,null,{"$f":"IF(ISBLANK('1-Production Info'!B39), 1, '1-Production Info'!B39)","v":1},null,null,null,"Co-mingled: Plastic bottles, news & pams, cardboard, mixed cans and glass \nCo-mingled: Plastic bottles, news & pams, cardboard, mixed cans and glass","405 kg/m3"]
[null,null,null,null,null,null,null,null,null,null,null,null,null,null,"Botswana","MA",null,null,null,null,null,null,null,null,null,null,null,null,null,null,null,null,null,null,null,null,null,{"$f":"IF(ISBLANK('1-Production Info'!B40), 1, '1-Production Info'!B40)","v":1},null,null,null,null,null,null,null,null,null,1.6855549999999999]
[null,null,null,null,null,null,null,null,null,null,null,null,null,null,"Brazil","MD",null,null,null,null,null,null,null,null,null,null,null,null,null,null,null,null,null,null,null,null,null,{"$f":"IF(ISBLANK('1-Production Info'!B41), 1, '1-Production Info'!B41)","v":1},null,null,null,"Category","Reference Classification","original value","original units","WasteDensity (lb per cubic yard)"]
[null,null,null,null,null,null,null,null,null,null,null,null,null,null,"Brunei Darussalam","ME",null,null,null,null,null,null,null,null,null,null,null,null,null,null,null,null,null,null,null,null,null,{"$f":"IF(ISBLANK('1-Production Info'!B42), 1, '1-Production Info'!B42)","v":1},null,null,null,"Waste to Landfill","Ave Commercial/Industrial",450,"pounds/yd3",{"$f":"AR23","v":450},"http://www.epa.gov/osw/conserve/tools/recmeas/docs/guide_b.pdf"]
[null,null,null,null,null,null,null,null,null,null,null,null,null,null,"Bulgaria","MI",null,null,null,null,null,null,null,null,null,null,null,null,null,null,null,null,null,null,null,null,null,{"$f":"IF(ISBLANK('1-Production Info'!B43), 1, '1-Production Info'!B43)","v":1},null,null,null,"Construction Material to Landfill","C&D Debris",484,"pounds/yd3",{"$f":"AR24","v":484},"http://www.dep.state.fl.us/waste/quick_topics/publications/shw/recycling/candd/cdconversionformula.pdf"]
[null,null,null,null,null,null,null,null,null,null,null,null,null,null,"Cambodia","MN",null,null,null,null,null,null,null,null,null,null,null,null,null,null,null,null,null,null,null,null,null,{"$f":"IF(ISBLANK('1-Production Info'!B44), 1, '1-Production Info'!B44)","v":1},null,null,null,"Polystyrene Foam to Landfill","Foam",30,"kg/m3",{"$f":"AR25*$AV$21","v":50.566649999999996},"http://www.epa.vic.gov.au/business"]
[null,null,null,null,null,null,null,null,null,null,null,null,null,null,"Cameroon","MO",null,null,null,null,null,null,null,null,null,null,null,null,null,null,null,null,null,null,null,null,null,{"$f":"IF(ISBLANK('1-Production Info'!B45), 1, '1-Production Info'!B45)","v":1},null,null,null,"Mixed Recycled","Co-mingled: Plastic bottles, news & pams, cardboard and mixed cans",70,"kg/m3",{"$f":"AR26*$AV$21","v":117.98885},"http://www.wrap.org.uk/sites/files/wrap/Bulk%20Density%20Summary%20Report%20-%20Jan2010.pdf"]
[null,null,null,null,null,null,null,null,null,null,null,null,null,null,"Canada","MS",null,null,null,null,null,null,null,null,null,null,null,null,null,null,null,null,null,null,null,null,null,{"$f":"IF(ISBLANK('1-Production Info'!B46), 1, '1-Production Info'!B46)","v":1},null,null,null,"Metal Recycling","Ave Aluminum can (compacted manually)",{"$f":"(250+430)/2","v":340},"pounds/yd3",340,"http://www.epa.gov/osw/conserve/tools/recmeas/docs/guide_b.pdf"]
[null,null,null,null,null,null,null,null,null,null,null,null,null,null,"Chile","MT",null,null,null,null,null,null,null,null,null,null,null,null,null,null,null,null,null,null,null,null,null,{"$f":"IF(ISBLANK('1-Production Info'!B47), 1, '1-Production Info'!B47)","v":1},null,null,null,"Recycled Construction Material","C&D Debris",484,null,{"$f":"AR28","v":484},"http://www.wastediversion.org/files/managed/Document/230/Weight"]
[null,null,null,null,null,null,null,null,null,null,null,null,null,null,"China (including Hong Kong)","NC",null,null,null,null,null,null,null,null,null,null,null,null,null,null,null,null,null,null,null,null,null,{"$f":"IF(ISBLANK('1-Production Info'!B48), 1, '1-Production Info'!B48)","v":1},null,null,null,"Other Recycled","Ave excluding foam",null,null,{"$f":"AVERAGE(AT23:AT24,AT26:AT28,AT30)","v":356.77016416666669}]
[null,null,null,null,null,null,null,null,null,null,null,null,null,null,"Taiwan, China","ND",null,null,null,null,null,null,null,null,null,null,null,null,null,null,null,null,null,null,null,null,null,{"$f":"IF(ISBLANK('1-Production Info'!B49), 1, '1-Production Info'!B49)","v":1},null,null,null,"Compost","Food and garden",157,"kg/m3",{"$f":"AR30*$AV$21","v":264.63213500000001},"http://www.wrap.org.uk/sites/files/wrap/Bulk%20Density%20Summary%20Report%20-%20Jan2010.pdf"]
[null,null,null,null,null,null,null,null,null,null,null,null,null,null,"Colombia","NE",null,null,null,null,null,null,null,null,null,null,null,null,null,null,null,null,null,null,null,null,null,{"$f":"IF(ISBLANK('1-Production Info'!B50), 1, '1-Production Info'!B50)","v":1}]
[null,null,null,null,null,null,null,null,null,null,null,null,null,null,"Congo","NH",null,null,null,null,null,null,null,null,null,null,null,null,null,null,null,null,null,null,null,null,null,{"$f":"IF(ISBLANK('1-Production Info'!B51), 1, '1-Production Info'!B51)","v":1}]
[null,null,null,null,null,null,null,null,null,null,null,null,null,null,"Costa Rica","NJ",null,null,null,null,null,null,null,null,null,null,null,null,null,null,null,null,null,null,null,null,null,{"$f":"IF(ISBLANK('1-Production Info'!B52), 1, '1-Production Info'!B52)","v":1}]
[null,null,null,null,null,null,null,null,null,null,null,null,null,null,"Côte d'Ivoire","NM",null,null,null,null,null,null,null,null,null,null,null,null,null,null,null,null,null,null,null,null,null,{"$f":"IF(ISBLANK('1-Production Info'!B53), 1, '1-Production Info'!B53)","v":1}]
[null,null,null,null,null,null,null,null,null,null,null,null,null,null,"Croatia","NV",null,null,null,null,null,null,null,null,null,null,null,null,null,null,null,null,null,null,null,null,null,{"$f":"IF(ISBLANK('1-Production Info'!B54), 1, '1-Production Info'!B54)","v":1}]
[null,null,null,null,null,null,null,null,null,null,null,null,null,null,"Cuba","NY",null,null,null,null,null,null,null,null,null,null,null,null,null,null,null,null,null,null,null,null,null,{"$f":"IF(ISBLANK('1-Production Info'!B55), 1, '1-Production Info'!B55)","v":1}]
[null,null,null,null,null,null,null,null,null,null,null,null,null,null,"Cyprus","OH",null,null,null,null,null,null,null,null,null,null,null,null,null,null,null,null,null,null,null,null,null,{"$f":"IF(ISBLANK('1-Production Info'!B56), 1, '1-Production Info'!B56)","v":1}]
[null,null,null,null,null,null,null,null,null,null,null,null,null,null,"Czech Republic","OK",null,null,null,null,null,null,null,null,null,null,null,null,null,null,null,null,null,null,null,null,null,{"$f":"IF(ISBLANK('1-Production Info'!B57), 1, '1-Production Info'!B57)","v":1}]
[null,null,null,null,null,null,null,null,null,null,null,null,null,null,"Dem. People's Republic of Korea","OR",null,null,null,null,null,null,null,null,null,null,null,null,null,null,null,null,null,null,null,null,null,{"$f":"IF(ISBLANK('1-Production Info'!B58), 1, '1-Production Info'!B58)","v":1}]
[null,null,null,null,null,null,null,null,null,null,null,null,null,null,"Democratic Republic of Congo","PA",null,null,null,null,null,null,null,null,null,null,null,null,null,null,null,null,null,null,null,null,null,{"$f":"IF(ISBLANK('1-Production Info'!B59), 1, '1-Production Info'!B59)","v":1}]
[null,null,null,null,null,null,null,null,null,null,null,null,null,null,"Denmark","Puerto Rico",null,null,null,null,null,null,null,null,null,null,null,null,null,null,null,null,null,null,null,null,null,{"$f":"IF(ISBLANK('1-Production Info'!B60), 1, '1-Production Info'!B60)","v":1}]
[null,null,null,null,null,null,null,null,null,null,null,null,null,null,"Dominican Republic","RI",null,null,null,null,null,null,null,null,null,null,null,null,null,null,null,null,null,null,null,null,null,{"$f":"IF(ISBLANK('1-Production Info'!B61), 1, '1-Production Info'!B61)","v":1}]
[null,null,null,null,null,null,null,null,null,null,null,null,null,null,"Ecuador","SC",null,null,null,null,null,null,null,null,null,null,null,null,null,null,null,null,null,null,null,null,null,{"$f":"IF(ISBLANK('1-Production Info'!B62), 1, '1-Production Info'!B62)","v":1}]
[null,null,null,null,null,null,null,null,null,null,null,null,null,null,"Egypt","SD",null,null,null,null,null,null,null,null,null,null,null,null,null,null,null,null,null,null,null,null,null,{"$f":"IF(ISBLANK('1-Production Info'!B63), 1, '1-Production Info'!B63)","v":1}]
[null,null,null,null,null,null,null,null,null,null,null,null,null,null,"El Salvador","TN",null,null,null,null,null,null,null,null,null,null,null,null,null,null,null,null,null,null,null,null,null,{"$f":"IF(ISBLANK('1-Production Info'!B64), 1, '1-Production Info'!B64)","v":1}]
[null,null,null,null,null,null,null,null,null,null,null,null,null,null,"Eritrea","TX",null,null,null,null,null,null,null,null,null,null,null,null,null,null,null,null,null,null,null,null,null,{"$f":"IF(ISBLANK('1-Production Info'!B65), 1, '1-Production Info'!B65)","v":1}]
[null,null,null,null,null,null,null,null,null,null,null,null,null,null,"Estonia","UT",null,null,null,null,null,null,null,null,null,null,null,null,null,null,null,null,null,null,null,null,null,{"$f":"IF(ISBLANK('1-Production Info'!B66), 1, '1-Production Info'!B66)","v":1}]
[null,null,null,null,null,null,null,null,null,null,null,null,null,null,"Ethiopia","VA",null,null,null,null,null,null,null,null,null,null,null,null,null,null,null,null,null,null,null,null,null,{"$f":"IF(ISBLANK('1-Production Info'!B67), 1, '1-Production Info'!B67)","v":1}]
[null,null,null,null,null,null,null,null,null,null,null,null,null,null,"Finland","VT",null,null,null,null,null,null,null,null,null,null,null,null,null,null,null,null,null,null,null,null,null,{"$f":"IF(ISBLANK('1-Production Info'!B68), 1, '1-Production Info'!B68)","v":1}]
[null,null,null,null,null,null,null,null,null,null,null,null,null,null,"France","WA",null,null,null,null,null,null,null,null,null,null,null,null,null,null,null,null,null,null,null,null,null,{"$f":"IF(ISBLANK('1-Production Info'!B69), 1, '1-Production Info'!B69)","v":1}]
[null,null,null,null,null,null,null,null,null,null,null,null,null,null,"FYR of Macedonia","WI",null,null,null,null,null,null,null,null,null,null,null,null,null,null,null,null,null,null,null,null,null,{"$f":"IF(ISBLANK('1-Production Info'!B70), 1, '1-Production Info'!B70)","v":1}]
[null,null,null,null,null,null,null,null,null,null,null,null,null,null,"Gabon","WV",null,null,null,null,null,null,null,null,null,null,null,null,null,null,null,null,null,null,null,null,null,{"$f":"IF(ISBLANK('1-Production Info'!B71), 1, '1-Production Info'!B71)","v":1}]
[null,null,null,null,null,null,null,null,null,null,null,null,null,null,"Georgia","WY",null,null,null,null,null,null,null,null,null,null,null,null,null,null,null,null,null,null,null,null,null,{"$f":"IF(ISBLANK('1-Production Info'!B72), 1, '1-Production Info'!B72)","v":1}]
[null,null,null,null,null,null,null,null,null,null,null,null,null,null,"Germany",null,null,null,null,null,null,null,null,null,null,null,null,null,null,null,null,null,null,null,null,null,null,{"$f":"IF(ISBLANK('1-Production Info'!B73), 1, '1-Production Info'!B73)","v":1}]
[null,null,null,null,null,null,null,null,null,null,null,null,null,null,"Ghana",null,null,null,null,null,null,null,null,null,null,null,null,null,null,null,null,null,null,null,null,null,null,{"$f":"IF(ISBLANK('1-Production Info'!B74), 1, '1-Production Info'!B74)","v":1}]
[null,null,null,null,null,null,null,null,null,null,null,null,null,null,"Gibraltar",null,"*Note:  make sure lists match named ranges and the all of the country names correspond to the list of countried on the ElectricityEFs page",null,null,null,null,null,null,null,null,null,null,null,null,null,null,null,null,null,null,null,null,{"$f":"IF(ISBLANK('1-Production Info'!B75), 1, '1-Production Info'!B75)","v":1}]
[null,null,null,null,null,null,null,null,null,null,null,null,null,null,"Greece",null,null,null,null,null,null,null,null,null,null,null,null,null,null,null,null,null,null,null,null,null,null,{"$f":"IF(ISBLANK('1-Production Info'!B76), 1, '1-Production Info'!B76)","v":1}]
[null,null,null,null,null,null,null,null,null,null,null,null,null,null,"Guatemala",null,null,null,null,null,null,null,null,null,null,null,null,null,null,null,null,null,null,null,null,null,null,{"$f":"IF(ISBLANK('1-Production Info'!B77), 1, '1-Production Info'!B77)","v":1}]
[null,null,null,null,null,null,null,null,null,null,null,null,null,null,"Haiti",null,null,null,null,null,null,null,null,null,null,null,null,null,null,null,null,null,null,null,null,null,null,{"$f":"IF(ISBLANK('1-Production Info'!B78), 1, '1-Production Info'!B78)","v":1}]
[null,null,null,null,null,null,null,null,null,null,null,null,null,null,"Honduras",null,null,null,null,null,null,null,null,null,null,null,null,null,null,null,null,null,null,null,null,null,null,{"$f":"IF(ISBLANK('1-Production Info'!B79), 1, '1-Production Info'!B79)","v":1}]
[null,null,null,null,null,null,null,null,null,null,null,null,null,null,"Hong Kong, China",null,null,null,null,null,null,null,null,null,null,null,null,null,null,null,null,null,null,null,null,null,null,{"$f":"IF(ISBLANK('1-Production Info'!B80), 1, '1-Production Info'!B80)","v":1}]
[null,null,null,null,null,null,null,null,null,null,null,null,null,null,"Hungary",null,null,null,null,null,null,null,null,null,null,null,null,null,null,null,null,null,null,null,null,null,null,{"$f":"IF(ISBLANK('1-Production Info'!B81), 1, '1-Production Info'!B81)","v":1}]
[null,null,null,null,null,null,null,null,null,null,null,null,null,null,"Iceland",null,null,null,null,null,null,null,null,null,null,null,null,null,null,null,null,null,null,null,null,null,null,{"$f":"IF(ISBLANK('1-Production Info'!B82), 1, '1-Production Info'!B82)","v":1}]
[null,null,null,null,null,null,null,null,null,null,null,null,null,null,"India",null,null,null,null,null,null,null,null,null,null,null,null,null,null,null,null,null,null,null,null,null,null,{"$f":"IF(ISBLANK('1-Production Info'!B83), 1, '1-Production Info'!B83)","v":1}]
[null,null,null,null,null,null,null,null,null,null,null,null,null,null,"Indonesia",null,null,null,null,null,null,null,null,null,null,null,null,null,null,null,null,null,null,null,null,null,null,{"$f":"IF(ISBLANK('1-Production Info'!B84), 1, '1-Production Info'!B84)","v":1}]
[null,null,null,null,null,null,null,null,null,null,null,null,null,null,"Iraq",null,null,null,null,null,null,null,null,null,null,null,null,null,null,null,null,null,null,null,null,null,null,{"$f":"IF(ISBLANK('1-Production Info'!B85), 1, '1-Production Info'!B85)","v":1}]
[null,null,null,null,null,null,null,null,null,null,null,null,null,null,"Ireland",null,null,null,null,null,null,null,null,null,null,null,null,null,null,null,null,null,null,null,null,null,null,{"$f":"IF(ISBLANK('1-Production Info'!B86), 1, '1-Production Info'!B86)","v":1}]
[null,null,null,null,null,null,null,null,null,null,null,null,null,null,"Islamic Republic of Iran",null,null,null,null,null,null,null,null,null,null,null,null,null,null,null,null,null,null,null,null,null,null,{"$f":"IF(ISBLANK('1-Production Info'!B87), 1, '1-Production Info'!B87)","v":1}]
[null,null,null,null,null,null,null,null,null,null,null,null,null,null,"Israel",null,null,null,null,null,null,null,null,null,null,null,null,null,null,null,null,null,null,null,null,null,null,{"$f":"IF(ISBLANK('1-Production Info'!B88), 1, '1-Production Info'!B88)","v":1}]
[null,null,null,null,null,null,null,null,null,null,null,null,null,null,"Italy",null,null,null,null,null,null,null,null,null,null,null,null,null,null,null,null,null,null,null,null,null,null,{"$f":"IF(ISBLANK('1-Production Info'!B89), 1, '1-Production Info'!B89)","v":1}]
[null,null,null,null,null,null,null,null,null,null,null,null,null,null,"Jamaica",null,null,null,null,null,null,null,null,null,null,null,null,null,null,null,null,null,null,null,null,null,null,{"$f":"IF(ISBLANK('1-Production Info'!B90), 1, '1-Production Info'!B90)","v":1}]
[null,null,null,null,null,null,null,null,null,null,null,null,null,null,"Japan",null,null,null,null,null,null,null,null,null,null,null,null,null,null,null,null,null,null,null,null,null,null,{"$f":"IF(ISBLANK('1-Production Info'!B91), 1, '1-Production Info'!B91)","v":1}]
[null,null,null,null,null,null,null,null,null,null,null,null,null,null,"Jordan",null,null,null,null,null,null,null,null,null,null,null,null,null,null,null,null,null,null,null,null,null,null,{"$f":"IF(ISBLANK('1-Production Info'!B92), 1, '1-Production Info'!B92)","v":1}]
[null,null,null,null,null,null,null,null,null,null,null,null,null,null,"Kazakhstan",null,null,null,null,null,null,null,null,null,null,null,null,null,null,null,null,null,null,null,null,null,null,{"$f":"IF(ISBLANK('1-Production Info'!B93), 1, '1-Production Info'!B93)","v":1}]
[null,null,null,null,null,null,null,null,null,null,null,null,null,null,"Kenya",null,null,null,null,null,null,null,null,null,null,null,null,null,null,null,null,null,null,null,null,null,null,{"$f":"IF(ISBLANK('1-Production Info'!B94), 1, '1-Production Info'!B94)","v":1}]
[null,null,null,null,null,null,null,null,null,null,null,null,null,null,"Korea",null,null,null,null,null,null,null,null,null,null,null,null,null,null,null,null,null,null,null,null,null,null,{"$f":"IF(ISBLANK('1-Production Info'!B95), 1, '1-Production Info'!B95)","v":1}]
[null,null,null,null,null,null,null,null,null,null,null,null,null,null,"Kuwait",null,null,null,null,null,null,null,null,null,null,null,null,null,null,null,null,null,null,null,null,null,null,{"$f":"IF(ISBLANK('1-Production Info'!B96), 1, '1-Production Info'!B96)","v":1}]
[null,null,null,null,null,null,null,null,null,null,null,null,null,null,"Kyrgyzstan",null,null,null,null,null,null,null,null,null,null,null,null,null,null,null,null,null,null,null,null,null,null,{"$f":"IF(ISBLANK('1-Production Info'!B97), 1, '1-Production Info'!B97)","v":1}]
[null,null,null,null,null,null,null,null,null,null,null,null,null,null,"Latvia",null,null,null,null,null,null,null,null,null,null,null,null,null,null,null,null,null,null,null,null,null,null,{"$f":"IF(ISBLANK('1-Production Info'!B98), 1, '1-Production Info'!B98)","v":1}]
[null,null,null,null,null,null,null,null,null,null,null,null,null,null,"Lebanon",null,null,null,null,null,null,null,null,null,null,null,null,null,null,null,null,null,null,null,null,null,null,{"$f":"IF(ISBLANK('1-Production Info'!B99), 1, '1-Production Info'!B99)","v":1}]
[null,null,null,null,null,null,null,null,null,null,null,null,null,null,"Libyan Arab Jamahiriya",null,null,null,null,null,null,null,null,null,null,null,null,null,null,null,null,null,null,null,null,null,null,{"$f":"IF(ISBLANK('1-Production Info'!B100), 1, '1-Production Info'!B100)","v":1}]
[null,null,null,null,null,null,null,null,null,null,null,null,null,null,"Lithuania",null,null,null,null,null,null,null,null,null,null,null,null,null,null,null,null,null,null,null,null,null,null,{"$f":"IF(ISBLANK('1-Production Info'!B101), 1, '1-Production Info'!B101)","v":1}]
[null,null,null,null,null,null,null,null,null,null,null,null,null,null,"Luxembourg",null,null,null,null,null,null,null,null,null,null,null,null,null,null,null,null,null,null,null,null,null,null,{"$f":"IF(ISBLANK('1-Production Info'!B102), 1, '1-Production Info'!B102)","v":1}]
[null,null,null,null,null,null,null,null,null,null,null,null,null,null,"Malaysia",null,null,null,null,null,null,null,null,null,null,null,null,null,null,null,null,null,null,null,null,null,null,{"$f":"IF(ISBLANK('1-Production Info'!B103), 1, '1-Production Info'!B103)","v":1}]
[null,null,null,null,null,null,null,null,null,null,null,null,null,null,"Malta",null,null,null,null,null,null,null,null,null,null,null,null,null,null,null,null,null,null,null,null,null,null,{"$f":"IF(ISBLANK('1-Production Info'!B104), 1, '1-Production Info'!B104)","v":1}]
[null,null,null,null,null,null,null,null,null,null,null,null,null,null,"Mexico"]
[null,null,null,null,null,null,null,null,null,null,null,null,null,null,"Middle East"]
[null,null,null,null,null,null,null,null,null,null,null,null,null,null,"Mongolia"]
[null,null,null,null,null,null,null,null,null,null,null,null,null,null,"Morocco"]
[null,null,null,null,null,null,null,null,null,null,null,null,null,null,"Mozambique"]
[null,null,null,null,null,null,null,null,null,null,null,null,null,null,"Myanmar"]
[null,null,null,null,null,null,null,null,null,null,null,null,null,null,"Namibia"]
[null,null,null,null,null,null,null,null,null,null,null,null,null,null,"Nepal"]
[null,null,null,null,null,null,null,null,null,null,null,null,null,null,"Netherlands"]
[null,null,null,null,null,null,null,null,null,null,null,null,null,null,"Netherlands Antilles"]
[null,null,null,null,null,null,null,null,null,null,null,null,null,null,"New Zealand"]
[null,null,null,null,null,null,null,null,null,null,null,null,null,null,"Nicaragua"]
[null,null,null,null,null,null,null,null,null,null,null,null,null,null,"Nigeria"]
[null,null,null,null,null,null,null,null,null,null,null,null,null,null,"Norway"]
[null,null,null,null,null,null,null,null,null,null,null,null,null,null,"Oman"]
[null,null,null,null,null,null,null,null,null,null,null,null,null,null,"Other Africa"]
[null,null,null,null,null,null,null,null,null,null,null,null,null,null,"Other Asia"]
[null,null,null,null,null,null,null,null,null,null,null,null,null,null,"Other Latin America"]
[null,null,null,null,null,null,null,null,null,null,null,null,null,null,"Pakistan"]
[null,null,null,null,null,null,null,null,null,null,null,null,null,null,"Panama"]
[null,null,null,null,null,null,null,null,null,null,null,null,null,null,"Paraguay"]
[null,null,null,null,null,null,null,null,null,null,null,null,null,null,"China (mainland)"]
[null,null,null,null,null,null,null,null,null,null,null,null,null,null,"Peru"]
[null,null,null,null,null,null,null,null,null,null,null,null,null,null,"Philippines"]
[null,null,null,null,null,null,null,null,null,null,null,null,null,null,"Poland"]
[null,null,null,null,null,null,null,null,null,null,null,null,null,null,"Portugal"]
[null,null,null,null,null,null,null,null,null,null,null,null,null,null,"Qatar"]
[null,null,null,null,null,null,null,null,null,null,null,null,null,null,"Republic of Moldova"]
[null,null,null,null,null,null,null,null,null,null,null,null,null,null,"Romania"]
[null,null,null,null,null,null,null,null,null,null,null,null,null,null,"Russian Federation"]
[null,null,null,null,null,null,null,null,null,null,null,null,null,null,"Saudi Arabia"]
[null,null,null,null,null,null,null,null,null,null,null,null,null,null,"Senegal"]
[null,null,null,null,null,null,null,null,null,null,null,null,null,null,"Serbia"]
[null,null,null,null,null,null,null,null,null,null,null,null,null,null,"Singapore"]
[null,null,null,null,null,null,null,null,null,null,null,null,null,null,"Slovak Republic"]
[null,null,null,null,null,null,null,null,null,null,null,null,null,null,"Slovenia"]
[null,null,null,null,null,null,null,null,null,null,null,null,null,null,"South Africa"]
[null,null,null,null,null,null,null,null,null,null,null,null,null,null,"Spain"]
[null,null,null,null,null,null,null,null,null,null,null,null,null,null,"Sri Lanka"]
[null,null,null,null,null,null,null,null,null,null,null,null,null,null,"Sudan"]
[null,null,null,null,null,null,null,null,null,null,null,null,null,null,"Sweden"]
[null,null,null,null,null,null,null,null,null,null,null,null,null,null,"Switzerland"]
[null,null,null,null,null,null,null,null,null,null,null,null,null,null,"Syrian Arab Republic"]
[null,null,null,null,null,null,null,null,null,null,null,null,null,null,"Tajikistan"]
[null,null,null,null,null,null,null,null,null,null,null,null,null,null,"Thailand"]
[null,null,null,null,null,null,null,null,null,null,null,null,null,null,"Togo"]
[null,null,null,null,null,null,null,null,null,null,null,null,null,null,"Trinidad and Tobago"]
[null,null,null,null,null,null,null,null,null,null,null,null,null,null,"Tunisia"]
[null,null,null,null,null,null,null,null,null,null,null,null,null,null,"Turkey"]
[null,null,null,null,null,null,null,null,null,null,null,null,null,null,"Turkmenistan"]
[null,null,null,null,null,null,null,null,null,null,null,null,null,null,"Ukraine"]
[null,null,null,null,null,null,null,null,null,null,null,null,null,null,"United Arab Emirates"]
[null,null,null,null,null,null,null,null,null,null,null,null,null,null,"United Kingdom"]
[null,null,null,null,null,null,null,null,null,null,null,null,null,null,"United Republic of Tanzania"]
[null,null,null,null,null,null,null,null,null,null,null,null,null,null,"Uruguay"]
[null,null,null,null,null,null,null,null,null,null,null,null,null,null,"Uzbekistan"]
[null,null,null,null,null,null,null,null,null,null,null,null,null,null,"Venezuela"]
[null,null,null,null,null,null,null,null,null,null,null,null,null,null,"Vietnam"]
[null,null,null,null,null,null,null,null,null,null,null,null,null,null,"Yemen"]
[null,null,null,null,null,null,null,null,null,null,null,null,null,null,"Zambia"]
[null,null,null,null,null,null,null,null,null,null,null,null,null,null,"Zimbabwe"]

{"sheet":"ElectricityEFs","index":16,"n_rows":218,"n_cols":14,"rows_kept":218,"cut":false,"hidden":true,"merged":[]}
["ElectricityCode","Country","State/Province","lb/MWh","kg CO2 per kWh","Reference",null,null,null,null,null,null,null,"http://www.eia.doe.gov/cneaf/electricity/epa/epat7p4.html#_ftn1"]
["Albania","Albania",null,null,1.11746E-2,"Greenhouse Gas Protocol Initiative, Emission Factors from Cross-sector Tools, Versions 1.3, August 2012.  “Electricity Other Countries” worksheet"]
["Algeria","Algeria",null,null,0.57596690000000006,"Greenhouse Gas Protocol Initiative, Emission Factors from Cross-sector Tools, Versions 1.3, August 2012.  “Electricity Other Countries” worksheet"]
["Angola","Angola",null,null,0.23744970000000001,"Greenhouse Gas Protocol Initiative, Emission Factors from Cross-sector Tools, Versions 1.3, August 2012.  “Electricity Other Countries” worksheet"]
["Argentina","Argentina",null,null,0.35531109999999999,"Greenhouse Gas Protocol Initiative, Emission Factors from Cross-sector Tools, Versions 1.3, August 2012.  “Electricity Other Countries” worksheet"]
["Armenia","Armenia",null,null,0.108001,"Greenhouse Gas Protocol Initiative, Emission Factors from Cross-sector Tools, Versions 1.3, August 2012.  “Electricity Other Countries” worksheet"]
["Australia","Australia",null,null,0.85293099999999999,"Greenhouse Gas Protocol Initiative, Emission Factors from Cross-sector Tools, Versions 1.3, August 2012.  “Electricity Other Countries” worksheet"]
["Austria","Austria",null,null,0.16323199999999999,"Greenhouse Gas Protocol Initiative, Emission Factors from Cross-sector Tools, Versions 1.3, August 2012.  “Electricity Other Countries” worksheet"]
["Azerbaijan","Azerbaijan",null,null,0.44342480000000001,"Greenhouse Gas Protocol Initiative, Emission Factors from Cross-sector Tools, Versions 1.3, August 2012.  “Electricity Other Countries” worksheet"]
["Bahrain","Bahrain",null,null,0.66487019999999997,"Greenhouse Gas Protocol Initiative, Emission Factors from Cross-sector Tools, Versions 1.3, August 2012.  “Electricity Other Countries” worksheet"]
["Bangladesh","Bangladesh",null,null,0.58528729999999995,"Greenhouse Gas Protocol Initiative, Emission Factors from Cross-sector Tools, Versions 1.3, August 2012.  “Electricity Other Countries” worksheet"]
["Belarus","Belarus",null,null,0.30233019999999999,"Greenhouse Gas Protocol Initiative, Emission Factors from Cross-sector Tools, Versions 1.3, August 2012.  “Electricity Other Countries” worksheet"]
["Belgium","Belgium",null,null,0.217893,"Greenhouse Gas Protocol Initiative, Emission Factors from Cross-sector Tools, Versions 1.3, August 2012.  “Electricity Other Countries” worksheet"]
["Benin","Benin",null,null,0.72500789999999993,"Greenhouse Gas Protocol Initiative, Emission Factors from Cross-sector Tools, Versions 1.3, August 2012.  “Electricity Other Countries” worksheet"]
["Bolivia","Bolivia",null,null,0.39330509999999996,"Greenhouse Gas Protocol Initiative, Emission Factors from Cross-sector Tools, Versions 1.3, August 2012.  “Electricity Other Countries” worksheet"]
["Bosnia and Herzegovina","Bosnia and Herzegovina",null,null,0.77596540000000003,"Greenhouse Gas Protocol Initiative, Emission Factors from Cross-sector Tools, Versions 1.3, August 2012.  “Electricity Other Countries” worksheet"]
["Botswana","Botswana",null,null,2.0632523000000003,"Greenhouse Gas Protocol Initiative, Emission Factors from Cross-sector Tools, Versions 1.3, August 2012.  “Electricity Other Countries” worksheet"]
["Brazil","Brazil",null,null,6.4127799999999999E-2,"Greenhouse Gas Protocol Initiative, Emission Factors from Cross-sector Tools, Versions 1.3, August 2012.  “Electricity Other Countries” worksheet"]
["Brunei Darussalam","Brunei Darussalam",null,null,0.75522540000000005,"Greenhouse Gas Protocol Initiative, Emission Factors from Cross-sector Tools, Versions 1.3, August 2012.  “Electricity Other Countries” worksheet"]
["Bulgaria","Bulgaria",null,null,0.46344690000000005,"Greenhouse Gas Protocol Initiative, Emission Factors from Cross-sector Tools, Versions 1.3, August 2012.  “Electricity Other Countries” worksheet"]
["Cambodia","Cambodia",null,null,1.1509245000000001,"Greenhouse Gas Protocol Initiative, Emission Factors from Cross-sector Tools, Versions 1.3, August 2012.  “Electricity Other Countries” worksheet"]
["Cameroon","Cameroon",null,null,0.2426807,"Greenhouse Gas Protocol Initiative, Emission Factors from Cross-sector Tools, Versions 1.3, August 2012.  “Electricity Other Countries” worksheet"]
["Canada","Canada",null,null,0.16723199999999999,"Greenhouse Gas Protocol Initiative, Emission Factors from Cross-sector Tools, Versions 1.3, August 2012.  “Electricity Other Countries” worksheet"]
["Chile","Chile",null,null,0.37281999999999998,"Greenhouse Gas Protocol Initiative, Emission Factors from Cross-sector Tools, Versions 1.3, August 2012.  “Electricity Other Countries” worksheet"]
["China (including Hong Kong)","China (including Hong Kong)-IEA",null,null,0.74274549999999995,"Greenhouse Gas Protocol Initiative, Emission Factors from Cross-sector Tools, Versions 1.3, August 2012.  “Electricity Other Countries” worksheet"]
["Taiwan, China","Taiwan, China",null,null,0.6347818999999999,"Greenhouse Gas Protocol Initiative, Emission Factors from Cross-sector Tools, Versions 1.3, August 2012.  “Electricity Other Countries” worksheet"]
["Colombia","Colombia",null,null,0.17527139999999999,"Greenhouse Gas Protocol Initiative, Emission Factors from Cross-sector Tools, Versions 1.3, August 2012.  “Electricity Other Countries” worksheet"]
["Congo","Congo",null,null,0.2068295,"Greenhouse Gas Protocol Initiative, Emission Factors from Cross-sector Tools, Versions 1.3, August 2012.  “Electricity Other Countries” worksheet"]
["Costa Rica","Costa Rica",null,null,3.9811100000000002E-2,"Greenhouse Gas Protocol Initiative, Emission Factors from Cross-sector Tools, Versions 1.3, August 2012.  “Electricity Other Countries” worksheet"]
["Côte d'Ivoire","Côte d'Ivoire",null,null,0.42639819999999995,"Greenhouse Gas Protocol Initiative, Emission Factors from Cross-sector Tools, Versions 1.3, August 2012.  “Electricity Other Countries” worksheet"]
["Croatia","Croatia",null,null,0.28338770000000002,"Greenhouse Gas Protocol Initiative, Emission Factors from Cross-sector Tools, Versions 1.3, August 2012.  “Electricity Other Countries” worksheet"]
["Cuba","Cuba",null,null,0.75153920000000007,"Greenhouse Gas Protocol Initiative, Emission Factors from Cross-sector Tools, Versions 1.3, August 2012.  “Electricity Other Countries” worksheet"]
["Cyprus","Cyprus",null,null,0.74427239999999995,"Greenhouse Gas Protocol Initiative, Emission Factors from Cross-sector Tools, Versions 1.3, August 2012.  “Electricity Other Countries” worksheet"]
["Czech Republic","Czech Republic",null,null,0.51425300000000007,"Greenhouse Gas Protocol Initiative, Emission Factors from Cross-sector Tools, Versions 1.3, August 2012.  “Electricity Other Countries” worksheet"]
["Dem. People's Republic of Korea","Dem. People's Republic of Korea",null,null,0.49886430000000004,"Greenhouse Gas Protocol Initiative, Emission Factors from Cross-sector Tools, Versions 1.3, August 2012.  “Electricity Other Countries” worksheet"]
["Democratic Republic of Congo","Democratic Republic of Congo",null,null,2.9338000000000003E-3,"Greenhouse Gas Protocol Initiative, Emission Factors from Cross-sector Tools, Versions 1.3, August 2012.  “Electricity Other Countries” worksheet"]
["Denmark","Denmark",null,null,0.30274900000000005,"Greenhouse Gas Protocol Initiative, Emission Factors from Cross-sector Tools, Versions 1.3, August 2012.  “Electricity Other Countries” worksheet"]
["Dominican Republic","Dominican Republic",null,null,0.59053560000000005,"Greenhouse Gas Protocol Initiative, Emission Factors from Cross-sector Tools, Versions 1.3, August 2012.  “Electricity Other Countries” worksheet"]
["Ecuador","Ecuador",null,null,0.28964429999999997,"Greenhouse Gas Protocol Initiative, Emission Factors from Cross-sector Tools, Versions 1.3, August 2012.  “Electricity Other Countries” worksheet"]
["Egypt","Egypt",null,null,0.46553469999999997,"Greenhouse Gas Protocol Initiative, Emission Factors from Cross-sector Tools, Versions 1.3, August 2012.  “Electricity Other Countries” worksheet"]
["El Salvador","El Salvador",null,null,0.31878250000000002,"Greenhouse Gas Protocol Initiative, Emission Factors from Cross-sector Tools, Versions 1.3, August 2012.  “Electricity Other Countries” worksheet"]
["Eritrea","Eritrea",null,null,0.67158640000000003,"Greenhouse Gas Protocol Initiative, Emission Factors from Cross-sector Tools, Versions 1.3, August 2012.  “Electricity Other Countries” worksheet"]
["Estonia","Estonia",null,null,0.70385299999999995,"Greenhouse Gas Protocol Initiative, Emission Factors from Cross-sector Tools, Versions 1.3, August 2012.  “Electricity Other Countries” worksheet"]
["Ethiopia","Ethiopia",null,null,0.1183091,"Greenhouse Gas Protocol Initiative, Emission Factors from Cross-sector Tools, Versions 1.3, August 2012.  “Electricity Other Countries” worksheet"]
["Finland","Finland",null,null,0.205405,"Greenhouse Gas Protocol Initiative, Emission Factors from Cross-sector Tools, Versions 1.3, August 2012.  “Electricity Other Countries” worksheet"]
["France","France",null,null,8.9851E-2,"Greenhouse Gas Protocol Initiative, Emission Factors from Cross-sector Tools, Versions 1.3, August 2012.  “Electricity Other Countries” worksheet"]
["FYR of Macedonia","FYR of Macedonia",null,null,0.70990359999999997,"Greenhouse Gas Protocol Initiative, Emission Factors from Cross-sector Tools, Versions 1.3, August 2012.  “Electricity Other Countries” worksheet"]
["Gabon","Gabon",null,null,0.32213749999999997,"Greenhouse Gas Protocol Initiative, Emission Factors from Cross-sector Tools, Versions 1.3, August 2012.  “Electricity Other Countries” worksheet"]
["Georgia","Georgia",null,null,0.12864200000000001,"Greenhouse Gas Protocol Initiative, Emission Factors from Cross-sector Tools, Versions 1.3, August 2012.  “Electricity Other Countries” worksheet"]
["Germany","Germany",null,null,0.43049599999999999,"Greenhouse Gas Protocol Initiative, Emission Factors from Cross-sector Tools, Versions 1.3, August 2012.  “Electricity Other Countries” worksheet"]
["Ghana","Ghana",null,null,0.1865319,"Greenhouse Gas Protocol Initiative, Emission Factors from Cross-sector Tools, Versions 1.3, August 2012.  “Electricity Other Countries” worksheet"]
["Gibraltar","Gibraltar",null,null,0.73951719999999999,"Greenhouse Gas Protocol Initiative, Emission Factors from Cross-sector Tools, Versions 1.3, August 2012.  “Electricity Other Countries” worksheet"]
["Greece","Greece",null,null,0.72239900000000001,"Greenhouse Gas Protocol Initiative, Emission Factors from Cross-sector Tools, Versions 1.3, August 2012.  “Electricity Other Countries” worksheet"]
["Guatemala","Guatemala",null,null,0.34910800000000003,"Greenhouse Gas Protocol Initiative, Emission Factors from Cross-sector Tools, Versions 1.3, August 2012.  “Electricity Other Countries” worksheet"]
["Haiti","Haiti",null,null,0.54712480000000008,"Greenhouse Gas Protocol Initiative, Emission Factors from Cross-sector Tools, Versions 1.3, August 2012.  “Electricity Other Countries” worksheet"]
["Honduras","Honduras",null,null,0.34432299999999999,"Greenhouse Gas Protocol Initiative, Emission Factors from Cross-sector Tools, Versions 1.3, August 2012.  “Electricity Other Countries” worksheet"]
["Hong Kong, China","Hong Kong, China",null,null,0.7629724,"Greenhouse Gas Protocol Initiative, Emission Factors from Cross-sector Tools, Versions 1.3, August 2012.  “Electricity Other Countries” worksheet"]
["Hungary","Hungary",null,null,0.30206,"Greenhouse Gas Protocol Initiative, Emission Factors from Cross-sector Tools, Versions 1.3, August 2012.  “Electricity Other Countries” worksheet"]
["Iceland","Iceland",null,null,4.2400000000000001E-4,"Greenhouse Gas Protocol Initiative, Emission Factors from Cross-sector Tools, Versions 1.3, August 2012.  “Electricity Other Countries” worksheet"]
["India","India",null,null,0.95140590000000003,"Greenhouse Gas Protocol Initiative, Emission Factors from Cross-sector Tools, Versions 1.3, August 2012.  “Electricity Other Countries” worksheet"]
["Indonesia","Indonesia",null,null,0.74569039999999998,"Greenhouse Gas Protocol Initiative, Emission Factors from Cross-sector Tools, Versions 1.3, August 2012.  “Electricity Other Countries” worksheet"]
["Iraq","Iraq",null,null,0.68408610000000003,"Greenhouse Gas Protocol Initiative, Emission Factors from Cross-sector Tools, Versions 1.3, August 2012.  “Electricity Other Countries” worksheet"]
["Ireland","Ireland",null,null,0.46523899999999996,"Greenhouse Gas Protocol Initiative, Emission Factors from Cross-sector Tools, Versions 1.3, August 2012.  “Electricity Other Countries” worksheet"]
["Islamic Republic of Iran","Islamic Republic of Iran",null,null,0.62996269999999999,"Greenhouse Gas Protocol Initiative, Emission Factors from Cross-sector Tools, Versions 1.3, August 2012.  “Electricity Other Countries” worksheet"]
["Israel","Israel",null,null,0.69488300000000003,"Greenhouse Gas Protocol Initiative, Emission Factors from Cross-sector Tools, Versions 1.3, August 2012.  “Electricity Other Countries” worksheet"]
["Italy","Italy",null,null,0.386411,"Greenhouse Gas Protocol Initiative, Emission Factors from Cross-sector Tools, Versions 1.3, August 2012.  “Electricity Other Countries” worksheet"]
["Jamaica","Jamaica",null,null,0.54445939999999993,"Greenhouse Gas Protocol Initiative, Emission Factors from Cross-sector Tools, Versions 1.3, August 2012.  “Electricity Other Countries” worksheet"]
["Japan","Japan",null,null,0.41470899999999999,"Greenhouse Gas Protocol Initiative, Emission Factors from Cross-sector Tools, Versions 1.3, August 2012.  “Electricity Other Countries” worksheet"]
["Jordan","Jordan",null,null,0.58054799999999995,"Greenhouse Gas Protocol Initiative, Emission Factors from Cross-sector Tools, Versions 1.3, August 2012.  “Electricity Other Countries” worksheet"]
["Kazakhstan","Kazakhstan",null,null,0.4800584,"Greenhouse Gas Protocol Initiative, Emission Factors from Cross-sector Tools, Versions 1.3, August 2012.  “Electricity Other Countries” worksheet"]
["Kenya","Kenya",null,null,0.3949455,"Greenhouse Gas Protocol Initiative, Emission Factors from Cross-sector Tools, Versions 1.3, August 2012.  “Electricity Other Countries” worksheet"]
["Korea","Korea",null,null,0.497699,"Greenhouse Gas Protocol Initiative, Emission Factors from Cross-sector Tools, Versions 1.3, August 2012.  “Electricity Other Countries” worksheet"]
["Kuwait","Kuwait",null,null,0.86960519999999997,"Greenhouse Gas Protocol Initiative, Emission Factors from Cross-sector Tools, Versions 1.3, August 2012.  “Electricity Other Countries” worksheet"]
["Kyrgyzstan","Kyrgyzstan",null,null,8.0966099999999999E-2,"Greenhouse Gas Protocol Initiative, Emission Factors from Cross-sector Tools, Versions 1.3, August 2012.  “Electricity Other Countries” worksheet"]
["Latvia","Latvia",null,null,0.15307419999999999,"Greenhouse Gas Protocol Initiative, Emission Factors from Cross-sector Tools, Versions 1.3, August 2012.  “Electricity Other Countries” worksheet"]
["Lebanon","Lebanon",null,null,0.71667239999999999,"Greenhouse Gas Protocol Initiative, Emission Factors from Cross-sector Tools, Versions 1.3, August 2012.  “Electricity Other Countries” worksheet"]
["Libyan Arab Jamahiriya","Libyan Arab Jamahiriya",null,null,0.87178420000000001,"Greenhouse Gas Protocol Initiative, Emission Factors from Cross-sector Tools, Versions 1.3, August 2012.  “Electricity Other Countries” worksheet"]
["Lithuania","Lithuania",null,null,0.1111529,"Greenhouse Gas Protocol Initiative, Emission Factors from Cross-sector Tools, Versions 1.3, August 2012.  “Electricity Other Countries” worksheet"]
["Luxembourg","Luxembourg",null,null,0.38428600000000002,"Greenhouse Gas Protocol Initiative, Emission Factors from Cross-sector Tools, Versions 1.3, August 2012.  “Electricity Other Countries” worksheet"]
["Malaysia","Malaysia",null,null,0.64864769999999994,"Greenhouse Gas Protocol Initiative, Emission Factors from Cross-sector Tools, Versions 1.3, August 2012.  “Electricity Other Countries” worksheet"]
["Malta","Malta",null,null,0.85041529999999999,"Greenhouse Gas Protocol Initiative, Emission Factors from Cross-sector Tools, Versions 1.3, August 2012.  “Electricity Other Countries” worksheet"]
["Mexico","Mexico",null,null,0.45498300000000003,"Greenhouse Gas Protocol Initiative, Emission Factors from Cross-sector Tools, Versions 1.3, August 2012.  “Electricity Other Countries” worksheet"]
["Middle East","Middle East",null,null,0.69025829999999999,"Greenhouse Gas Protocol Initiative, Emission Factors from Cross-sector Tools, Versions 1.3, August 2012.  “Electricity Other Countries” worksheet"]
["Mongolia","Mongolia",null,null,0.5353523,"Greenhouse Gas Protocol Initiative, Emission Factors from Cross-sector Tools, Versions 1.3, August 2012.  “Electricity Other Countries” worksheet"]
["Morocco","Morocco",null,null,0.63844460000000003,"Greenhouse Gas Protocol Initiative, Emission Factors from Cross-sector Tools, Versions 1.3, August 2012.  “Electricity Other Countries” worksheet"]
["Mozambique","Mozambique",null,null,5.0329999999999993E-4,"Greenhouse Gas Protocol Initiative, Emission Factors from Cross-sector Tools, Versions 1.3, August 2012.  “Electricity Other Countries” worksheet"]
["Myanmar","Myanmar",null,null,0.19584669999999998,"Greenhouse Gas Protocol Initiative, Emission Factors from Cross-sector Tools, Versions 1.3, August 2012.  “Electricity Other Countries” worksheet"]
["Namibia","Namibia",null,null,0.23690129999999998,"Greenhouse Gas Protocol Initiative, Emission Factors from Cross-sector Tools, Versions 1.3, August 2012.  “Electricity Other Countries” worksheet"]
["Nepal","Nepal",null,null,4.3430999999999999E-3,"Greenhouse Gas Protocol Initiative, Emission Factors from Cross-sector Tools, Versions 1.3, August 2012.  “Electricity Other Countries” worksheet"]
["Netherlands","Netherlands",null,null,0.37448500000000001,"Greenhouse Gas Protocol Initiative, Emission Factors from Cross-sector Tools, Versions 1.3, August 2012.  “Electricity Other Countries” worksheet"]
["Netherlands Antilles","Netherlands Antilles",null,null,0.70689829999999998,"Greenhouse Gas Protocol Initiative, Emission Factors from Cross-sector Tools, Versions 1.3, August 2012.  “Electricity Other Countries” worksheet"]
["New Zealand","New Zealand",null,null,0.16650299999999998,"Greenhouse Gas Protocol Initiative, Emission Factors from Cross-sector Tools, Versions 1.3, August 2012.  “Electricity Other Countries” worksheet"]
["Nicaragua","Nicaragua",null,null,0.50581229999999999,"Greenhouse Gas Protocol Initiative, Emission Factors from Cross-sector Tools, Versions 1.3, August 2012.  “Electricity Other Countries” worksheet"]
["Nigeria","Nigeria",null,null,0.4157342,"Greenhouse Gas Protocol Initiative, Emission Factors from Cross-sector Tools, Versions 1.3, August 2012.  “Electricity Other Countries” worksheet"]
["Norway","Norway",null,null,1.7288000000000001E-2,"Greenhouse Gas Protocol Initiative, Emission Factors from Cross-sector Tools, Versions 1.3, August 2012.  “Electricity Other Countries” worksheet"]
["Oman","Oman",null,null,0.84248789999999996,"Greenhouse Gas Protocol Initiative, Emission Factors from Cross-sector Tools, Versions 1.3, August 2012.  “Electricity Other Countries” worksheet"]
["Other Africa","Other Africa",null,null,0.49449779999999999,"Greenhouse Gas Protocol Initiative, Emission Factors from Cross-sector Tools, Versions 1.3, August 2012.  “Electricity Other Countries” worksheet"]
["Other Asia","Other Asia",null,null,0.26807249999999999,"Greenhouse Gas Protocol Initiative, Emission Factors from Cross-sector Tools, Versions 1.3, August 2012.  “Electricity Other Countries” worksheet"]
["Other Latin America","Other Latin America",null,null,0.24890889999999999,"Greenhouse Gas Protocol Initiative, Emission Factors from Cross-sector Tools, Versions 1.3, August 2012.  “Electricity Other Countries” worksheet"]
["Pakistan","Pakistan",null,null,0.45772469999999998,"Greenhouse Gas Protocol Initiative, Emission Factors from Cross-sector Tools, Versions 1.3, August 2012.  “Electricity Other Countries” worksheet"]
["Panama","Panama",null,null,0.3021739,"Greenhouse Gas Protocol Initiative, Emission Factors from Cross-sector Tools, Versions 1.3, August 2012.  “Electricity Other Countries” worksheet"]
["Paraguay","Paraguay",null,null,0,"Greenhouse Gas Protocol Initiative, Emission Factors from Cross-sector Tools, Versions 1.3, August 2012.  “Electricity Other Countries” worksheet"]
["China (mainland)","China (mainland)",null,null,0.74256889999999998,"Greenhouse Gas Protocol Initiative, Emission Factors from Cross-sector Tools, Versions 1.3, August 2012.  “Electricity Other Countries” worksheet"]
["Peru","Peru",null,null,0.23630660000000001,"Greenhouse Gas Protocol Initiative, Emission Factors from Cross-sector Tools, Versions 1.3, August 2012.  “Electricity Other Countries” worksheet"]
["Philippines","Philippines",null,null,0.47815949999999996,"Greenhouse Gas Protocol Initiative, Emission Factors from Cross-sector Tools, Versions 1.3, August 2012.  “Electricity Other Countries” worksheet"]
["Poland","Poland",null,null,0.64019799999999993,"Greenhouse Gas Protocol Initiative, Emission Factors from Cross-sector Tools, Versions 1.3, August 2012.  “Electricity Other Countries” worksheet"]
["Portugal","Portugal",null,null,0.36823800000000001,"Greenhouse Gas Protocol Initiative, Emission Factors from Cross-sector Tools, Versions 1.3, August 2012.  “Electricity Other Countries” worksheet"]
["Qatar","Qatar",null,null,0.49400889999999997,"Greenhouse Gas Protocol Initiative, Emission Factors from Cross-sector Tools, Versions 1.3, August 2012.  “Electricity Other Countries” worksheet"]
["Republic of Moldova","Republic of Moldova",null,null,0.40009840000000002,"Greenhouse Gas Protocol Initiative, Emission Factors from Cross-sector Tools, Versions 1.3, August 2012.  “Electricity Other Countries” worksheet"]
["Romania","Romania",null,null,0.41435379999999999,"Greenhouse Gas Protocol Initiative, Emission Factors from Cross-sector Tools, Versions 1.3, August 2012.  “Electricity Other Countries” worksheet"]
["Russian Federation","Russian Federation",null,null,0.31740400000000002,"Greenhouse Gas Protocol Initiative, Emission Factors from Cross-sector Tools, Versions 1.3, August 2012.  “Electricity Other Countries” worksheet"]
["Saudi Arabia","Saudi Arabia",null,null,0.75723249999999998,"Greenhouse Gas Protocol Initiative, Emission Factors from Cross-sector Tools, Versions 1.3, August 2012.  “Electricity Other Countries” worksheet"]
["Senegal","Senegal",null,null,0.6144503,"Greenhouse Gas Protocol Initiative, Emission Factors from Cross-sector Tools, Versions 1.3, August 2012.  “Electricity Other Countries” worksheet"]
["Serbia","Serbia",null,null,0.6803266,"Greenhouse Gas Protocol Initiative, Emission Factors from Cross-sector Tools, Versions 1.3, August 2012.  “Electricity Other Countries” worksheet"]
["Singapore","Singapore",null,null,0.51885680000000001,"Greenhouse Gas Protocol Initiative, Emission Factors from Cross-sector Tools, Versions 1.3, August 2012.  “Electricity Other Countries” worksheet"]
["Slovak Republic","Slovak Republic",null,null,0.221716,"Greenhouse Gas Protocol Initiative, Emission Factors from Cross-sector Tools, Versions 1.3, August 2012.  “Electricity Other Countries” worksheet"]
["Slovenia","Slovenia",null,null,0.316025,"Greenhouse Gas Protocol Initiative, Emission Factors from Cross-sector Tools, Versions 1.3, August 2012.  “Electricity Other Countries” worksheet"]
["South Africa","South Africa",null,null,0.92590490000000003,"Greenhouse Gas Protocol Initiative, Emission Factors from Cross-sector Tools, Versions 1.3, August 2012.  “Electricity Other Countries” worksheet"]
["Spain","Spain",null,null,0.29878399999999999,"Greenhouse Gas Protocol Initiative, Emission Factors from Cross-sector Tools, Versions 1.3, August 2012.  “Electricity Other Countries” worksheet"]
["Sri Lanka","Sri Lanka",null,null,0.46010879999999998,"Greenhouse Gas Protocol Initiative, Emission Factors from Cross-sector Tools, Versions 1.3, August 2012.  “Electricity Other Countries” worksheet"]
["Sudan","Sudan",null,null,0.35559580000000002,"Greenhouse Gas Protocol Initiative, Emission Factors from Cross-sector Tools, Versions 1.3, August 2012.  “Electricity Other Countries” worksheet"]
["Sweden","Sweden",null,null,4.3135E-2,"Greenhouse Gas Protocol Initiative, Emission Factors from Cross-sector Tools, Versions 1.3, August 2012.  “Electricity Other Countries” worksheet"]
["Switzerland","Switzerland",null,null,3.9933999999999997E-2,"Greenhouse Gas Protocol Initiative, Emission Factors from Cross-sector Tools, Versions 1.3, August 2012.  “Electricity Other Countries” worksheet"]
["Syrian Arab Republic","Syrian Arab Republic",null,null,0.6408914,"Greenhouse Gas Protocol Initiative, Emission Factors from Cross-sector Tools, Versions 1.3, August 2012.  “Electricity Other Countries” worksheet"]
["Tajikistan","Tajikistan",null,null,2.9226400000000003E-2,"Greenhouse Gas Protocol Initiative, Emission Factors from Cross-sector Tools, Versions 1.3, August 2012.  “Electricity Other Countries” worksheet"]
["Thailand","Thailand",null,null,0.51338090000000003,"Greenhouse Gas Protocol Initiative, Emission Factors from Cross-sector Tools, Versions 1.3, August 2012.  “Electricity Other Countries” worksheet"]
["Togo","Togo",null,null,0.20157140000000001,"Greenhouse Gas Protocol Initiative, Emission Factors from Cross-sector Tools, Versions 1.3, August 2012.  “Electricity Other Countries” worksheet"]
["Trinidad and Tobago","Trinidad and Tobago",null,null,0.71880739999999999,"Greenhouse Gas Protocol Initiative, Emission Factors from Cross-sector Tools, Versions 1.3, August 2012.  “Electricity Other Countries” worksheet"]
["Tunisia","Tunisia",null,null,0.53807950000000004,"Greenhouse Gas Protocol Initiative, Emission Factors from Cross-sector Tools, Versions 1.3, August 2012.  “Electricity Other Countries” worksheet"]
["Turkey","Turkey",null,null,0.47992899999999999,"Greenhouse Gas Protocol Initiative, Emission Factors from Cross-sector Tools, Versions 1.3, August 2012.  “Electricity Other Countries” worksheet"]
["Turkmenistan","Turkmenistan",null,null,0.78945240000000005,"Greenhouse Gas Protocol Initiative, Emission Factors from Cross-sector Tools, Versions 1.3, August 2012.  “Electricity Other Countries” worksheet"]
["Ukraine","Ukraine",null,null,0.37395499999999998,"Greenhouse Gas Protocol Initiative, Emission Factors from Cross-sector Tools, Versions 1.3, August 2012.  “Electricity Other Countries” worksheet"]
["United Arab Emirates","United Arab Emirates",null,null,0.63124550000000001,"Greenhouse Gas Protocol Initiative, Emission Factors from Cross-sector Tools, Versions 1.3, August 2012.  “Electricity Other Countries” worksheet"]
["United Kingdom","United Kingdom",null,null,0.44950099999999998,"Greenhouse Gas Protocol Initiative, Emission Factors from Cross-sector Tools, Versions 1.3, August 2012.  “Electricity Other Countries” worksheet"]
["United Republic of Tanzania","United Republic of Tanzania",null,null,0.28122210000000003,"Greenhouse Gas Protocol Initiative, Emission Factors from Cross-sector Tools, Versions 1.3, August 2012.  “Electricity Other Countries” worksheet"]
["United States","United States",null,null,0.50817000000000001,"Greenhouse Gas Protocol Initiative, Emission Factors from Cross-sector Tools, Versions 1.3, August 2012.  “Electricity Other Countries” worksheet"]
["Uruguay","Uruguay",null,null,0.25317879999999998,"Greenhouse Gas Protocol Initiative, Emission Factors from Cross-sector Tools, Versions 1.3, August 2012.  “Electricity Other Countries” worksheet"]
["Uzbekistan","Uzbekistan",null,null,0.46147590000000005,"Greenhouse Gas Protocol Initiative, Emission Factors from Cross-sector Tools, Versions 1.3, August 2012.  “Electricity Other Countries” worksheet"]
["Venezuela","Venezuela",null,null,0.19859780000000002,"Greenhouse Gas Protocol Initiative, Emission Factors from Cross-sector Tools, Versions 1.3, August 2012.  “Electricity Other Countries” worksheet"]
["Vietnam","Vietnam",null,null,0.38410340000000004,"Greenhouse Gas Protocol Initiative, Emission Factors from Cross-sector Tools, Versions 1.3, August 2012.  “Electricity Other Countries” worksheet"]
["Yemen","Yemen",null,null,0.63045370000000001,"Greenhouse Gas Protocol Initiative, Emission Factors from Cross-sector Tools, Versions 1.3, August 2012.  “Electricity Other Countries” worksheet"]
["Zambia","Zambia",null,null,3.2466000000000001E-3,"Greenhouse Gas Protocol Initiative, Emission Factors from Cross-sector Tools, Versions 1.3, August 2012.  “Electricity Other Countries” worksheet"]
["Zimbabwe","Zimbabwe",null,null,0.61895090000000008,"Greenhouse Gas Protocol Initiative, Emission Factors from Cross-sector Tools, Versions 1.3, August 2012.  “Electricity Other Countries” worksheet"]
[{"$f":"CONCATENATE(B144,C144)","v":"Taiwan"},"Taiwan",null,null,0.61199999999999999,"Greenhouse Gas Protocol Initiative, Emission Factors from Cross-sector Tools, Versions 1.3, August 2012.  “Electricity China and Taiwan” worksheet. [Note: CO2e/kWh]."]
[{"$f":"CONCATENATE(B145,C145)","v":"USAAK"},"USA","AK",1126.2476999999999,{"$f":"D145*0.45359237/1000","v":0.51085736345004895},"eGRID2012 Version 1.0, eGRID2012V1_0_year09_DATA.xls, “ST09” worksheet, State annual CO2 output emission rate (lb/MWh)"]
["USAAL","USA","AL",1040.8062,{"$f":"D146*0.45359237/1000","v":0.47210175096869406},"eGRID2012 Version 1.0, eGRID2012V1_0_year09_DATA.xls, “ST09” worksheet, State annual CO2 output emission rate (lb/MWh)"]
["USAAR","USA","AR",1112.5945999999999,0.50466442146320201,"eGRID2012 Version 1.0, eGRID2012V1_0_year09_DATA.xls, “ST09” worksheet, State annual CO2 output emission rate (lb/MWh)"]
["USAAZ","USA","AZ",1084.6279,0.49197893972912299,"eGRID2012 Version 1.0, eGRID2012V1_0_year09_DATA.xls, “ST09” worksheet, State annual CO2 output emission rate (lb/MWh)"]
["USACA","USA","CA",556.43880000000001,0.25239639405195602,"eGRID2012 Version 1.0, eGRID2012V1_0_year09_DATA.xls, “ST09” worksheet, State annual CO2 output emission rate (lb/MWh)"]
["USACO","USA","CO",1736.7394999999999,0.78777178587761498,"eGRID2012 Version 1.0, eGRID2012V1_0_year09_DATA.xls, “ST09” worksheet, State annual CO2 output emission rate (lb/MWh)"]
["USACT","USA","CT",576.79970000000003,0.26163194293828901,"eGRID2012 Version 1.0, eGRID2012V1_0_year09_DATA.xls, “ST09” worksheet, State annual CO2 output emission rate (lb/MWh)"]
["USADC","USA","DC",2484.6913,1.127037015485381,"eGRID2012 Version 1.0, eGRID2012V1_0_year09_DATA.xls, “ST09” worksheet, State annual CO2 output emission rate (lb/MWh)"]
["USADE","USA","DE",1795.3275000000001,0.81434685565117515,"eGRID2012 Version 1.0, eGRID2012V1_0_year09_DATA.xls, “ST09” worksheet, State annual CO2 output emission rate (lb/MWh)"]
["USAFL","USA","FL",1192.1794,0.54076347951117809,"eGRID2012 Version 1.0, eGRID2012V1_0_year09_DATA.xls, “ST09” worksheet, State annual CO2 output emission rate (lb/MWh)"]
["USAGA","USA","GA",1285.9481000000001,0.58329624637599709,"eGRID2012 Version 1.0, eGRID2012V1_0_year09_DATA.xls, “ST09” worksheet, State annual CO2 output emission rate (lb/MWh)"]
["USAHI","USA","HI",1527.0772999999999,0.69267061168020094,"eGRID2012 Version 1.0, eGRID2012V1_0_year09_DATA.xls, “ST09” worksheet, State annual CO2 output emission rate (lb/MWh)"]
["USAIA","USA","IA",1625.2988,0.73722313465015599,"eGRID2012 Version 1.0, eGRID2012V1_0_year09_DATA.xls, “ST09” worksheet, State annual CO2 output emission rate (lb/MWh)"]
["USAID","USA","ID",119.6862,5.4288747114294003E-2,"eGRID2012 Version 1.0, eGRID2012V1_0_year09_DATA.xls, “ST09” worksheet, State annual CO2 output emission rate (lb/MWh)"]
["USAIL","USA","IL",1067.8362999999999,0.48436239808903098,"eGRID2012 Version 1.0, eGRID2012V1_0_year09_DATA.xls, “ST09” worksheet, State annual CO2 output emission rate (lb/MWh)"]
["USAIN","USA","IN",2033.6314,0.92243968643241803,"eGRID2012 Version 1.0, eGRID2012V1_0_year09_DATA.xls, “ST09” worksheet, State annual CO2 output emission rate (lb/MWh)"]
["USAKS","USA","KS",1673.8714,0.75925529540121806,"eGRID2012 Version 1.0, eGRID2012V1_0_year09_DATA.xls, “ST09” worksheet, State annual CO2 output emission rate (lb/MWh)"]
["USAKY","USA","KY",2045.7462,0.9279348672764941,"eGRID2012 Version 1.0, eGRID2012V1_0_year09_DATA.xls, “ST09” worksheet, State annual CO2 output emission rate (lb/MWh)"]
["USALA","USA","LA",1128.269,0.51177420970753007,"eGRID2012 Version 1.0, eGRID2012V1_0_year09_DATA.xls, “ST09” worksheet, State annual CO2 output emission rate (lb/MWh)"]
["USAMA","USA","MA",1113.8030000000001,0.50521254248311009,"eGRID2012 Version 1.0, eGRID2012V1_0_year09_DATA.xls, “ST09” worksheet, State annual CO2 output emission rate (lb/MWh)"]
["USAMD","USA","MD",1231.9697000000001,0.55881205599118899,"eGRID2012 Version 1.0, eGRID2012V1_0_year09_DATA.xls, “ST09” worksheet, State annual CO2 output emission rate (lb/MWh)"]
["USAME","USA","ME",500.25349999999997,0.226911170665795,"eGRID2012 Version 1.0, eGRID2012V1_0_year09_DATA.xls, “ST09” worksheet, State annual CO2 output emission rate (lb/MWh)"]
["USAMI","USA","MI",1524.1292000000001,0.69133337601420408,"eGRID2012 Version 1.0, eGRID2012V1_0_year09_DATA.xls, “ST09” worksheet, State annual CO2 output emission rate (lb/MWh)"]
["USAMN","USA","MN",1396.8335999999999,0.63359306311963204,"eGRID2012 Version 1.0, eGRID2012V1_0_year09_DATA.xls, “ST09” worksheet, State annual CO2 output emission rate (lb/MWh)"]
["USAMO","USA","MO",1807.5836999999999,0.81990617445636893,"eGRID2012 Version 1.0, eGRID2012V1_0_year09_DATA.xls, “ST09” worksheet, State annual CO2 output emission rate (lb/MWh)"]
["USAMS","USA","MS",1102.6746000000001,0.50016478515280205,"eGRID2012 Version 1.0, eGRID2012V1_0_year09_DATA.xls, “ST09” worksheet, State annual CO2 output emission rate (lb/MWh)"]
["USAMT","USA","MT",1438.6678999999999,0.65256878240392302,"eGRID2012 Version 1.0, eGRID2012V1_0_year09_DATA.xls, “ST09” worksheet, State annual CO2 output emission rate (lb/MWh)"]
["USANC","USA","NC",1156.5443,0.52459967004699104,"eGRID2012 Version 1.0, eGRID2012V1_0_year09_DATA.xls, “ST09” worksheet, State annual CO2 output emission rate (lb/MWh)"]
["USAND","USA","ND",2057.7381999999998,0.93337434697753396,"eGRID2012 Version 1.0, eGRID2012V1_0_year09_DATA.xls, “ST09” worksheet, State annual CO2 output emission rate (lb/MWh)"]
["USANE","USA","NE",1597.6723,0.72469196504035094,"eGRID2012 Version 1.0, eGRID2012V1_0_year09_DATA.xls, “ST09” worksheet, State annual CO2 output emission rate (lb/MWh)"]
["USANH","USA","NH",600.70579999999995,0.272475567494746,"eGRID2012 Version 1.0, eGRID2012V1_0_year09_DATA.xls, “ST09” worksheet, State annual CO2 output emission rate (lb/MWh)"]
["USANJ","USA","NJ",549.60760000000005,0.24929781385401201,"eGRID2012 Version 1.0, eGRID2012V1_0_year09_DATA.xls, “ST09” worksheet, State annual CO2 output emission rate (lb/MWh)"]
["USANM","USA","NM",1821.2629999999999,0.82611100056330999,"eGRID2012 Version 1.0, eGRID2012V1_0_year09_DATA.xls, “ST09” worksheet, State annual CO2 output emission rate (lb/MWh)"]
["USANV","USA","NV",1060.9213999999999,0.48122585220971803,"eGRID2012 Version 1.0, eGRID2012V1_0_year09_DATA.xls, “ST09” worksheet, State annual CO2 output emission rate (lb/MWh)"]
["USANY","USA","NY",582.85310000000004,0.26437771899084705,"eGRID2012 Version 1.0, eGRID2012V1_0_year09_DATA.xls, “ST09” worksheet, State annual CO2 output emission rate (lb/MWh)"]
["USAOH","USA","OH",1780.8858,0.807796210721346,"eGRID2012 Version 1.0, eGRID2012V1_0_year09_DATA.xls, “ST09” worksheet, State annual CO2 output emission rate (lb/MWh)"]
["USAOK","USA","OK",1494.9867999999999,0.67811460573071602,"eGRID2012 Version 1.0, eGRID2012V1_0_year09_DATA.xls, “ST09” worksheet, State annual CO2 output emission rate (lb/MWh)"]
["USAOR","USA","OR",363.50689999999997,0.16488395628235297,"eGRID2012 Version 1.0, eGRID2012V1_0_year09_DATA.xls, “ST09” worksheet, State annual CO2 output emission rate (lb/MWh)"]
["USAPA","USA","PA",1140.3109999999999,0.51723636902706993,"eGRID2012 Version 1.0, eGRID2012V1_0_year09_DATA.xls, “ST09” worksheet, State annual CO2 output emission rate (lb/MWh)"]
["USARI","USA","RI",895.49779999999998,0.40619096943178601,"eGRID2012 Version 1.0, eGRID2012V1_0_year09_DATA.xls, “ST09” worksheet, State annual CO2 output emission rate (lb/MWh)"]
["USASC","USA","SC",824.62289999999996,0.37404265556727301,"eGRID2012 Version 1.0, eGRID2012V1_0_year09_DATA.xls, “ST09” worksheet, State annual CO2 output emission rate (lb/MWh)"]
["USASD","USA","SD",914.34090000000003,0.41473805581893303,"eGRID2012 Version 1.0, eGRID2012V1_0_year09_DATA.xls, “ST09” worksheet, State annual CO2 output emission rate (lb/MWh)"]
["USATN","USA","TN",1071.5353,0.48604023626566101,"eGRID2012 Version 1.0, eGRID2012V1_0_year09_DATA.xls, “ST09” worksheet, State annual CO2 output emission rate (lb/MWh)"]
["USATX","USA","TX",1243.1931,0.56390290459664694,"eGRID2012 Version 1.0, eGRID2012V1_0_year09_DATA.xls, “ST09” worksheet, State annual CO2 output emission rate (lb/MWh)"]
["USAUT","USA","UT",1854.4949999999999,0.84118478220314996,"eGRID2012 Version 1.0, eGRID2012V1_0_year09_DATA.xls, “ST09” worksheet, State annual CO2 output emission rate (lb/MWh)"]
["USAVA","USA","VA",994.39649999999995,0.45105066515470499,"eGRID2012 Version 1.0, eGRID2012V1_0_year09_DATA.xls, “ST09” worksheet, State annual CO2 output emission rate (lb/MWh)"]
["USAVT","USA","VT",2.1716000000000002,9.8502119069200015E-4,"eGRID2012 Version 1.0, eGRID2012V1_0_year09_DATA.xls, “ST09” worksheet, State annual CO2 output emission rate (lb/MWh)"]
["USAWA","USA","WA",286.48129999999998,0.12994573182768099,"eGRID2012 Version 1.0, eGRID2012V1_0_year09_DATA.xls, “ST09” worksheet, State annual CO2 output emission rate (lb/MWh)"]
["USAWI","USA","WI",1514.0902000000001,0.68677976221177406,"eGRID2012 Version 1.0, eGRID2012V1_0_year09_DATA.xls, “ST09” worksheet, State annual CO2 output emission rate (lb/MWh)"]
["USAWV","USA","WV",2010.5044,0.91194945569142805,"eGRID2012 Version 1.0, eGRID2012V1_0_year09_DATA.xls, “ST09” worksheet, State annual CO2 output emission rate (lb/MWh)"]
["USAWY","USA","WY",2116.3624,0.95996583679488801,"eGRID2012 Version 1.0, eGRID2012V1_0_year09_DATA.xls, “ST09” worksheet, State annual CO2 output emission rate (lb/MWh)"]
["USAPuerto Rico","USA","Puerto Rico",1891.57,0.85800171932090008,"The Climate Registry's 2013Default Emission Factors. Table 14.1 US Emission Factors by eGRIDSubregion. \"US Territories (not an eGRID Region)\" from Department of Energy Guidance on Voluntary Reporting of Greenhouse Gases, Form EIA-1605 (2007), Appendix F, "]
["CanadaAlberta","Canada","Alberta",null,0.73399999999999999,"National Inventory Report, 1990-2011: Greenhouse Gas Sources and Sinks in Canada Part 3, Table A13-10"]
["CanadaBritish Columbia","Canada","British Columbia",null,1.11E-2,"National Inventory Report, 1990-2011: Greenhouse Gas Sources and Sinks in Canada Part 3, Table A13-11"]
["CanadaManitoba","Canada","Manitoba",null,3.2799999999999999E-3,"National Inventory Report, 1990-2011: Greenhouse Gas Sources and Sinks in Canada Part 3, Table A13-8"]
["CanadaLabrador","Canada","Labrador",null,2.0199999999999999E-2,"National Inventory Report, 1990-2011: Greenhouse Gas Sources and Sinks in Canada Part 3, Table A13-2"]
["CanadaNew Brunswick","Canada","New Brunswick",null,0.44,"National Inventory Report, 1990-2011: Greenhouse Gas Sources and Sinks in Canada Part 3, Table A13-5"]
["CanadaNewfoundland","Canada","Newfoundland",null,2.0199999999999999E-2,"National Inventory Report, 1990-2011: Greenhouse Gas Sources and Sinks in Canada Part 3, Table A13-2"]
[{"$f":"CONCATENATE(B203,C203)","v":"CanadaNova Scotia"},"Canada","Nova Scotia",null,0.71399999999999997,"National Inventory Report, 1990-2011: Greenhouse Gas Sources and Sinks in Canada Part 3, Table A13-4"]
["CanadaOntario","Canada","Ontario",null,9.7000000000000003E-2,"National Inventory Report, 1990-2011: Greenhouse Gas Sources and Sinks in Canada Part 3, Table A13-7"]
["CanadaPrince Edward Island","Canada","Prince Edward Island",null,1.9E-3,"National Inventory Report, 1990-2011: Greenhouse Gas Sources and Sinks in Canada Part 3, Table A13-3"]
["CanadaQuebec","Canada","Quebec",null,1.64E-3,"National Inventory Report, 1990-2011: Greenhouse Gas Sources and Sinks in Canada Part 3, Table A13-6"]
["CanadaSaskatchewan","Canada","Saskatchewan",null,0.73899999999999999,"National Inventory Report, 1990-2011: Greenhouse Gas Sources and Sinks in Canada Part 3, Table A13-9"]
["CanadaYukon","Canada","Yukon",null,6.2E-2,"National Inventory Report, 1990-2011: Greenhouse Gas Sources and Sinks in Canada Part 3, Table A13-12"]
["CanadaNorthwest Territories","Canada","Northwest Territories",null,0.30599999999999999,"National Inventory Report, 1990-2011: Greenhouse Gas Sources and Sinks in Canada Part 3, Table A13-13"]
["CanadaNunavut","Canada","Nunavut",null,0.30599999999999999,"National Inventory Report, 1990-2011: Greenhouse Gas Sources and Sinks in Canada Part 3, Table A13-13"]
["AustraliaNew South Wales","Australia","New South Wales",null,0.88,"Australian National Greenhouse Accounts (NGA) Factors July 2012, Table 5"]
["AustraliaAustralian Capital Teritory","Australia","Australian Capital Teritory",null,0.88,"Australian National Greenhouse Accounts (NGA) Factors July 2012, Table 5"]
["AustraliaVictoria","Australia","Victoria",null,1.19,"Australian National Greenhouse Accounts (NGA) Factors July 2012, Table 5"]
["AustraliaQueensland","Australia","Queensland",null,0.86,"Australian National Greenhouse Accounts (NGA) Factors July 2012, Table 5"]
["AustraliaSouth Australia","Australia","South Australia",null,0.65,"Australian National Greenhouse Accounts (NGA) Factors July 2012, Table 5"]
["AustraliaWestern Australia","Australia","Western Australia",null,0.82,"Australian National Greenhouse Accounts (NGA) Factors July 2012, Table 5"]
["AustraliaTasmaian","Australia","Tasmaian",null,0.26,"Australian National Greenhouse Accounts (NGA) Factors July 2012, Table 5"]
["AustraliaNorthern Territory","Australia","Northern Territory",null,0.71,"Australian National Greenhouse Accounts (NGA) Factors July 2012, Table 5"]

{"sheet":"FuelEFs","index":17,"n_rows":24,"n_cols":5,"rows_kept":24,"cut":false,"hidden":true,"merged":[[23,2,23,3]]}
["Fuel","EF","Units","TCR Fuel Name","Reference"]
["Natural gas",5.3019999999999998E-2,"kg CO2/cubic foot","Natural gas","The Climate Registry's 2013 Default Emission Factors, Table 12.1 U.S. Default Factors for Calculating CO2 Emissions from Fossil Fuel and Biomass Combustion "]
["Fuel Oil",10.206479999999999,"kg CO2/gallon","Distilate Fuel Oil No. 2","The Climate Registry's 2013 Default Emission Factors, Table 12.1 U.S. Default Factors for Calculating CO2 Emissions from Fossil Fuel and Biomass Combustion (Residual Fuel Oil No.2) "]
["Kerosene ",10.152000000000001,"kg CO2/gallon","Kerosene ","The Climate Registry's 2013 Default Emission Factors, Table 12.1 U.S. Default Factors for Calculating CO2 Emissions from Fossil Fuel and Biomass Combustion "]
["Propane",5.5928599999999999,"kg CO2/gallon","Propane","The Climate Registry's 2013 Default Emission Factors, Table 13.1 U.S. Default Factors for Transport Fuels "]
["Gasoline ",8.7799999999999994,"kg CO2/gallon","Gasoline ","The Climate Registry's 2013 Default Emission Factors, Table 13.1 U.S. Default Factors for Transport Fuels "]
["Diesel Fuel ",10.210000000000001,"kg CO2/gallon","Diesel Fuel ","The Climate Registry's 2013 Default Emission Factors, Table 13.1 U.S. Default Factors for Transport Fuels "]
["Aviation Gasoline",8.31,"kg CO2/gallon","Aviation Gasoline","The Climate Registry's 2013 Default Emission Factors, Table 13.1 U.S. Default Factors for Transport Fuels "]
["Jet Fuel",9.75,"kg CO2/gallon","Jet Fuel (Jet A or A-1)","The Climate Registry's 2013 Default Emission Factors, Table 13.1 U.S. Default Factors for Transport Fuels "]
["Kerosene ",10.15,"kg CO2/gallon","Kerosene ","The Climate Registry's 2013 Default Emission Factors, Table 13.1 U.S. Default Factors for Transport Fuels "]
["RFO (Ships)",11.27,"kg CO2/gallon","Residual Fuel Oil (#5,6)","The Climate Registry's 2013 Default Emission Factors, Table 13.1 U.S. Default Factors for Transport Fuels (RFO #6)"]
["Biodiesel (B100)",9.4499999999999993,"kg CO2/gallon","Biodiesel (B100)*","The Climate Registry's 2013 Default Emission Factors, Table 13.1 U.S. Default Factors for Transport Fuels "]
["B5",{"$f":"0.05*B12+0.95*B7","v":10.172000000000001},"kg CO2/gallon",null,"5% x Biodiesel + 95% x Diesel"]
["B20",{"$f":"0.2*B12+0.8*B7","v":10.058000000000002},"kg CO2/gallon",null,"20% x Biodiesel + 80% x Diesel"]
["B40",{"$f":"0.4*B12+0.6*B7","v":9.9060000000000006},"kg CO2/gallon",null,"40% x Biodiesel + 60% x Diesel"]
["B99",{"$f":"0.99*B12+0.01*B7","v":9.4575999999999993},"kg CO2/gallon",null,"99% x Biodiesel + 1% x Diesel"]
["Ethanol (E100)",5.75,"kg CO2/gallon","Ethanol (E100)*","The Climate Registry's 2013 Default Emission Factors, Table 13.1 U.S. Default Factors for Transport Fuels "]
["E85",{"$f":"0.85*B17+0.15*B6","v":6.2045000000000003},"kg CO2/gallon",null,"85%x Ethanol +15% gasoline"]
["LNG",4.46,"kg CO2/gallon","Liquefied Natural Gas (LNG)*","The Climate Registry's 2013 Default Emission Factors, Table 13.1 U.S. Default Factors for Transport Fuels "]
["LPG",5.7896902380952371,"kg CO2/gallon","Liquefied Petroleum Gas (LPG)*","The Climate Registry's 2013 Default Emission Factors, Table 13.1 U.S. Default Factors for Transport Fuels "]
["CNG",{"$f":"B2*134.71","v":7.1423242},"kg CO2/gallon equivalent* (converted from kg CO2/std cubic feet)","Compressed Natural Gas (CNG)","The Climate Registry's 2013 Default Emission Factors, Table 13.1 U.S. Default Factors for Transport Fuels "]
[]
[]
[null,null,"*The National Institute of Standards and Technology reports the mass of one GGE as 5.660 pounds of natural gas .  The density of natural gas is 23.8 cubic feet per pound according to the American Petroleum Institute .  Thus, a GGE of natural gas is equivalent to 134.71 cubic feet.  "]

{"sheet":"CBECs","index":18,"n_rows":18,"n_cols":6,"rows_kept":18,"cut":false,"hidden":true,"merged":[]}
[null,"Electricity","Natural Gas","Fuel Oil"]
["Principal Building Activity","per Square Foot (kWh)","per Square Foot \n(cubic feet)","per \nSquare Foot\n(gallons)"]
["Education ....................",11,36.9,0.18,null,"http://www.eia.doe.gov/emeu/cbecs/cbecs2003/detailed_tables_2003/detailed_tables_2003.html#enduse03"]
["Food Sales ...................",49.4,50.2,"Q"]
["Food Service .................",38.4,141.19999999999999,"Q"]
["Health Care ..................",22.9,92.5,0.04]
["  Inpatient ..................",27.5,109.8,0.04]
["  Outpatient .................",16.100000000000001,50.2,"Q"]
["Lodging ......................",13.5,48.9,0.12]
["Retail (Other Than Mall)......",14.3,30.9,"Q"]
["Office .......................",17.3,31.8,0.03]
["Public Assembly ..............",12.5,36.4,0.22]
["Public Order and Safety ......",15.3,43.7,"Q"]
["Religious Worship ............",4.9000000000000004,30.3,0.28999999999999998]
["Service ......................",11,54.1,"Q"]
["Warehouse and Storage ........",7.6,23.4,0.05]
["Other ........................",22.5,67.599999999999994,"Q"]
["Vacant .......................",2.4,23,"Q"]

{"sheet":"Cost","index":19,"n_rows":19,"n_cols":6,"rows_kept":19,"cut":false,"hidden":true,"merged":[]}
["Source","$ per standard unit","Standard Unit","Year","Reference"]
["Electricity",0.1188,"kWh",2012,"http://www.eia.doe.gov/emeu/steo/pub/"]
["Natural Gas",1.0659999999999999E-2,"cubic foot",2012,"http://www.eia.doe.gov/emeu/steo/pub/"]
["Fuel Oil",3.76,"gallon",2012,"Heating Oil from http://www.eia.doe.gov/emeu/steo/pub/"]
["Gasoline ",3.63,"gallon",2012,"http://www.eia.doe.gov/emeu/steo/pub/"]
["Diesel",2.46,"gallon",2012,"http://www.eia.doe.gov/emeu/steo/pub/"]
["Biodiesel (B100)",{"$f":"AVERAGE(4.9,5.04)","v":4.9700000000000006},"gallon",2013,"Average of Min and Max Values from http://www.ams.usda.gov/mnreports/lswagenergy.pdf "]
["B5",{"$f":"B7","v":4.9700000000000006},"gallon",null,"assume same as B100"]
["B20",{"$f":"B8","v":4.9700000000000006},"gallon",null,"assume same as B100"]
["B40",{"$f":"B9","v":4.9700000000000006},"gallon",null,"assume same as B100"]
["B99",{"$f":"B10","v":4.9700000000000006},"gallon",null,"assume same as B100"]
["LPG",{"$f":"AVERAGE(4.29,1.93)","v":3.11},"gallon",2013,"Average Cost in Los Angeles from http://www.altfuelprices.com/"]
["CNG",{"$f":"AVERAGE(2.9,2.99)","v":2.9450000000000003},"gallon",2013,"Average Cost in Los Angeles from http://www.altfuelprices.com/"]
["LNG",{"$f":"AVERAGE(2.2,2.19)","v":2.1950000000000003},"gallon",2013,"Average Cost in Los Angeles from http://www.altfuelprices.com/"]
["Kerosene",3.843,"gallon",2012,"U.S. Price excluding taxes from http://www.eia.gov/dnav/pet/pet_sum_mkt_a_EPPK_PTG_dpgal_a.htm"]
["Residual Fuel Oil",1.7290000000000001,"gallon",2010,"Average U.S. Sales to End Users excluding taxes from http://www.eia.gov/dnav/pet/pet_pri_resid_dcu_nus_a.htm"]
["Propane",2.484,"gallon",2013,"http://www.eia.gov/petroleum/heatingoilpropane/","Note: Steo no longer collects propane data. This is the only source for propane data, though only ~24 states collect data"]
["E85",{"$f":"AVERAGE(3.69,3.49)","v":3.59},"gallon",2013,"Average Cost in Los Angeles from http://www.altfuelprices.com/"]
["Ethanol",{"$f":"AVERAGE(2.55,2.75)","v":2.65},"gallon",2013,"Average of Min and Max Values from http://www.ams.usda.gov/mnreports/lswagenergy.pdf "]

{"sheet":"MPG","index":20,"n_rows":28,"n_cols":8,"rows_kept":28,"cut":false,"hidden":true,"merged":[]}
["VehicleType","Fuel Efficiency (mpg)","US DOT classification","Reference Classification",null,null,"Type","Gas Saving Ratio"]
["Cars",23.6,"Passenger Cars","Cars- Ref 1, Page 2",null,null,"Hybrid SUVs",{"$f":"(1-B2/B9)","v":0.3948717948717948}]
["Motorcycles",56.2,"Motorcycles","Motorcycles- Ref 2",null,null,"Hybrid Cars",{"$f":"(1-B5/B8)","v":0.41666666666666663}]
["Buses",6,"Buses","Buses- Ref 3, Page 5"]
["Vans, Pickups, SUVs",17.5,"Other 2-Axel 4 Tire vehicles","Light Truck 2-Axel 4 Tire- Ref 1, Page 2"]
["Trucks (<18 wheel)",7.3,"Single-Unit 2-axles 6-tire or more trucks","Class 3-8 single-unit trucks, 2011- Ref 1, Page 131"]
["18 Wheelers",5.8,"Combination Trucks","Class 7-8 combination trucks, 2011- Ref 1, Page 131"]
["Hybrid SUVs",30,"Average of hybrid SUVs","http://www.fueleconomy.gov/feg/hybrid_sbs_SUVs.shtml"]
["Hybrid Cars",39,"Average of hybrid cars","http://www.fueleconomy.gov/feg/hybrid_sbs_cars.shtml"]
["All Vehicles",23.8,"All Motor Vehicles","http://www.epa.gov/otaq/fetrends.htm"]
[]
["Reference: "]
["1-Transportation Energy Data Book: Edition 32 can be found online at: cta.ornl.gov/data"]
["2-US Department of Transportation, Federal Highway Administration Office of Highway Policy Information, Highway Statistics 2007,  December 2008, Table VM-1, Annual Vehicle Distance Traveled in Miles and Related Data-2007, Average miles traveled per gallon of fuel consumed accessed from http://www.fhwa.dot.gov/policyinformation/statistics/2007/ "]
["3-John Dunham & Associates (2010). Motorcoach Census 2011. A Benchmarking Study of the Size and Activity of the Motorcoach Industry in the United States and Canada in 2010. American Bus Association Foundation. Retrieved September 5, 2013 from http://www.buses.org/files/Foundation/Final_Motorcoach_Census_2011_7-3-2012.pdf."]
[]
[]
[]
[null,1000,"miles"]
[null,{"$f":"B19/B2","v":42.372881355932201},"gal"]
[null,{"$f":"B19/B9","v":25.641025641025642},"gal",{"$f":"B20-B21","v":16.731855714906558}]
[null,{"$f":"B20/B21","v":1.6525423728813557}]
[null,{"$f":"B21/B20","v":0.6051282051282052},null,{"$f":"B20*(1-B23)","v":16.731855714906558}]
[]
[null,100,"gal","hybrid"]
[null,{"$f":"B22*B25","v":165.25423728813558},"gal","normal"]
[]
[null,8]

{"sheet":"AirTravel","index":21,"n_rows":20,"n_cols":16,"rows_kept":20,"cut":false,"hidden":true,"merged":[[20,12,21,12],[10,0,10,6]]}
["Length Classification","EF (kg CO2/passenger mile)","Max Distance (miles)","Total kg CO2 pkm*","DEFRA Classification",null,"Plane Type","Fuel Type","Gallons per Hour","miles per gallon",null,null,"Plane Type","Model","Gallons per Hour","Reference"]
["Short",{"$f":"D2*$D$7","v":0.28966856244480005},{"$f":"463/D7","v":287.69486200588562},{"$f":"109%*0.16513","v":0.1799917},"Domestic Average",null,"Chartered Commercial Jet","jet fuel",{"$f":"ROUND(SUMIF(M:M, G2,O:O )/COUNTIF(M:M, G2), -1)","v":950},{"$f":"ROUND(1/2.65,1)","v":0.4},"Climate Leaders Table 4: Fuel Economy Values by Vehicle Type",null,"Chartered Commercial Jet","737-800",850,"http://www.seattlepi.com/business/368286_air25.html"]
["Medium",{"$f":"D3*$D$7","v":0.16540209987840002},{"$f":"1108/D7","v":688.47928099896603},{"$f":"1.09*0.09429","v":0.10277610000000001},"Short-Haul International Average",null,"Large Private Jet","jet fuel",{"$f":"ROUND(SUMIF(M:M, G3,O:O )/COUNTIF(M:M, G3), -1)","v":440},{"$f":"ROUND(1.3, 1)","v":1.3},"http://www.ehow.com/about_5665316_private-suv-jet-fuel-cost.html",null,"Chartered Commercial Jet","MD-80",1050,"http://www.seattlepi.com/business/368286_air25.html"]
["Long",{"$f":"D4*$D$7","v":0.18925901533440004},null,{"$f":"1.09*0.10789","v":0.11760010000000001},"Long-Haul International Average",null,"Small Private Jet","jet fuel",{"$f":"ROUND(SUMIF(M:M, G4,O:O )/COUNTIF(M:M, G4), -1)","v":220},4,"http://www.ehow.com/about_5665316_private-suv-jet-fuel-cost.html",10,"Small Private Jet","Citation Excel",250,"Joe Bellas, Universal carbon calculator factors based on equipment manual"]
["Average",{"$f":"AVERAGE(B2:B4)","v":0.21477655921920003},null,null,null,null,"Helicopter","aviation gasoline",{"$f":"ROUND(SUMIF(M:M, G5,O:O )/COUNTIF(M:M, G5), -1)","v":50},{"$f":"ROUND(1.65, 1)","v":1.7},"http://en.wikipedia.org/wiki/Fuel_efficiency_in_transportation",10,"Small Private Jet","Cessna 50XL Citation",166,"Joe Bellas, Universal carbon calculator factors based on equipment manual"]
[null,null,null,null,null,null,null,null,null,null,null,null,"Small Private Jet","ACG 39 / Lear 45",184,"Joe Bellas, Universal carbon calculator factors based on equipment manual"]
[null,null,null,1.6093440000000001,"km = 1 mile",null,null,null,null,null,null,null,"Small Private Jet","Metro III",80,"Joe Bellas, Universal carbon calculator factors based on equipment manual"]
[null,null,null,null,null,null,null,null,null,null,null,null,"Helicopter","Eurocopter 350 B-2 ",45,"Joe Bellas, Universal carbon calculator factors based on equipment manual"]
[null,null,null,"*Includes km uplift factor of 109%",null,null,null,null,null,null,null,16,"Large Private Jet","G5",370,"Joe Bellas, Universal carbon calculator factors based on equipment manual"]
["Reference:",null,null,null,null,null,null,null,null,null,null,16,"Large Private Jet","G5",510,"Joe Bellas, Universal carbon calculator factors based on equipment manual"]
["Department for Environment, Food and Rural Affairs (2012). 2012 Guidelines to Defra / DECC’s GHG Conversion Factors for Company Reporting. Version 1.0 (updated May 28). Annex 6 Passenger Transport, Table 6l: Air Passenger Transport Conversion Factors ",null,null,null,null,null,null,null,null,null,null,null,"Small Private Jet","Charter - C750",316,"Joe Bellas, Universal carbon calculator factors based on equipment manual"]
[null,null,null,null,null,null,null,null,null,null,null,null,"Small Private Jet","Charter - Falcon 2000",254,"Joe Bellas, Universal carbon calculator factors based on equipment manual"]
[null,null,null,null,null,null,null,null,null,null,null,null,"Helicopter","Helicopter - A Star 350",45,"Joe Bellas, Universal carbon calculator factors based on equipment manual"]
["2010 Emission Factor","2012 Emission Factor",null,null,null,null,null,null,null,null,null,null,"Large Private Jet","Charter - G IV",450,"Joe Bellas, Universal carbon calculator factors based on equipment manual"]
["(kg CO2e per passenger mile)","(kg CO2e per passenger mile)","% difference",null,null,null,"Plane Type","Number of Passengers",null,null,null,null,"Helicopter","Helicopter - A Star 350",47,"Joe Bellas, Universal carbon calculator factors based on equipment manual"]
[0.30399999999999999,{"$f":"109%*0.16685*D7","v":0.29268576057600004},{"$f":"(B16-A16)/A16","v":-3.7217892842105096E-2},null,null,null,"Chartered Commercial Jet",">20",null,null,null,null,"Helicopter","Helicopter - Twin Star",55,"Joe Bellas, Universal carbon calculator factors based on equipment manual"]
[0.17199999999999999,{"$f":"1.09*0.09522*D7","v":0.16703349189120001},{"$f":"(B17-A17)/A17","v":-2.8875047144185918E-2},null,null,null,"Large Private Jet","14-20",null,null,null,null,"Helicopter","Helicopter–EuroAS350BA",43,"Joe Bellas, Universal carbon calculator factors based on equipment manual"]
[0.2,{"$f":"1.09*0.10896*D7","v":0.19113599324160002},{"$f":"(B18-A18)/A18","v":-4.4320033791999947E-2},null,null,null,"Small Private Jet","5-13",null,null,null,null,"Small Private Jet","Citation 550",350,"Joe Bellas, Universal carbon calculator factors based on equipment manual"]
[null,null,null,null,null,null,null,null,null,null,null,null,"Helicopter","Helecoptor – Bell B212",50,"Joe Bellas, Universal carbon calculator factors based on equipment manual"]
[null,null,null,null,null,null,null,null,null,null,null,null,"Small Private Jet","Cessna Citation CJ2",140,"http://www.jetadvisors.com/aircraft-specs/Description-CessnaCitationCJ2-SmallCabinLightJets.htm"]

{"sheet":"HotelFactors","index":22,"n_rows":20,"n_cols":8,"rows_kept":20,"cut":false,"hidden":true,"merged":[]}
["Room Type","Square Footage","kWh/square foot/yr","kWh/yr","KBtu/sq foot/yr","natural gas/yr","Year"]
["Economy Hotel",535,10.31,{"$f":"B2*C2","v":5515.85},42.45,{"$f":"E2*Lookups!$E$4/100*B2","v":0.22092169260700392},2005,"hotel_casino_analysis.pdf, Table 16 & 17"]
["Midscale Hotel",656,16.57,{"$f":"B3*C3","v":10869.92},54.04,{"$f":"E3*Lookups!$E$4/100*B3","v":0.3448466926070039},2005,"hotel_casino_analysis.pdf, Table 16 & 18"]
["Upscale Hotel",842,14.96,{"$f":"B4*C4","v":12596.320000000002},40.57,{"$f":"E4*Lookups!$E$4/100*B4","v":0.33229513618677042},2005,"hotel_casino_analysis.pdf, Table 16 & 19"]
["Luxury Hotel",905,18.18,{"$f":"B5*C5","v":16452.900000000001},49.01,{"$f":"E5*Lookups!$E$4/100*B5","v":0.43145963035019452},2005,"hotel_casino_analysis.pdf, Table 16 & 20"]
["Apartment/Condo","Apartments in 5 or More Unit Buildings",null,11320,null,null,2009,"Residential Energy Consumption Survey (RECS) Table CE2.1  Household Site Fuel Consumption in the U.S., Totals and Averages, 2009 (Released January 2013)"]
["Average House","Total US",null,6376,null,null,2009,"Residential Energy Consumption Survey (RECS) Table CE2.1  Household Site Fuel Consumption in the U.S., Totals and Averages, 2009 (Released January 2013)"]
["Large House",">4000",null,17498,null,null,2009,"Residential Energy Consumption Survey (RECS) Table CE2.1  Household Site Fuel Consumption in the U.S., Totals and Averages, 2009 (Released January 2013)"]
[]
[]
["Housing Type","Casino Analysis","Examples"]
["Economy Hotel","Economy and Budget","Motel 6, Red Roof, Days Inn"]
["Midscale Hotel","Midscale w/ Food and Beverage","Holiday Inn, Ramada, Best Western"]
["Upscale Hotel","Upscale","Marriot, Hilton"]
["Luxury Hotel","Upper Upscale","Four Seasons, Ritz Carlton"]
["Apartment/Condo",null,"<1000 square feet"]
["Average House",null,"1000 - 4000 square feet"]
["Large House",null,">4000 Square feet"]
[]
[null,null,null,null,null,"Room/House Type"]

{"sheet":"Equivalents","index":23,"n_rows":29,"n_cols":7,"rows_kept":29,"cut":false,"hidden":true,"merged":[]}
[null,"http://www.epa.gov/cleanenergy/energy-resources/calculator.html"]
[null,null,null,null,null,null,"Homes per Year"]
[null," 1 MT CO2 Emissions is equivalent to*:"]
[]
[null,"   Annual energy use from"]
[null,{"$f":"1/19.43","v":5.1466803911477101E-2},"homes for one year"]
[]
[null,"   Annual emissions from"]
[null,{"$f":"1/4.8","v":0.20833333333333334},"passenger vehicles"]
[]
[null,{"$f":"1/0.039","v":25.641025641025642},"tree seedlings grown for 10 years"]
[]
[null,{"$f":"1/0.00892","v":112.10762331838563},"gallons of gasoline consumed"]
[]
[]
[]
[null,null,null,null,null,null,"Passenger Vehicles"]
[]
[]
[]
[]
[]
[]
[null,null,null,null,null,null,"Tree Seedlings"]
[]
[]
[]
[]
[null,null,null,null,null,null,"Gallons of Gasoline Consumed"]

{"sheet":"Sheet2","index":24,"n_rows":18,"n_cols":4,"rows_kept":18,"cut":false,"hidden":true,"merged":[[1,3,10,3]]}
["Production Info Data entry field","Film","TV","Comments"]
["Category of Film by Budget:","X",null,"Required benchmark values with dropdown lists as defined in the proposal; shoot days and number of episodes must be whole numbers"]
["Type of TV Production:",null,"X"]
["Region:","X","X"]
["Total Number of Shoot Days:","X","X "]
["Total Number of 1st Unit Shoot Days:","X"]
["Total Number of 2nd Unit Shoot Days:","X"]
["Other/Additional Photography Shoot Days:","X"]
["Number of On Location Days:"," X"," X"]
["Number of Stage Days:"," X"," X"]
["Number of Episodes:",null,"X"]
["Main Production Office Location:"," X"," X"," Free Field"]
["Start Date:"," X"," X"]
["End Date:"," X","X "]
["Number of Days for Prep:"," X"," X"]
["Number of Weeks for Shooting:",null,null," REMOVE"]
["Number of Days for Wrap:"," X"," X"]
["Season Number:",null," X"]

{"sheet":"Change Log","index":25,"n_rows":21,"n_cols":4,"rows_kept":21,"cut":false,"hidden":true,"merged":[]}
["Date","Name","Version","Notes"]
["2013-12-04","CN","3.1.1","started EAR/Setting/EAR Metrics; instructions for Megan"]
["2013-12-11","CN","3.1.2","updated production info; "]
["2013-12-17","CN","3.1.3","Added EAR and EAR Metrics drafts"]
["2013-12-18","MN","3.1.4","Completed Megan Task 1"]
["2013-12-23","CN","3.1.5","EAR metrics- fuel use, plywood, donations, formatting"]
["2013-12-31","MN","3.1.6","Completed Megan Task 2 & 3"]
["2013-12-31","MN","3.1.7","Completed Megan Task 4 & 5 (tab EAR Metrics only)"]
["2014-01-02","CN","3.1.8","EAR graphics (partial)"]
["2014-01-02","MN","3.1.9","Completed Task # 7 (Settings)"]
["2014-01-03","MN","3.1.10","Task # 6 Completed"]
["2014-01-07","CN","3.1.11","QA/QC for MN, updated formatting, error check, etc."]
["2014-01-08","LA","3.1.12"]
["2014-01-08","MN","3.1.13","Updates per \"Megan Tasks\" to Original Tasks, Kept Data"]
["2014-01-09","MN","3.1.14","Updates per \"Megan Tasks\" to Original Tasks, Kept Data"]
["2014-01-09","MN","3.1.15","Updates per \"Megan Tasks\" to Original Tasks, Kept Data"]
["2014-01-09","MN","3.1.16","Updates per \"Megan Tasks\" to Original Tasks, Kept Data"]
["2014-01-10","MN","3.1.17","Updated to complete \"Megan Tasks\""]
["2014-01-21","CN","3.1.17-19","testing and update to format, calculations and functionality"]
["2014-01-23","CN","3.1.20","updates per initial demo feedback"]
["2014-01-23","MN","3.1.21","updates to worksheet protection in VBA code per CN/client"]

{"sheet":"Sheet3","index":26,"n_rows":0,"n_cols":0,"rows_kept":0,"cut":false,"hidden":true,"merged":[]}

{"sheet":"Version","index":27,"n_rows":2,"n_cols":3,"rows_kept":2,"cut":false,"hidden":true,"merged":[]}
["Version","Date","Changes"]
["3.3.0","2014-10-10","Updated Plywood module to remove \"Non Lauan Ply/Other\" and change \"Plywood Alternative\" to \"Lauan Alternative\"; \nModified summary tab to  include \"version number\"\nFormatting changes on  production info and fuel tabs\nAdded ability to enter total board feet in Plywood section\nAdded Percent Source Contribution graph to p1 EAR and moved Additional measures and challenges box to p2."]